,Date Paid,TT,Transaction Number,Amount,Supplier No,Supplier Name,Period,Expense Area,Cipfa(T),
INSERTED DETAIL,08/01/2016,GI,2063021,"13,210.04",HC107838,Ethica Resourcing Ltd,201610,Adults Operations,Employees,
INSERTED DETAIL,08/01/2016,GI,2063021,920,HC107838,Ethica Resourcing Ltd,201610,Central Childrens Directorate Costs,Employees,
INSERTED DETAIL,08/01/2016,GI,2063021,"10,895.60",HC107838,Ethica Resourcing Ltd,201610,Commissioning,Employees,
INSERTED DETAIL,08/01/2016,GI,2063021,"5,615.55",HC107838,Ethica Resourcing Ltd,201610,Communities,Employees,
INSERTED DETAIL,08/01/2016,GI,2063021,748.89,HC107838,Ethica Resourcing Ltd,201610,Mental Health,Employees,
INSERTED DETAIL,08/01/2016,GI,2063021,"2,299.38",HC107838,Ethica Resourcing Ltd,201610,Public Health,Employees,
INSERTED DETAIL,08/01/2016,GI,2063021,"2,333.85",HC107838,Ethica Resourcing Ltd,201610,Resources,Employees,
INSERTED DETAIL,08/01/2016,GI,2063021,"36,410.68",HC107838,Ethica Resourcing Ltd,201610,Safeguarding and Family Support,Employees,
INSERTED DETAIL,08/01/2016,GI,2063021,"1,610.00",HC107838,Ethica Resourcing Ltd,201610,Transformation and safeguarding,Employees,
INSERTED DETAIL,08/01/2016,GI,2063021,"1,881.89",HC107838,REDACTED,201610,Adults Operations,Employees,
INSERTED DETAIL,08/01/2016,GI,2063021,"6,886.58",HC107838,REDACTED,201610,Safeguarding and Family Support,Employees,
INSERTED DETAIL,08/01/2016,GI,2063064,429.5,HC113047,Children's Social Care,201610,Safeguarding and Family Support,Third Party Payments,
INSERTED DETAIL,29/01/2016,GI,2063066,742.5,HC107953,REDACTED,201610,Adults Operations,Transport-Related Expenditure,
INSERTED DETAIL,29/01/2016,GI,2063087,577,HC101389,RSP Ltd (Direct Debit),201610,Adults Operations,Transport-Related Expenditure,
INSERTED DETAIL,29/01/2016,GI,2063087,464.9,HC101389,RSP Ltd (Direct Debit),201610,Communities,Transport-Related Expenditure,
INSERTED DETAIL,08/01/2016,GI,2063467,500,HC118997,REDACTED,201610,Safeguarding and Family Support,Third Party Payments,
INSERTED DETAIL,13/01/2016,GI,2063671,"1,278.41",HC105573,Luston C P School Imprest,201610,Schools,Premises-Related Expenditure,
INSERTED DETAIL,13/01/2016,GI,2063671,"1,980.59",HC105573,Luston C P School Imprest,201610,Schools,Supplies & Services,
INSERTED DETAIL,13/01/2016,GI,2063675,525,HC101700,Chave & Jackson Ltd,201610,Public Health,Supplies & Services,
INSERTED DETAIL,13/01/2016,GI,2063756,557.14,HC115017,REDACTED,201610,Safeguarding and Family Support,Third Party Payments,
INSERTED DETAIL,13/01/2016,GI,2063757,857.2,HC120431,REDACTED,201610,Safeguarding and Family Support,Third Party Payments,
INSERTED DETAIL,15/01/2016,GI,2063758,430.2,HC113047,Children's Social Care,201610,Safeguarding and Family Support,Third Party Payments,
INSERTED DETAIL,15/01/2016,WM,2063824,439.47,HC108443,West Mercia Energy,201610,Commissioning,Premises-Related Expenditure,
INSERTED DETAIL,13/01/2016,WM,2063824,439.47,,West Mercia Energy,201610,Commissioning,Premises-Related Expenditure,Energy Costs
INSERTED DETAIL,15/01/2016,WM,2063826,"1,047.42",HC108443,West Mercia Energy,201610,Commissioning,Premises-Related Expenditure,
INSERTED DETAIL,13/01/2016,WM,2063826,"1,047.42",,West Mercia Energy,201610,Commissioning,Premises-Related Expenditure,Energy Costs
INSERTED DETAIL,15/01/2016,WM,2063827,968.7,HC108443,West Mercia Energy,201610,Commissioning,Premises-Related Expenditure,
INSERTED DETAIL,13/01/2016,WM,2063827,968.7,,West Mercia Energy,201610,Commissioning,Premises-Related Expenditure,Energy Costs
INSERTED DETAIL,15/01/2016,WM,2063828,999.92,HC108443,West Mercia Energy,201610,Commissioning,Premises-Related Expenditure,
INSERTED DETAIL,13/01/2016,WM,2063828,999.92,,West Mercia Energy,201610,Commissioning,Premises-Related Expenditure,Energy Costs
INSERTED DETAIL,15/01/2016,WM,2063829,967.7,HC108443,West Mercia Energy,201610,Commissioning,Premises-Related Expenditure,
INSERTED DETAIL,13/01/2016,WM,2063829,967.7,,West Mercia Energy,201610,Commissioning,Premises-Related Expenditure,Energy Costs
INSERTED DETAIL,15/01/2016,WM,2063843,"1,223.22",HC108443,West Mercia Energy,201610,Commissioning,Premises-Related Expenditure,
INSERTED DETAIL,13/01/2016,WM,2063843,"1,223.22",,West Mercia Energy,201610,Commissioning,Premises-Related Expenditure,Energy Costs
INSERTED DETAIL,15/01/2016,WM,2063844,"11,335.04",HC108443,West Mercia Energy,201610,Commissioning,Premises-Related Expenditure,
INSERTED DETAIL,13/01/2016,WM,2063844,"11,335.04",,West Mercia Energy,201610,Commissioning,Premises-Related Expenditure,Energy Costs
INSERTED DETAIL,15/01/2016,WM,2063845,"1,032.01",HC108443,West Mercia Energy,201610,Commissioning,Premises-Related Expenditure,
INSERTED DETAIL,13/01/2016,WM,2063845,"1,032.01",,West Mercia Energy,201610,Commissioning,Premises-Related Expenditure,Energy Costs
INSERTED DETAIL,15/01/2016,WM,2063846,"1,970.37",HC108443,West Mercia Energy,201610,Schools,Premises-Related Expenditure,
INSERTED DETAIL,13/01/2016,WM,2063846,"1,970.37",,West Mercia Energy,201610,Schools,Premises-Related Expenditure,Energy Costs
INSERTED DETAIL,15/01/2016,WM,2063847,"1,248.88",HC108443,West Mercia Energy,201610,Schools,Premises-Related Expenditure,
INSERTED DETAIL,13/01/2016,WM,2063847,"1,248.88",,West Mercia Energy,201610,Schools,Premises-Related Expenditure,Energy Costs
INSERTED DETAIL,15/01/2016,WM,2063848,813.89,HC108443,West Mercia Energy,201610,Commissioning,Premises-Related Expenditure,
INSERTED DETAIL,13/01/2016,WM,2063848,813.89,,West Mercia Energy,201610,Commissioning,Premises-Related Expenditure,Energy Costs
INSERTED DETAIL,15/01/2016,WM,2063849,"1,384.53",HC108443,West Mercia Energy,201610,Schools,Premises-Related Expenditure,
INSERTED DETAIL,13/01/2016,WM,2063849,"1,384.53",,West Mercia Energy,201610,Schools,Premises-Related Expenditure,Energy Costs
INSERTED DETAIL,15/01/2016,WM,2063850,"41,284.18",HC108443,West Mercia Energy,201610,Commissioning,Premises-Related Expenditure,
INSERTED DETAIL,13/01/2016,WM,2063850,"41,284.18",,West Mercia Energy,201610,Commissioning,Premises-Related Expenditure,Energy Costs
INSERTED DETAIL,15/01/2016,WM,2063857,900.22,HC108443,West Mercia Energy,201610,Schools,Premises-Related Expenditure,
INSERTED DETAIL,13/01/2016,WM,2063857,900.22,,West Mercia Energy,201610,Schools,Premises-Related Expenditure,Energy Costs
INSERTED DETAIL,15/01/2016,WM,2063866,555.29,HC108443,West Mercia Energy,201610,Commissioning,Premises-Related Expenditure,
INSERTED DETAIL,13/01/2016,WM,2063866,555.29,,West Mercia Energy,201610,Commissioning,Premises-Related Expenditure,Energy Costs
INSERTED DETAIL,15/01/2016,WM,2063868,"1,066.78",HC108443,West Mercia Energy,201610,Commissioning,Premises-Related Expenditure,
INSERTED DETAIL,13/01/2016,WM,2063868,"1,066.78",,West Mercia Energy,201610,Commissioning,Premises-Related Expenditure,Energy Costs
INSERTED DETAIL,15/01/2016,WM,2063874,583.13,HC108443,West Mercia Energy,201610,Schools,Premises-Related Expenditure,
INSERTED DETAIL,13/01/2016,WM,2063874,583.13,,West Mercia Energy,201610,Schools,Premises-Related Expenditure,Energy Costs
INSERTED DETAIL,15/01/2016,WM,2063875,423.44,HC108443,West Mercia Energy,201610,Schools,Premises-Related Expenditure,
INSERTED DETAIL,13/01/2016,WM,2063875,423.44,,West Mercia Energy,201610,Schools,Premises-Related Expenditure,Energy Costs
INSERTED DETAIL,15/01/2016,WM,2063882,514.64,HC108443,West Mercia Energy,201610,Schools,Premises-Related Expenditure,
INSERTED DETAIL,13/01/2016,WM,2063882,514.64,,West Mercia Energy,201610,Schools,Premises-Related Expenditure,Energy Costs
INSERTED DETAIL,15/01/2016,WM,2063884,737.28,HC108443,West Mercia Energy,201610,Schools,Premises-Related Expenditure,
INSERTED DETAIL,13/01/2016,WM,2063884,737.28,,West Mercia Energy,201610,Schools,Premises-Related Expenditure,Energy Costs
INSERTED DETAIL,15/01/2016,WM,2063888,630.6,HC108443,West Mercia Energy,201610,Commissioning,Premises-Related Expenditure,
INSERTED DETAIL,13/01/2016,WM,2063888,630.6,,West Mercia Energy,201610,Commissioning,Premises-Related Expenditure,Energy Costs
INSERTED DETAIL,15/01/2016,WM,2063890,"1,036.83",HC108443,West Mercia Energy,201610,Commissioning,Premises-Related Expenditure,
INSERTED DETAIL,13/01/2016,WM,2063890,"1,036.83",,West Mercia Energy,201610,Commissioning,Premises-Related Expenditure,Energy Costs
INSERTED DETAIL,15/01/2016,WM,2063892,754.66,HC108443,West Mercia Energy,201610,Commissioning,Premises-Related Expenditure,
INSERTED DETAIL,13/01/2016,WM,2063892,754.66,,West Mercia Energy,201610,Commissioning,Premises-Related Expenditure,Energy Costs
INSERTED DETAIL,15/01/2016,WM,2063896,522.33,HC108443,West Mercia Energy,201610,Schools,Premises-Related Expenditure,
INSERTED DETAIL,13/01/2016,WM,2063896,522.33,,West Mercia Energy,201610,Schools,Premises-Related Expenditure,Energy Costs
INSERTED DETAIL,15/01/2016,WM,2063908,"1,011.04",HC108443,West Mercia Energy,201610,Commissioning,Premises-Related Expenditure,
INSERTED DETAIL,13/01/2016,WM,2063908,"1,011.04",,West Mercia Energy,201610,Commissioning,Premises-Related Expenditure,Energy Costs
INSERTED DETAIL,15/01/2016,WM,2063911,694.91,HC108443,West Mercia Energy,201610,Commissioning,Premises-Related Expenditure,
INSERTED DETAIL,13/01/2016,WM,2063911,694.91,,West Mercia Energy,201610,Commissioning,Premises-Related Expenditure,Energy Costs
INSERTED DETAIL,15/01/2016,WM,2063915,441.75,HC108443,West Mercia Energy,201610,Schools,Premises-Related Expenditure,
INSERTED DETAIL,13/01/2016,WM,2063915,441.75,,West Mercia Energy,201610,Schools,Premises-Related Expenditure,Energy Costs
INSERTED DETAIL,15/01/2016,WM,2063918,484.83,HC108443,West Mercia Energy,201610,Schools,Premises-Related Expenditure,
INSERTED DETAIL,13/01/2016,WM,2063918,484.83,,West Mercia Energy,201610,Schools,Premises-Related Expenditure,Energy Costs
INSERTED DETAIL,15/01/2016,WM,2063919,613.45,HC108443,West Mercia Energy,201610,Schools,Premises-Related Expenditure,
INSERTED DETAIL,13/01/2016,WM,2063919,613.45,,West Mercia Energy,201610,Schools,Premises-Related Expenditure,Energy Costs
INSERTED DETAIL,15/01/2016,WM,2063922,573.06,HC108443,West Mercia Energy,201610,Commissioning,Premises-Related Expenditure,
INSERTED DETAIL,13/01/2016,WM,2063922,573.06,,West Mercia Energy,201610,Commissioning,Premises-Related Expenditure,Energy Costs
INSERTED DETAIL,15/01/2016,WM,2063923,"1,054.34",HC108443,West Mercia Energy,201610,Schools,Premises-Related Expenditure,
INSERTED DETAIL,13/01/2016,WM,2063923,"1,054.34",,West Mercia Energy,201610,Schools,Premises-Related Expenditure,Energy Costs
INSERTED DETAIL,15/01/2016,WM,2063924,781.16,HC108443,West Mercia Energy,201610,Schools,Premises-Related Expenditure,
INSERTED DETAIL,13/01/2016,WM,2063924,781.16,,West Mercia Energy,201610,Schools,Premises-Related Expenditure,Energy Costs
INSERTED DETAIL,15/01/2016,WM,2063925,712.45,HC108443,West Mercia Energy,201610,Schools,Premises-Related Expenditure,
INSERTED DETAIL,13/01/2016,WM,2063925,712.45,,West Mercia Energy,201610,Schools,Premises-Related Expenditure,Energy Costs
INSERTED DETAIL,15/01/2016,WM,2063926,999.93,HC108443,West Mercia Energy,201610,Commissioning,Premises-Related Expenditure,
INSERTED DETAIL,13/01/2016,WM,2063926,999.93,,West Mercia Energy,201610,Commissioning,Premises-Related Expenditure,Energy Costs
INSERTED DETAIL,15/01/2016,WM,2063927,"1,119.70",HC108443,West Mercia Energy,201610,Commissioning,Premises-Related Expenditure,
INSERTED DETAIL,13/01/2016,WM,2063927,"1,119.70",,West Mercia Energy,201610,Commissioning,Premises-Related Expenditure,Energy Costs
INSERTED DETAIL,15/01/2016,WM,2063928,"1,171.48",HC108443,West Mercia Energy,201610,Schools,Premises-Related Expenditure,
INSERTED DETAIL,13/01/2016,WM,2063928,"1,171.48",,West Mercia Energy,201610,Schools,Premises-Related Expenditure,Energy Costs
INSERTED DETAIL,15/01/2016,WM,2063929,956.65,HC108443,West Mercia Energy,201610,Commissioning,Premises-Related Expenditure,
INSERTED DETAIL,13/01/2016,WM,2063929,956.65,,West Mercia Energy,201610,Commissioning,Premises-Related Expenditure,Energy Costs
INSERTED DETAIL,15/01/2016,WM,2063931,"1,684.72",HC108443,West Mercia Energy,201610,Commissioning,Premises-Related Expenditure,
INSERTED DETAIL,13/01/2016,WM,2063931,"1,684.72",,West Mercia Energy,201610,Commissioning,Premises-Related Expenditure,Energy Costs
INSERTED DETAIL,15/01/2016,WM,2063935,"1,457.50",HC108443,West Mercia Energy,201610,Commissioning,Premises-Related Expenditure,
INSERTED DETAIL,13/01/2016,WM,2063935,"1,457.50",,West Mercia Energy,201610,Commissioning,Premises-Related Expenditure,Energy Costs
INSERTED DETAIL,15/01/2016,WM,2063936,522.47,HC108443,West Mercia Energy,201610,Schools,Premises-Related Expenditure,
INSERTED DETAIL,13/01/2016,WM,2063936,522.47,,West Mercia Energy,201610,Schools,Premises-Related Expenditure,Energy Costs
INSERTED DETAIL,15/01/2016,WM,2063937,665.14,HC108443,West Mercia Energy,201610,Schools,Premises-Related Expenditure,
INSERTED DETAIL,13/01/2016,WM,2063937,665.14,,West Mercia Energy,201610,Schools,Premises-Related Expenditure,Energy Costs
INSERTED DETAIL,15/01/2016,WM,2063938,943.57,HC108443,West Mercia Energy,201610,Commissioning,Premises-Related Expenditure,
INSERTED DETAIL,13/01/2016,WM,2063938,943.57,,West Mercia Energy,201610,Commissioning,Premises-Related Expenditure,Energy Costs
INSERTED DETAIL,15/01/2016,WM,2063939,"1,315.46",HC108443,West Mercia Energy,201610,Commissioning,Premises-Related Expenditure,
INSERTED DETAIL,13/01/2016,WM,2063939,"1,315.46",,West Mercia Energy,201610,Commissioning,Premises-Related Expenditure,Energy Costs
INSERTED DETAIL,15/01/2016,WM,2063940,450.18,HC108443,West Mercia Energy,201610,Schools,Premises-Related Expenditure,
INSERTED DETAIL,13/01/2016,WM,2063940,450.18,,West Mercia Energy,201610,Schools,Premises-Related Expenditure,Energy Costs
INSERTED DETAIL,15/01/2016,WM,2063942,578.87,HC108443,West Mercia Energy,201610,Schools,Premises-Related Expenditure,
INSERTED DETAIL,13/01/2016,WM,2063942,578.87,,West Mercia Energy,201610,Schools,Premises-Related Expenditure,Energy Costs
INSERTED DETAIL,15/01/2016,WM,2063943,732.68,HC108443,West Mercia Energy,201610,Commissioning,Premises-Related Expenditure,
INSERTED DETAIL,13/01/2016,WM,2063943,732.68,,West Mercia Energy,201610,Commissioning,Premises-Related Expenditure,Energy Costs
INSERTED DETAIL,15/01/2016,WM,2063946,509.7,HC108443,West Mercia Energy,201610,Commissioning,Premises-Related Expenditure,
INSERTED DETAIL,13/01/2016,WM,2063946,509.7,,West Mercia Energy,201610,Commissioning,Premises-Related Expenditure,Energy Costs
INSERTED DETAIL,15/01/2016,WM,2063981,578.46,HC108443,West Mercia Energy,201610,Commissioning,Premises-Related Expenditure,
INSERTED DETAIL,13/01/2016,WM,2063981,578.46,,West Mercia Energy,201610,Commissioning,Premises-Related Expenditure,Energy Costs
INSERTED DETAIL,15/01/2016,WM,2063987,"1,038.14",HC108443,West Mercia Energy,201610,Schools,Premises-Related Expenditure,
INSERTED DETAIL,13/01/2016,WM,2063987,"1,038.14",,West Mercia Energy,201610,Schools,Premises-Related Expenditure,Energy Costs
INSERTED DETAIL,15/01/2016,WM,2063991,525.59,HC108443,West Mercia Energy,201610,Commissioning,Premises-Related Expenditure,
INSERTED DETAIL,13/01/2016,WM,2063991,525.59,,West Mercia Energy,201610,Commissioning,Premises-Related Expenditure,Energy Costs
INSERTED DETAIL,15/01/2016,WM,2063999,501.53,HC108443,West Mercia Energy,201610,Commissioning,Premises-Related Expenditure,
INSERTED DETAIL,13/01/2016,WM,2063999,501.53,,West Mercia Energy,201610,Commissioning,Premises-Related Expenditure,Energy Costs
INSERTED DETAIL,15/01/2016,WM,2064000,"2,543.41",HC108443,West Mercia Energy,201610,Commissioning,Premises-Related Expenditure,
INSERTED DETAIL,13/01/2016,WM,2064000,"2,543.41",,West Mercia Energy,201610,Commissioning,Premises-Related Expenditure,Energy Costs
INSERTED DETAIL,15/01/2016,WM,2064004,"1,060.78",HC108443,West Mercia Energy,201610,Commissioning,Premises-Related Expenditure,
INSERTED DETAIL,13/01/2016,WM,2064004,"1,060.78",,West Mercia Energy,201610,Commissioning,Premises-Related Expenditure,Energy Costs
INSERTED DETAIL,15/01/2016,WM,2064007,453.49,HC108443,West Mercia Energy,201610,Commissioning,Premises-Related Expenditure,
INSERTED DETAIL,13/01/2016,WM,2064007,453.49,,West Mercia Energy,201610,Commissioning,Premises-Related Expenditure,Energy Costs
INSERTED DETAIL,15/01/2016,GI,2064686,506.56,HC120455,REDACTED,201610,Safeguarding and Family Support,Third Party Payments,
INSERTED DETAIL,18/01/2016,GI,2064693,"1,612.48",HC111924,Bromyard Community Transport Ltd,201610,Commissioning,Supplies & Services,
INSERTED DETAIL,18/01/2016,GI,2064694,"2,268.76",HC112080,CVS Ledbury & District (Ledbury Ring & Ride)Standing Order A/c,201610,Commissioning,Supplies & Services,
INSERTED DETAIL,18/01/2016,GI,2064695,"1,517.32",HC102478,Dore Community Transport,201610,Commissioning,Supplies & Services,
INSERTED DETAIL,18/01/2016,GI,2064696,666.55,HC101381,Hay & District Dial a Ride,201610,Commissioning,Supplies & Services,
INSERTED DETAIL,18/01/2016,GI,2064697,"3,128.72",HC103982,HVOSS,201610,Commissioning,Supplies & Services,
INSERTED DETAIL,18/01/2016,GI,2064698,"1,739.03",HC101379,Ross Country Cars (Standing Order),201610,Commissioning,Supplies & Services,
INSERTED DETAIL,18/01/2016,GI,2064699,"2,156.22",HC110743,The Plynlimon Trust Community Car Scheme,201610,Commissioning,Supplies & Services,
INSERTED DETAIL,18/01/2016,GI,2064700,"41,113.00",HC103869,Wye Valley NHS Trust,201610,Public Health,Third Party Payments,
INSERTED DETAIL,16/01/2016,GI,2064701,600,HC106870,REDACTED,201610,Adults Operations,Premises-Related Expenditure,
INSERTED DETAIL,16/01/2016,GI,2064702,530,HC104888,REDACTED,201610,Adults Operations,Premises-Related Expenditure,
INSERTED DETAIL,16/01/2016,GI,2064703,550,HC106831,REDACTED,201610,Adults Operations,Premises-Related Expenditure,
INSERTED DETAIL,16/01/2016,GI,2064704,450,HC109865,REDACTED,201610,Adults Operations,Premises-Related Expenditure,
INSERTED DETAIL,16/01/2016,GI,2064705,450,HC109865,REDACTED,201610,Adults Operations,Premises-Related Expenditure,
INSERTED DETAIL,16/01/2016,GI,2064707,460,HC112055,REDACTED,201610,Adults Operations,Premises-Related Expenditure,
INSERTED DETAIL,16/01/2016,GI,2064708,550,HC108221,REDACTED,201610,Adults Operations,Premises-Related Expenditure,
INSERTED DETAIL,16/01/2016,GI,2064709,480,HC108905,REDACTED,201610,Adults Operations,Premises-Related Expenditure,
INSERTED DETAIL,16/01/2016,GI,2064710,540,HC105416,REDACTED,201610,Adults Operations,Premises-Related Expenditure,
INSERTED DETAIL,16/01/2016,GI,2064711,475,HC109338,REDACTED,201610,Adults Operations,Premises-Related Expenditure,
INSERTED DETAIL,16/01/2016,GI,2064713,600,HC100270,REDACTED,201610,Adults Operations,Premises-Related Expenditure,
INSERTED DETAIL,16/01/2016,GI,2064715,"4,333.33",HC106816,REDACTED,201610,Adults Operations,Premises-Related Expenditure,
INSERTED DETAIL,16/01/2016,GI,2064716,625,HC110272,REDACTED,201610,Adults Operations,Premises-Related Expenditure,
INSERTED DETAIL,16/01/2016,GI,2064717,420,HC106104,REDACTED,201610,Adults Operations,Premises-Related Expenditure,
INSERTED DETAIL,16/01/2016,GI,2064718,600,HC115622,REDACTED,201610,Adults Operations,Premises-Related Expenditure,
INSERTED DETAIL,16/01/2016,GI,2064719,525,HC116314,REDACTED,201610,Adults Operations,Premises-Related Expenditure,
INSERTED DETAIL,16/01/2016,GI,2064720,585,HC119280,REDACTED,201610,Adults Operations,Premises-Related Expenditure,
INSERTED DETAIL,18/01/2016,GI,2064756,"18,978.41",HC107838,Ethica Resourcing Ltd,201610,Adults Operations,Employees,
INSERTED DETAIL,18/01/2016,GI,2064756,"2,300.00",HC107838,Ethica Resourcing Ltd,201610,Central Childrens Directorate Costs,Employees,
INSERTED DETAIL,18/01/2016,GI,2064756,"4,954.92",HC107838,Ethica Resourcing Ltd,201610,Commissioning,Employees,
INSERTED DETAIL,18/01/2016,GI,2064756,"3,459.04",HC107838,Ethica Resourcing Ltd,201610,Commissioning Adults,Employees,
INSERTED DETAIL,18/01/2016,GI,2064756,"2,391.23",HC107838,Ethica Resourcing Ltd,201610,Communities,Employees,
INSERTED DETAIL,18/01/2016,GI,2064756,"3,439.91",HC107838,Ethica Resourcing Ltd,201610,Education and Commissioning,Employees,
INSERTED DETAIL,18/01/2016,GI,2064756,"1,628.79",HC107838,Ethica Resourcing Ltd,201610,Mental Health,Employees,
INSERTED DETAIL,18/01/2016,GI,2064756,"6,966.05",HC107838,Ethica Resourcing Ltd,201610,Public Health,Employees,
INSERTED DETAIL,18/01/2016,GI,2064756,"2,181.89",HC107838,Ethica Resourcing Ltd,201610,Resources,Employees,
INSERTED DETAIL,18/01/2016,GI,2064756,"68,935.14",HC107838,Ethica Resourcing Ltd,201610,Safeguarding and Family Support,Employees,
INSERTED DETAIL,18/01/2016,GI,2064756,"2,012.50",HC107838,Ethica Resourcing Ltd,201610,Transformation and safeguarding,Employees,
INSERTED DETAIL,18/01/2016,GI,2064756,"2,297.47",HC107838,REDACTED,201610,Adults Operations,Employees,
INSERTED DETAIL,18/01/2016,GI,2064756,"9,578.49",HC107838,REDACTED,201610,Safeguarding and Family Support,Employees,
INSERTED DETAIL,20/01/2016,GI,2064947,757,HC105841,Marlbrook  Primary School,201610,Children & Young People Capital,Capital Income,
INSERTED DETAIL,20/01/2016,GI,2064952,643,HC100677,Ashfield Park Primary School,201610,Children & Young People Capital,Capital Income,
INSERTED DETAIL,20/01/2016,GI,2064957,440,HC116432,Ewyas Harold Primary School-A/C 63712842,201610,Children & Young People Capital,Capital Income,
INSERTED DETAIL,20/01/2016,GI,2064962,"1,163.00",HC118940,Earl Mortimer College & Sixth Form HCC,201610,Children & Young People Capital,Capital Income,
INSERTED DETAIL,20/01/2016,GI,2064967,769,HC118939,Riverside Primary School - HCC,201610,Children & Young People Capital,Capital Income,
INSERTED DETAIL,20/01/2016,GI,2064970,447.92,HC107574,Lugwardine Primary Academy,201610,Central Childrens Directorate Costs,Support Services,
INSERTED DETAIL,20/01/2016,GI,2064971,447.92,HC100677,Ashfield Park Primary School,201610,Central Childrens Directorate Costs,Support Services,
INSERTED DETAIL,20/01/2016,GI,2064973,447.92,HC100677,Ashfield Park Primary School,201610,Central Childrens Directorate Costs,Support Services,
INSERTED DETAIL,20/01/2016,GI,2064974,447.92,HC100677,Ashfield Park Primary School,201610,Central Childrens Directorate Costs,Support Services,
INSERTED DETAIL,20/01/2016,GI,2064975,447.92,HC106103,Holmer C of E Academy,201610,Central Childrens Directorate Costs,Support Services,
INSERTED DETAIL,20/01/2016,GI,2064978,447.92,HC115716,Mordiford Church of England Primary School,201610,Central Childrens Directorate Costs,Support Services,
INSERTED DETAIL,20/01/2016,GI,2064979,447.92,HC107656,St Pauls Church of England Primary School,201610,Central Childrens Directorate Costs,Support Services,
INSERTED DETAIL,20/01/2016,GI,2064980,447.92,HC107656,St Pauls Church of England Primary School,201610,Central Childrens Directorate Costs,Support Services,
INSERTED DETAIL,20/01/2016,GI,2064981,447.92,HC115884,St Thomas Cantilupe CE Academy,201610,Central Childrens Directorate Costs,Support Services,
INSERTED DETAIL,20/01/2016,GI,2064983,447.92,HC105572,Lady Hawkins School (Academy),201610,Central Childrens Directorate Costs,Support Services,
INSERTED DETAIL,20/01/2016,GI,2064987,447.92,HC111508,Wigmore High School (Academy),201610,Central Childrens Directorate Costs,Support Services,
INSERTED DETAIL,20/01/2016,GI,2064989,447.92,HC104727,John Kyrle High School,201610,Central Childrens Directorate Costs,Support Services,
INSERTED DETAIL,20/01/2016,GI,2064990,447.92,HC104727,John Kyrle High School,201610,Central Childrens Directorate Costs,Support Services,
INSERTED DETAIL,20/01/2016,GI,2064993,447.92,HC101027,Bishop Of Herefords Bluecoat School,201610,Central Childrens Directorate Costs,Support Services,
INSERTED DETAIL,20/01/2016,GI,2064994,447.92,HC101027,Bishop Of Herefords Bluecoat School,201610,Central Childrens Directorate Costs,Support Services,
INSERTED DETAIL,20/01/2016,GI,2064996,447.92,HC101027,Bishop Of Herefords Bluecoat School,201610,Central Childrens Directorate Costs,Support Services,
INSERTED DETAIL,20/01/2016,GI,2064998,447.92,HC101027,Bishop Of Herefords Bluecoat School,201610,Central Childrens Directorate Costs,Support Services,
INSERTED DETAIL,20/01/2016,GI,2065001,447.92,HC101027,Bishop Of Herefords Bluecoat School,201610,Central Childrens Directorate Costs,Support Services,
INSERTED DETAIL,20/01/2016,GI,2065003,447.92,HC101027,Bishop Of Herefords Bluecoat School,201610,Central Childrens Directorate Costs,Support Services,
INSERTED DETAIL,20/01/2016,GI,2065006,447.92,HC110648,BAE Trust T/A The Hereford Academy,201610,Central Childrens Directorate Costs,Support Services,
INSERTED DETAIL,20/01/2016,GI,2065007,447.92,HC110648,BAE Trust T/A The Hereford Academy,201610,Central Childrens Directorate Costs,Support Services,
INSERTED DETAIL,20/01/2016,GI,2065011,447.92,HC110794,The Steiner Academy Hereford,201610,Central Childrens Directorate Costs,Support Services,
INSERTED DETAIL,20/01/2016,GI,2065014,997.92,HC113960,Barrs Court Academy,201610,Central Childrens Directorate Costs,Support Services,
INSERTED DETAIL,20/01/2016,GI,2065015,997.92,HC113960,Barrs Court Academy,201610,Central Childrens Directorate Costs,Support Services,
INSERTED DETAIL,20/01/2016,GI,2065016,997.92,HC113960,Barrs Court Academy,201610,Central Childrens Directorate Costs,Support Services,
INSERTED DETAIL,20/01/2016,GI,2065017,997.92,HC113960,Barrs Court Academy,201610,Central Childrens Directorate Costs,Support Services,
INSERTED DETAIL,20/01/2016,GI,2065018,447.92,HC113960,Barrs Court Academy,201610,Central Childrens Directorate Costs,Support Services,
INSERTED DETAIL,20/01/2016,GI,2065019,700,HC113960,Barrs Court Academy,201610,Central Childrens Directorate Costs,Support Services,
INSERTED DETAIL,20/01/2016,GI,2065020,700,HC113960,Barrs Court Academy,201610,Central Childrens Directorate Costs,Support Services,
INSERTED DETAIL,20/01/2016,GI,2065021,447.92,HC113960,Barrs Court Academy,201610,Central Childrens Directorate Costs,Support Services,
INSERTED DETAIL,20/01/2016,GI,2065022,700,HC113960,Barrs Court Academy,201610,Central Childrens Directorate Costs,Support Services,
INSERTED DETAIL,20/01/2016,GI,2065023,997.92,HC113960,Barrs Court Academy,201610,Central Childrens Directorate Costs,Support Services,
INSERTED DETAIL,20/01/2016,GI,2065024,997.92,HC113960,Barrs Court Academy,201610,Central Childrens Directorate Costs,Support Services,
INSERTED DETAIL,20/01/2016,GI,2065025,700,HC113960,Barrs Court Academy,201610,Central Childrens Directorate Costs,Support Services,
INSERTED DETAIL,20/01/2016,GI,2065026,997.92,HC113960,Barrs Court Academy,201610,Central Childrens Directorate Costs,Support Services,
INSERTED DETAIL,20/01/2016,GI,2065027,447.92,HC113960,Barrs Court Academy,201610,Central Childrens Directorate Costs,Support Services,
INSERTED DETAIL,20/01/2016,GI,2065028,"1,341.67",HC113960,Barrs Court Academy,201610,Central Childrens Directorate Costs,Support Services,
INSERTED DETAIL,20/01/2016,GI,2065029,700,HC113960,Barrs Court Academy,201610,Central Childrens Directorate Costs,Support Services,
INSERTED DETAIL,20/01/2016,GI,2065030,700,HC113960,Barrs Court Academy,201610,Central Childrens Directorate Costs,Support Services,
INSERTED DETAIL,20/01/2016,GI,2065031,997.92,HC113960,Barrs Court Academy,201610,Central Childrens Directorate Costs,Support Services,
INSERTED DETAIL,20/01/2016,GI,2065032,700,HC113960,Barrs Court Academy,201610,Central Childrens Directorate Costs,Support Services,
INSERTED DETAIL,20/01/2016,GI,2065033,700,HC113960,Barrs Court Academy,201610,Central Childrens Directorate Costs,Support Services,
INSERTED DETAIL,20/01/2016,GI,2065034,447.92,HC113960,Barrs Court Academy,201610,Central Childrens Directorate Costs,Support Services,
INSERTED DETAIL,20/01/2016,GI,2065035,997.92,HC113960,Barrs Court Academy,201610,Central Childrens Directorate Costs,Support Services,
INSERTED DETAIL,20/01/2016,GI,2065036,997.92,HC113960,Barrs Court Academy,201610,Central Childrens Directorate Costs,Support Services,
INSERTED DETAIL,20/01/2016,GI,2065037,700,HC113960,Barrs Court Academy,201610,Central Childrens Directorate Costs,Support Services,
INSERTED DETAIL,20/01/2016,GI,2065038,700,HC113960,Barrs Court Academy,201610,Central Childrens Directorate Costs,Support Services,
INSERTED DETAIL,20/01/2016,GI,2065039,997.92,HC113960,Barrs Court Academy,201610,Central Childrens Directorate Costs,Support Services,
INSERTED DETAIL,20/01/2016,GI,2065040,997.92,HC113960,Barrs Court Academy,201610,Central Childrens Directorate Costs,Support Services,
INSERTED DETAIL,20/01/2016,GI,2065041,700,HC113960,Barrs Court Academy,201610,Central Childrens Directorate Costs,Support Services,
INSERTED DETAIL,20/01/2016,GI,2065042,"1,341.67",HC113960,Barrs Court Academy,201610,Central Childrens Directorate Costs,Support Services,
INSERTED DETAIL,20/01/2016,GI,2065043,997.92,HC113960,Barrs Court Academy,201610,Central Childrens Directorate Costs,Support Services,
INSERTED DETAIL,20/01/2016,GI,2065044,997.92,HC113960,Barrs Court Academy,201610,Central Childrens Directorate Costs,Support Services,
INSERTED DETAIL,20/01/2016,GI,2065045,447.92,HC113960,Barrs Court Academy,201610,Central Childrens Directorate Costs,Support Services,
INSERTED DETAIL,20/01/2016,GI,2065046,700,HC113960,Barrs Court Academy,201610,Central Childrens Directorate Costs,Support Services,
INSERTED DETAIL,20/01/2016,GI,2065047,447.92,HC113960,Barrs Court Academy,201610,Central Childrens Directorate Costs,Support Services,
INSERTED DETAIL,20/01/2016,GI,2065048,997.92,HC113960,Barrs Court Academy,201610,Central Childrens Directorate Costs,Support Services,
INSERTED DETAIL,20/01/2016,GI,2065049,447.92,HC113960,Barrs Court Academy,201610,Central Childrens Directorate Costs,Support Services,
INSERTED DETAIL,20/01/2016,GI,2065050,447.92,HC113960,Barrs Court Academy,201610,Central Childrens Directorate Costs,Support Services,
INSERTED DETAIL,20/01/2016,GI,2065051,700,HC113960,Barrs Court Academy,201610,Central Childrens Directorate Costs,Support Services,
INSERTED DETAIL,20/01/2016,GI,2065052,700,HC113960,Barrs Court Academy,201610,Central Childrens Directorate Costs,Support Services,
INSERTED DETAIL,20/01/2016,GI,2065053,700,HC113960,Barrs Court Academy,201610,Central Childrens Directorate Costs,Support Services,
INSERTED DETAIL,20/01/2016,GI,2065054,997.92,HC113960,Barrs Court Academy,201610,Central Childrens Directorate Costs,Support Services,
INSERTED DETAIL,20/01/2016,GI,2065055,997.92,HC113960,Barrs Court Academy,201610,Central Childrens Directorate Costs,Support Services,
INSERTED DETAIL,20/01/2016,GI,2065056,"1,341.67",HC113960,Barrs Court Academy,201610,Central Childrens Directorate Costs,Support Services,
INSERTED DETAIL,20/01/2016,GI,2065057,"1,341.67",HC113960,Barrs Court Academy,201610,Central Childrens Directorate Costs,Support Services,
INSERTED DETAIL,20/01/2016,GI,2065058,700,HC113960,Barrs Court Academy,201610,Central Childrens Directorate Costs,Support Services,
INSERTED DETAIL,20/01/2016,GI,2065059,700,HC113960,Barrs Court Academy,201610,Central Childrens Directorate Costs,Support Services,
INSERTED DETAIL,20/01/2016,GI,2065060,"1,341.67",HC113960,Barrs Court Academy,201610,Central Childrens Directorate Costs,Support Services,
INSERTED DETAIL,20/01/2016,GI,2065061,700,HC113960,Barrs Court Academy,201610,Central Childrens Directorate Costs,Support Services,
INSERTED DETAIL,20/01/2016,GI,2065062,700,HC113960,Barrs Court Academy,201610,Central Childrens Directorate Costs,Support Services,
INSERTED DETAIL,20/01/2016,GI,2065063,700,HC113960,Barrs Court Academy,201610,Central Childrens Directorate Costs,Support Services,
INSERTED DETAIL,20/01/2016,GI,2065064,700,HC113960,Barrs Court Academy,201610,Central Childrens Directorate Costs,Support Services,
INSERTED DETAIL,20/01/2016,GI,2065065,997.92,HC113960,Barrs Court Academy,201610,Central Childrens Directorate Costs,Support Services,
INSERTED DETAIL,20/01/2016,GI,2065066,700,HC113960,Barrs Court Academy,201610,Central Childrens Directorate Costs,Support Services,
INSERTED DETAIL,20/01/2016,GI,2065067,447.92,HC113960,Barrs Court Academy,201610,Central Childrens Directorate Costs,Support Services,
INSERTED DETAIL,20/01/2016,GI,2065068,700,HC113960,Barrs Court Academy,201610,Central Childrens Directorate Costs,Support Services,
INSERTED DETAIL,20/01/2016,GI,2065069,700,HC113960,Barrs Court Academy,201610,Central Childrens Directorate Costs,Support Services,
INSERTED DETAIL,20/01/2016,GI,2065070,997.92,HC113960,Barrs Court Academy,201610,Central Childrens Directorate Costs,Support Services,
INSERTED DETAIL,20/01/2016,GI,2065071,997.92,HC113960,Barrs Court Academy,201610,Central Childrens Directorate Costs,Support Services,
INSERTED DETAIL,20/01/2016,GI,2065072,997.92,HC113960,Barrs Court Academy,201610,Central Childrens Directorate Costs,Support Services,
INSERTED DETAIL,20/01/2016,GI,2065073,997.92,HC113960,Barrs Court Academy,201610,Central Childrens Directorate Costs,Support Services,
INSERTED DETAIL,20/01/2016,GI,2065074,"1,341.67",HC113960,Barrs Court Academy,201610,Central Childrens Directorate Costs,Support Services,
INSERTED DETAIL,20/01/2016,GI,2065075,997.92,HC113960,Barrs Court Academy,201610,Central Childrens Directorate Costs,Support Services,
INSERTED DETAIL,20/01/2016,GI,2065076,997.92,HC113960,Barrs Court Academy,201610,Central Childrens Directorate Costs,Support Services,
INSERTED DETAIL,20/01/2016,GI,2065077,"1,341.67",HC113960,Barrs Court Academy,201610,Central Childrens Directorate Costs,Support Services,
INSERTED DETAIL,20/01/2016,GI,2065078,997.92,HC113960,Barrs Court Academy,201610,Central Childrens Directorate Costs,Support Services,
INSERTED DETAIL,20/01/2016,GI,2065079,700,HC113960,Barrs Court Academy,201610,Central Childrens Directorate Costs,Support Services,
INSERTED DETAIL,20/01/2016,GI,2065080,700,HC113960,Barrs Court Academy,201610,Central Childrens Directorate Costs,Support Services,
INSERTED DETAIL,20/01/2016,GI,2065081,700,HC113960,Barrs Court Academy,201610,Central Childrens Directorate Costs,Support Services,
INSERTED DETAIL,20/01/2016,GI,2065082,700,HC113960,Barrs Court Academy,201610,Central Childrens Directorate Costs,Support Services,
INSERTED DETAIL,20/01/2016,GI,2065083,700,HC113960,Barrs Court Academy,201610,Central Childrens Directorate Costs,Support Services,
INSERTED DETAIL,20/01/2016,GI,2065084,700,HC117835,The Brookfield School (Academy),201610,Central Childrens Directorate Costs,Support Services,
INSERTED DETAIL,20/01/2016,GI,2065085,700,HC117835,The Brookfield School (Academy),201610,Central Childrens Directorate Costs,Support Services,
INSERTED DETAIL,20/01/2016,GI,2065086,447.92,HC117835,The Brookfield School (Academy),201610,Central Childrens Directorate Costs,Support Services,
INSERTED DETAIL,20/01/2016,GI,2065087,700,HC117835,The Brookfield School (Academy),201610,Central Childrens Directorate Costs,Support Services,
INSERTED DETAIL,20/01/2016,GI,2065088,447.92,HC117835,The Brookfield School (Academy),201610,Central Childrens Directorate Costs,Support Services,
INSERTED DETAIL,20/01/2016,GI,2065089,700,HC117835,The Brookfield School (Academy),201610,Central Childrens Directorate Costs,Support Services,
INSERTED DETAIL,20/01/2016,GI,2065090,447.92,HC117835,The Brookfield School (Academy),201610,Central Childrens Directorate Costs,Support Services,
INSERTED DETAIL,20/01/2016,GI,2065091,447.92,HC117835,The Brookfield School (Academy),201610,Central Childrens Directorate Costs,Support Services,
INSERTED DETAIL,20/01/2016,GI,2065092,447.92,HC117835,The Brookfield School (Academy),201610,Central Childrens Directorate Costs,Support Services,
INSERTED DETAIL,20/01/2016,GI,2065093,700,HC117835,The Brookfield School (Academy),201610,Central Childrens Directorate Costs,Support Services,
INSERTED DETAIL,20/01/2016,GI,2065094,700,HC117835,The Brookfield School (Academy),201610,Central Childrens Directorate Costs,Support Services,
INSERTED DETAIL,20/01/2016,GI,2065095,700,HC117835,The Brookfield School (Academy),201610,Central Childrens Directorate Costs,Support Services,
INSERTED DETAIL,20/01/2016,GI,2065096,700,HC117835,The Brookfield School (Academy),201610,Central Childrens Directorate Costs,Support Services,
INSERTED DETAIL,20/01/2016,GI,2065097,700,HC117835,The Brookfield School (Academy),201610,Central Childrens Directorate Costs,Support Services,
INSERTED DETAIL,20/01/2016,GI,2065098,700,HC117835,The Brookfield School (Academy),201610,Central Childrens Directorate Costs,Support Services,
INSERTED DETAIL,20/01/2016,GI,2065099,700,HC117835,The Brookfield School (Academy),201610,Central Childrens Directorate Costs,Support Services,
INSERTED DETAIL,20/01/2016,GI,2065100,447.92,HC117835,The Brookfield School (Academy),201610,Central Childrens Directorate Costs,Support Services,
INSERTED DETAIL,20/01/2016,GI,2065101,447.92,HC117835,The Brookfield School (Academy),201610,Central Childrens Directorate Costs,Support Services,
INSERTED DETAIL,20/01/2016,GI,2065102,700,HC117835,The Brookfield School (Academy),201610,Central Childrens Directorate Costs,Support Services,
INSERTED DETAIL,20/01/2016,GI,2065104,700,HC117835,The Brookfield School (Academy),201610,Central Childrens Directorate Costs,Support Services,
INSERTED DETAIL,20/01/2016,GI,2065105,447.92,HC117835,The Brookfield School (Academy),201610,Central Childrens Directorate Costs,Support Services,
INSERTED DETAIL,20/01/2016,GI,2065106,700,HC117835,The Brookfield School (Academy),201610,Central Childrens Directorate Costs,Support Services,
INSERTED DETAIL,20/01/2016,GI,2065107,447.92,HC117835,The Brookfield School (Academy),201610,Central Childrens Directorate Costs,Support Services,
INSERTED DETAIL,20/01/2016,GI,2065108,700,HC117835,The Brookfield School (Academy),201610,Central Childrens Directorate Costs,Support Services,
INSERTED DETAIL,20/01/2016,GI,2065109,700,HC117835,The Brookfield School (Academy),201610,Central Childrens Directorate Costs,Support Services,
INSERTED DETAIL,20/01/2016,GI,2065110,447.92,HC105841,Marlbrook  Primary School,201610,Central Childrens Directorate Costs,Support Services,
INSERTED DETAIL,20/01/2016,GI,2065113,447.92,HC111701,Whitecross Hereford Academy,201610,Central Childrens Directorate Costs,Support Services,
INSERTED DETAIL,20/01/2016,GI,2065114,447.92,HC104739,John Masefield High School (Academy),201610,Central Childrens Directorate Costs,Support Services,
INSERTED DETAIL,20/01/2016,GI,2065117,447.92,HC101027,Bishop Of Herefords Bluecoat School,201610,Central Childrens Directorate Costs,Support Services,
INSERTED DETAIL,20/01/2016,GI,2065118,447.92,HC101027,Bishop Of Herefords Bluecoat School,201610,Central Childrens Directorate Costs,Support Services,
INSERTED DETAIL,20/01/2016,GI,2065120,447.92,HC101027,Bishop Of Herefords Bluecoat School,201610,Central Childrens Directorate Costs,Support Services,
INSERTED DETAIL,20/01/2016,GI,2065121,447.92,HC110083,St Mary's R C High School,201610,Central Childrens Directorate Costs,Support Services,
INSERTED DETAIL,20/01/2016,GI,2065123,447.92,HC110648,BAE Trust T/A The Hereford Academy,201610,Central Childrens Directorate Costs,Support Services,
INSERTED DETAIL,20/01/2016,GI,2065124,997.92,HC117835,The Brookfield School (Academy),201610,Central Childrens Directorate Costs,Support Services,
INSERTED DETAIL,20/01/2016,GI,2065125,700,HC117835,The Brookfield School (Academy),201610,Central Childrens Directorate Costs,Support Services,
INSERTED DETAIL,20/01/2016,GI,2065126,700,HC117835,The Brookfield School (Academy),201610,Central Childrens Directorate Costs,Support Services,
INSERTED DETAIL,20/01/2016,GI,2065127,700,HC117835,The Brookfield School (Academy),201610,Central Childrens Directorate Costs,Support Services,
INSERTED DETAIL,20/01/2016,GI,2065128,447.92,HC113960,Barrs Court Academy,201610,Central Childrens Directorate Costs,Support Services,
INSERTED DETAIL,20/01/2016,GI,2065129,997.92,HC113960,Barrs Court Academy,201610,Central Childrens Directorate Costs,Support Services,
INSERTED DETAIL,20/01/2016,GI,2065130,"1,341.67",HC113960,Barrs Court Academy,201610,Central Childrens Directorate Costs,Support Services,
INSERTED DETAIL,20/01/2016,GI,2065131,997.92,HC113960,Barrs Court Academy,201610,Central Childrens Directorate Costs,Support Services,
INSERTED DETAIL,20/01/2016,GI,2065132,997.92,HC113960,Barrs Court Academy,201610,Central Childrens Directorate Costs,Support Services,
INSERTED DETAIL,20/01/2016,GI,2065133,700,HC113960,Barrs Court Academy,201610,Central Childrens Directorate Costs,Support Services,
INSERTED DETAIL,20/01/2016,GI,2065134,700,HC113960,Barrs Court Academy,201610,Central Childrens Directorate Costs,Support Services,
INSERTED DETAIL,20/01/2016,GI,2065135,997.92,HC113960,Barrs Court Academy,201610,Central Childrens Directorate Costs,Support Services,
INSERTED DETAIL,20/01/2016,GI,2065136,447.92,HC113960,Barrs Court Academy,201610,Central Childrens Directorate Costs,Support Services,
INSERTED DETAIL,20/01/2016,GI,2065137,447.92,HC113960,Barrs Court Academy,201610,Central Childrens Directorate Costs,Support Services,
INSERTED DETAIL,20/01/2016,GI,2065138,447.92,HC113960,Barrs Court Academy,201610,Central Childrens Directorate Costs,Support Services,
INSERTED DETAIL,20/01/2016,GI,2065139,447.92,HC113960,Barrs Court Academy,201610,Central Childrens Directorate Costs,Support Services,
INSERTED DETAIL,20/01/2016,GI,2065140,997.92,HC113960,Barrs Court Academy,201610,Central Childrens Directorate Costs,Support Services,
INSERTED DETAIL,20/01/2016,GI,2065141,"1,341.67",HC113960,Barrs Court Academy,201610,Central Childrens Directorate Costs,Support Services,
INSERTED DETAIL,20/01/2016,GI,2065142,997.92,HC113960,Barrs Court Academy,201610,Central Childrens Directorate Costs,Support Services,
INSERTED DETAIL,20/01/2016,GI,2065143,"2,850.00",HC117835,The Brookfield School (Academy),201610,Central Childrens Directorate Costs,Support Services,
INSERTED DETAIL,20/01/2016,GI,2065145,447.92,HC115994,Marden Primary Academy,201610,Central Childrens Directorate Costs,Support Services,
INSERTED DETAIL,20/01/2016,GI,2065146,447.92,HC104870,Kingstone High School (Academy),201610,Central Childrens Directorate Costs,Support Services,
INSERTED DETAIL,20/01/2016,GI,2065147,447.92,HC110648,BAE Trust T/A The Hereford Academy,201610,Central Childrens Directorate Costs,Support Services,
INSERTED DETAIL,20/01/2016,GI,2065148,447.92,HC117835,The Brookfield School (Academy),201610,Central Childrens Directorate Costs,Support Services,
INSERTED DETAIL,20/01/2016,GI,2065149,447.92,HC117835,The Brookfield School (Academy),201610,Central Childrens Directorate Costs,Support Services,
INSERTED DETAIL,20/01/2016,GI,2065151,447.92,HC117835,The Brookfield School (Academy),201610,Central Childrens Directorate Costs,Support Services,
INSERTED DETAIL,20/01/2016,GI,2065153,700,HC113960,Barrs Court Academy,201610,Central Childrens Directorate Costs,Support Services,
INSERTED DETAIL,20/01/2016,GI,2065154,447.92,HC113960,Barrs Court Academy,201610,Central Childrens Directorate Costs,Support Services,
INSERTED DETAIL,20/01/2016,GI,2065155,700,HC113960,Barrs Court Academy,201610,Central Childrens Directorate Costs,Support Services,
INSERTED DETAIL,20/01/2016,GI,2065156,700,HC113960,Barrs Court Academy,201610,Central Childrens Directorate Costs,Support Services,
INSERTED DETAIL,20/01/2016,GI,2065157,447.92,HC102152,Ashperton Primary Academy,201610,Central Childrens Directorate Costs,Support Services,
INSERTED DETAIL,20/01/2016,GI,2065160,447.92,HC104761,Herefordshire Marches Federation-Lord Scudamore,201610,Central Childrens Directorate Costs,Support Services,
INSERTED DETAIL,20/01/2016,GI,2065161,447.92,HC104761,Herefordshire Marches Federation-Lord Scudamore,201610,Central Childrens Directorate Costs,Support Services,
INSERTED DETAIL,20/01/2016,GI,2065163,447.92,HC105572,Lady Hawkins School (Academy),201610,Central Childrens Directorate Costs,Support Services,
INSERTED DETAIL,20/01/2016,GI,2065164,447.92,HC113960,Barrs Court Academy,201610,Central Childrens Directorate Costs,Support Services,
INSERTED DETAIL,20/01/2016,GI,2065167,700,HC117835,The Brookfield School (Academy),201610,Central Childrens Directorate Costs,Support Services,
INSERTED DETAIL,20/01/2016,GI,2065168,700,HC117835,The Brookfield School (Academy),201610,Central Childrens Directorate Costs,Support Services,
INSERTED DETAIL,20/01/2016,GI,2065169,447.92,HC117835,The Brookfield School (Academy),201610,Central Childrens Directorate Costs,Support Services,
INSERTED DETAIL,20/01/2016,GI,2065170,447.92,HC117835,The Brookfield School (Academy),201610,Central Childrens Directorate Costs,Support Services,
INSERTED DETAIL,20/01/2016,GI,2065171,700,HC117835,The Brookfield School (Academy),201610,Central Childrens Directorate Costs,Support Services,
INSERTED DETAIL,20/01/2016,GI,2065172,447.92,HC117835,The Brookfield School (Academy),201610,Central Childrens Directorate Costs,Support Services,
INSERTED DETAIL,20/01/2016,GI,2065173,700,HC117835,The Brookfield School (Academy),201610,Central Childrens Directorate Costs,Support Services,
INSERTED DETAIL,20/01/2016,GI,2065174,700,HC107656,St Pauls Church of England Primary School,201610,Central Childrens Directorate Costs,Support Services,
INSERTED DETAIL,20/01/2016,GI,2065176,447.92,HC110794,The Steiner Academy Hereford,201610,Central Childrens Directorate Costs,Support Services,
INSERTED DETAIL,20/01/2016,GI,2065177,997.92,HC113960,Barrs Court Academy,201610,Central Childrens Directorate Costs,Support Services,
INSERTED DETAIL,20/01/2016,GI,2065178,447.92,HC118939,Riverside Primary School - HCC,201610,Central Childrens Directorate Costs,Support Services,
INSERTED DETAIL,20/01/2016,GI,2065179,447.92,HC102183,Herefordshire Marches Federation-Kings Caple,201610,Central Childrens Directorate Costs,Support Services,
INSERTED DETAIL,20/01/2016,GI,2065180,447.92,HC107656,St Pauls Church of England Primary School,201610,Central Childrens Directorate Costs,Support Services,
INSERTED DETAIL,20/01/2016,GI,2065182,447.92,HC107574,Lugwardine Primary Academy,201610,Central Childrens Directorate Costs,Support Services,
INSERTED DETAIL,20/01/2016,GI,2065184,447.92,HC118939,Riverside Primary School - HCC,201610,Central Childrens Directorate Costs,Support Services,
INSERTED DETAIL,20/01/2016,GI,2065185,700,HC117835,The Brookfield School (Academy),201610,Central Childrens Directorate Costs,Support Services,
INSERTED DETAIL,20/01/2016,GI,2065189,447.92,HC115884,St Thomas Cantilupe CE Academy,201610,Central Childrens Directorate Costs,Support Services,
INSERTED DETAIL,20/01/2016,GI,2065192,447.92,HC118940,Earl Mortimer College & Sixth Form HCC,201610,Central Childrens Directorate Costs,Support Services,
INSERTED DETAIL,20/01/2016,GI,2065199,447.92,HC113960,Barrs Court Academy,201610,Central Childrens Directorate Costs,Support Services,
INSERTED DETAIL,20/01/2016,GI,2065200,447.92,HC113960,Barrs Court Academy,201610,Central Childrens Directorate Costs,Support Services,
INSERTED DETAIL,20/01/2016,GI,2065201,447.92,HC113960,Barrs Court Academy,201610,Central Childrens Directorate Costs,Support Services,
INSERTED DETAIL,20/01/2016,GI,2065202,997.92,HC113960,Barrs Court Academy,201610,Central Childrens Directorate Costs,Support Services,
INSERTED DETAIL,20/01/2016,GI,2065203,447.92,HC110083,St Mary's R C High School,201610,Central Childrens Directorate Costs,Support Services,
INSERTED DETAIL,20/01/2016,GI,2065204,447.92,HC117835,The Brookfield School (Academy),201610,Central Childrens Directorate Costs,Support Services,
INSERTED DETAIL,20/01/2016,GI,2065206,447.92,HC101027,Bishop Of Herefords Bluecoat School,201610,Central Childrens Directorate Costs,Support Services,
INSERTED DETAIL,20/01/2016,GI,2065207,447.92,HC113960,Barrs Court Academy,201610,Central Childrens Directorate Costs,Support Services,
INSERTED DETAIL,20/01/2016,GI,2065209,997.92,HC113960,Barrs Court Academy,201610,Central Childrens Directorate Costs,Support Services,
INSERTED DETAIL,20/01/2016,GI,2065210,447.92,HC113960,Barrs Court Academy,201610,Central Childrens Directorate Costs,Support Services,
INSERTED DETAIL,20/01/2016,GI,2065211,997.92,HC113960,Barrs Court Academy,201610,Central Childrens Directorate Costs,Support Services,
INSERTED DETAIL,20/01/2016,GI,2065215,447.92,HC105571,Wigmore Primary School (Academy),201610,Central Childrens Directorate Costs,Support Services,
INSERTED DETAIL,20/01/2016,GI,2065217,447.92,HC105841,Marlbrook  Primary School,201610,Central Childrens Directorate Costs,Support Services,
INSERTED DETAIL,20/01/2016,GI,2065218,447.92,HC113960,Barrs Court Academy,201610,Central Childrens Directorate Costs,Support Services,
INSERTED DETAIL,20/01/2016,GI,2065219,447.92,HC117835,The Brookfield School (Academy),201610,Central Childrens Directorate Costs,Support Services,
INSERTED DETAIL,20/01/2016,GI,2065220,447.92,HC117835,The Brookfield School (Academy),201610,Central Childrens Directorate Costs,Support Services,
INSERTED DETAIL,20/01/2016,GI,2065222,447.92,HC104739,John Masefield High School (Academy),201610,Central Childrens Directorate Costs,Support Services,
INSERTED DETAIL,20/01/2016,GI,2065223,447.92,HC113960,Barrs Court Academy,201610,Central Childrens Directorate Costs,Support Services,
INSERTED DETAIL,20/01/2016,GI,2065224,447.92,HC113960,Barrs Court Academy,201610,Central Childrens Directorate Costs,Support Services,
INSERTED DETAIL,20/01/2016,GI,2065225,447.92,HC113960,Barrs Court Academy,201610,Central Childrens Directorate Costs,Support Services,
INSERTED DETAIL,20/01/2016,GI,2065226,700,HC113960,Barrs Court Academy,201610,Central Childrens Directorate Costs,Support Services,
INSERTED DETAIL,20/01/2016,GI,2065227,447.92,HC113960,Barrs Court Academy,201610,Central Childrens Directorate Costs,Support Services,
INSERTED DETAIL,20/01/2016,GI,2065228,447.92,HC113960,Barrs Court Academy,201610,Central Childrens Directorate Costs,Support Services,
INSERTED DETAIL,20/01/2016,GI,2065230,447.92,HC110648,BAE Trust T/A The Hereford Academy,201610,Central Childrens Directorate Costs,Support Services,
INSERTED DETAIL,20/01/2016,GI,2065231,447.92,HC101027,Bishop Of Herefords Bluecoat School,201610,Central Childrens Directorate Costs,Support Services,
INSERTED DETAIL,20/01/2016,GI,2065232,447.92,HC101027,Bishop Of Herefords Bluecoat School,201610,Central Childrens Directorate Costs,Support Services,
INSERTED DETAIL,20/01/2016,GI,2065234,447.92,HC111701,Whitecross Hereford Academy,201610,Central Childrens Directorate Costs,Support Services,
INSERTED DETAIL,20/01/2016,GI,2065235,447.92,HC117835,The Brookfield School (Academy),201610,Central Childrens Directorate Costs,Support Services,
INSERTED DETAIL,20/01/2016,GI,2065236,447.92,HC117835,The Brookfield School (Academy),201610,Central Childrens Directorate Costs,Support Services,
INSERTED DETAIL,20/01/2016,GI,2065237,447.92,HC117215,Robert Owen Vocational School,201610,Central Childrens Directorate Costs,Support Services,
INSERTED DETAIL,20/01/2016,GI,2065239,447.92,HC117835,The Brookfield School (Academy),201610,Central Childrens Directorate Costs,Support Services,
INSERTED DETAIL,20/01/2016,GI,2065241,447.92,HC113960,Barrs Court Academy,201610,Central Childrens Directorate Costs,Support Services,
INSERTED DETAIL,20/01/2016,GI,2065245,447.92,HC118939,Riverside Primary School - HCC,201610,Central Childrens Directorate Costs,Support Services,
INSERTED DETAIL,20/01/2016,GI,2065247,447.92,HC102152,Ashperton Primary Academy,201610,Central Childrens Directorate Costs,Support Services,
INSERTED DETAIL,20/01/2016,GI,2065248,"1,078.01",HC114595,Derwen College,201610,Central Childrens Directorate Costs,Support Services,
INSERTED DETAIL,20/01/2016,GI,2065249,"1,104.35",HC114595,Derwen College,201610,Central Childrens Directorate Costs,Support Services,
INSERTED DETAIL,20/01/2016,GI,2065250,"1,136.31",HC114595,Derwen College,201610,Central Childrens Directorate Costs,Support Services,
INSERTED DETAIL,20/01/2016,GI,2065251,"1,104.35",HC114595,Derwen College,201610,Central Childrens Directorate Costs,Support Services,
INSERTED DETAIL,20/01/2016,GI,2065252,"1,136.31",HC114595,Derwen College,201610,Central Childrens Directorate Costs,Support Services,
INSERTED DETAIL,20/01/2016,GI,2065253,"1,136.31",HC114595,Derwen College,201610,Central Childrens Directorate Costs,Support Services,
INSERTED DETAIL,20/01/2016,GI,2065254,"1,136.31",HC114595,Derwen College,201610,Central Childrens Directorate Costs,Support Services,
INSERTED DETAIL,20/01/2016,GI,2065255,"1,299.31",HC114595,Derwen College,201610,Central Childrens Directorate Costs,Support Services,
INSERTED DETAIL,20/01/2016,GI,2065256,"1,145.72",HC114595,Derwen College,201610,Central Childrens Directorate Costs,Support Services,
INSERTED DETAIL,20/01/2016,GI,2065257,629.49,HC114595,Derwen College,201610,Central Childrens Directorate Costs,Support Services,
INSERTED DETAIL,20/01/2016,GI,2065258,629.49,HC114595,Derwen College,201610,Central Childrens Directorate Costs,Support Services,
INSERTED DETAIL,20/01/2016,GI,2065259,629.49,HC114595,Derwen College,201610,Central Childrens Directorate Costs,Support Services,
INSERTED DETAIL,20/01/2016,GI,2065260,629.49,HC114595,Derwen College,201610,Central Childrens Directorate Costs,Support Services,
INSERTED DETAIL,20/01/2016,GI,2065261,629.49,HC114595,Derwen College,201610,Central Childrens Directorate Costs,Support Services,
INSERTED DETAIL,20/01/2016,GI,2065262,"4,789.83",HC117656,Ruskin Mill Trust (Glasshouse College),201610,Central Childrens Directorate Costs,Support Services,
INSERTED DETAIL,20/01/2016,GI,2065263,931.97,HC103460,Gloucestershire College,201610,Central Childrens Directorate Costs,Support Services,
INSERTED DETAIL,20/01/2016,GI,2065264,"4,185.50",HC114612,Hereward College,201610,Central Childrens Directorate Costs,Support Services,
INSERTED DETAIL,20/01/2016,GI,2065265,"1,676.68",HC103935,Herefordshire & Ludlow College,201610,Central Childrens Directorate Costs,Support Services,
INSERTED DETAIL,20/01/2016,GI,2065266,950,HC103935,Herefordshire & Ludlow College,201610,Central Childrens Directorate Costs,Support Services,
INSERTED DETAIL,20/01/2016,GI,2065267,700,HC103935,Herefordshire & Ludlow College,201610,Central Childrens Directorate Costs,Support Services,
INSERTED DETAIL,20/01/2016,GI,2065273,447.92,HC103935,Herefordshire & Ludlow College,201610,Central Childrens Directorate Costs,Support Services,
INSERTED DETAIL,20/01/2016,GI,2065275,447.92,HC103935,Herefordshire & Ludlow College,201610,Central Childrens Directorate Costs,Support Services,
INSERTED DETAIL,20/01/2016,GI,2065278,"3,337.92",HC114610,New College,201610,Central Childrens Directorate Costs,Support Services,
INSERTED DETAIL,20/01/2016,GI,2065279,"2,799.30",HC108927,Queen Alexandra College,201610,Central Childrens Directorate Costs,Support Services,
INSERTED DETAIL,20/01/2016,GI,2065280,835.42,HC112582,Royal National College,201610,Central Childrens Directorate Costs,Support Services,
INSERTED DETAIL,20/01/2016,GI,2065281,"1,911.67",HC114596,William Morris Camphill Community,201610,Central Childrens Directorate Costs,Support Services,
INSERTED DETAIL,20/01/2016,GI,2065284,447.92,HC108716,Stretton Sugwas CE Academy,201610,Central Childrens Directorate Costs,Support Services,
INSERTED DETAIL,20/01/2016,GI,2065285,447.92,HC115716,Mordiford Church of England Primary School,201610,Central Childrens Directorate Costs,Support Services,
INSERTED DETAIL,20/01/2016,GI,2065287,447.92,HC108716,Stretton Sugwas CE Academy,201610,Central Childrens Directorate Costs,Support Services,
INSERTED DETAIL,20/01/2016,GI,2065289,447.92,HC117835,The Brookfield School (Academy),201610,Central Childrens Directorate Costs,Support Services,
INSERTED DETAIL,20/01/2016,GI,2065290,447.92,HC117835,The Brookfield School (Academy),201610,Central Childrens Directorate Costs,Support Services,
INSERTED DETAIL,20/01/2016,GI,2065291,962.67,HC112582,Royal National College,201610,Central Childrens Directorate Costs,Support Services,
INSERTED DETAIL,20/01/2016,GI,2065292,"2,422.28",HC114613,National Star College,201610,Central Childrens Directorate Costs,Support Services,
INSERTED DETAIL,20/01/2016,GI,2065293,"1,352.82",HC114613,National Star College,201610,Central Childrens Directorate Costs,Support Services,
INSERTED DETAIL,20/01/2016,GI,2065295,447.92,HC101027,Bishop Of Herefords Bluecoat School,201610,Central Childrens Directorate Costs,Support Services,
INSERTED DETAIL,20/01/2016,GI,2065296,447.92,HC104739,John Masefield High School (Academy),201610,Central Childrens Directorate Costs,Support Services,
INSERTED DETAIL,20/01/2016,GI,2065297,447.92,HC102524,Brockhampton Primary School (Academy),201610,Central Childrens Directorate Costs,Support Services,
INSERTED DETAIL,20/01/2016,GI,2065298,447.92,HC108716,Stretton Sugwas CE Academy,201610,Central Childrens Directorate Costs,Support Services,
INSERTED DETAIL,20/01/2016,GI,2065300,447.92,HC120060,Aspire Campus- North Shropshire College,201610,Central Childrens Directorate Costs,Support Services,
INSERTED DETAIL,20/01/2016,GI,2065301,"4,036.26",HC114613,National Star College,201610,Central Childrens Directorate Costs,Support Services,
INSERTED DETAIL,20/01/2016,GI,2065302,631.41,HC106975,Hoople Ltd,201610,Central Childrens Directorate Costs,Support Services,
INSERTED DETAIL,20/01/2016,GI,2065303,"1,542.22",HC106975,Hoople Ltd,201610,Central Childrens Directorate Costs,Support Services,
INSERTED DETAIL,20/01/2016,GI,2065304,920.45,HC106975,Hoople Ltd,201610,Central Childrens Directorate Costs,Support Services,
INSERTED DETAIL,20/01/2016,GI,2065305,908.73,HC106975,Hoople Ltd,201610,Central Childrens Directorate Costs,Support Services,
INSERTED DETAIL,20/01/2016,GI,2065306,"1,553.94",HC106975,Hoople Ltd,201610,Central Childrens Directorate Costs,Support Services,
INSERTED DETAIL,20/01/2016,GI,2065307,"1,529.64",HC106975,Hoople Ltd,201610,Central Childrens Directorate Costs,Support Services,
INSERTED DETAIL,20/01/2016,GI,2065308,447.92,HC103935,Herefordshire & Ludlow College,201610,Central Childrens Directorate Costs,Support Services,
INSERTED DETAIL,20/01/2016,GI,2065309,"1,669.42",HC114613,National Star College,201610,Central Childrens Directorate Costs,Support Services,
INSERTED DETAIL,20/01/2016,GI,2065310,"1,683.88",HC114613,National Star College,201610,Central Childrens Directorate Costs,Support Services,
INSERTED DETAIL,20/01/2016,GI,2065311,"1,588.33",HC114613,National Star College,201610,Central Childrens Directorate Costs,Support Services,
INSERTED DETAIL,20/01/2016,GI,2065312,"1,076.66",HC114613,National Star College,201610,Central Childrens Directorate Costs,Support Services,
INSERTED DETAIL,20/01/2016,GI,2065313,997.2,HC114613,National Star College,201610,Central Childrens Directorate Costs,Support Services,
INSERTED DETAIL,20/01/2016,GI,2065314,"1,091.08",HC114613,National Star College,201610,Central Childrens Directorate Costs,Support Services,
INSERTED DETAIL,20/01/2016,GI,2065315,943.23,HC114613,National Star College,201610,Central Childrens Directorate Costs,Support Services,
INSERTED DETAIL,20/01/2016,GI,2065316,"1,070.16",HC114613,National Star College,201610,Central Childrens Directorate Costs,Support Services,
INSERTED DETAIL,20/01/2016,GI,2065317,447.92,HC100677,Ashfield Park Primary School,201610,Central Childrens Directorate Costs,Support Services,
INSERTED DETAIL,20/01/2016,GI,2065319,447.92,HC116854,Fairfield High School (Academy),201610,Central Childrens Directorate Costs,Support Services,
INSERTED DETAIL,20/01/2016,GI,2065320,447.92,HC117835,The Brookfield School (Academy),201610,Central Childrens Directorate Costs,Support Services,
INSERTED DETAIL,20/01/2016,GI,2065321,447.92,HC117835,The Brookfield School (Academy),201610,Central Childrens Directorate Costs,Support Services,
INSERTED DETAIL,20/01/2016,GI,2065323,447.92,HC117835,The Brookfield School (Academy),201610,Central Childrens Directorate Costs,Support Services,
INSERTED DETAIL,20/01/2016,GI,2065324,700,HC104727,John Kyrle High School,201610,Central Childrens Directorate Costs,Support Services,
INSERTED DETAIL,20/01/2016,GI,2065325,447.92,HC104727,John Kyrle High School,201610,Central Childrens Directorate Costs,Support Services,
INSERTED DETAIL,20/01/2016,GI,2065326,447.92,HC115884,St Thomas Cantilupe CE Academy,201610,Central Childrens Directorate Costs,Support Services,
INSERTED DETAIL,20/01/2016,GI,2065330,447.92,HC105073,Kingstone & Thruxton Primary School (Academy),201610,Central Childrens Directorate Costs,Support Services,
INSERTED DETAIL,20/01/2016,GI,2065332,652.08,HC104739,John Masefield High School (Academy),201610,Central Childrens Directorate Costs,Support Services,
INSERTED DETAIL,20/01/2016,GI,2065333,500,HC106975,Hoople Ltd,201610,Central Childrens Directorate Costs,Support Services,
INSERTED DETAIL,20/01/2016,GI,2065334,447.92,HC106975,Hoople Ltd,201610,Central Childrens Directorate Costs,Support Services,
INSERTED DETAIL,20/01/2016,GI,2065336,447.92,HC120103,The Plylimon Trust-Horizon Training,201610,Central Childrens Directorate Costs,Support Services,
INSERTED DETAIL,20/01/2016,GI,2065337,700,HC120103,The Plylimon Trust-Horizon Training,201610,Central Childrens Directorate Costs,Support Services,
INSERTED DETAIL,20/01/2016,GI,2065340,997.92,HC117835,The Brookfield School (Academy),201610,Central Childrens Directorate Costs,Support Services,
INSERTED DETAIL,20/01/2016,GI,2065341,700,HC117835,The Brookfield School (Academy),201610,Central Childrens Directorate Costs,Support Services,
INSERTED DETAIL,20/01/2016,GI,2065342,700,HC117835,The Brookfield School (Academy),201610,Central Childrens Directorate Costs,Support Services,
INSERTED DETAIL,20/01/2016,GI,2065343,700,HC117835,The Brookfield School (Academy),201610,Central Childrens Directorate Costs,Support Services,
INSERTED DETAIL,20/01/2016,GI,2065344,447.92,HC117835,The Brookfield School (Academy),201610,Central Childrens Directorate Costs,Support Services,
INSERTED DETAIL,20/01/2016,GI,2065345,700,HC117835,The Brookfield School (Academy),201610,Central Childrens Directorate Costs,Support Services,
INSERTED DETAIL,20/01/2016,GI,2065346,700,HC117835,The Brookfield School (Academy),201610,Central Childrens Directorate Costs,Support Services,
INSERTED DETAIL,20/01/2016,GI,2065347,700,HC117835,The Brookfield School (Academy),201610,Central Childrens Directorate Costs,Support Services,
INSERTED DETAIL,20/01/2016,GI,2065348,700,HC117835,The Brookfield School (Academy),201610,Central Childrens Directorate Costs,Support Services,
INSERTED DETAIL,20/01/2016,GI,2065349,700,HC117835,The Brookfield School (Academy),201610,Central Childrens Directorate Costs,Support Services,
INSERTED DETAIL,20/01/2016,GI,2065350,700,HC117835,The Brookfield School (Academy),201610,Central Childrens Directorate Costs,Support Services,
INSERTED DETAIL,20/01/2016,GI,2065351,"2,619.35",HC117835,The Brookfield School (Academy),201610,Central Childrens Directorate Costs,Support Services,
INSERTED DETAIL,20/01/2016,GI,2065352,"2,239.60",HC113733,Canon Pyon CE Academy,201610,Central Childrens Directorate Costs,Support Services,
INSERTED DETAIL,20/01/2016,GI,2065353,"1,328.83",HC113960,Barrs Court Academy,201610,Central Childrens Directorate Costs,Support Services,
INSERTED DETAIL,20/01/2016,GI,2065357,679.1,HC113961,Burghill Community Academy,201610,Central Childrens Directorate Costs,Support Services,
INSERTED DETAIL,20/01/2016,GI,2065358,679.1,HC104727,John Kyrle High School,201610,Central Childrens Directorate Costs,Support Services,
INSERTED DETAIL,20/01/2016,GI,2065359,627.36,HC102068,Cradley Primary School Imprest,201610,Schools,Supplies & Services,
INSERTED DETAIL,04/01/2016,GI,2065450,"35,046.00",HC119566,Lanyon Bowdler Clients account,201610,Resources,Premises-Related Expenditure,
INSERTED DETAIL,20/01/2016,GI,2065453,795.2,HC108278,Orleton C.E. Primary School Imprest,201610,Schools,Supplies & Services,
INSERTED DETAIL,15/01/2016,GI,2065458,"139,375.00",HC119259,TM - Danske ,201610,Housing & Independent Living Capital,Capital Expenditure,
INSERTED DETAIL,15/01/2016,GI,2065459,720,HC119259,TM - Danske ,201610,Housing & Independent Living Capital,Capital Expenditure,
INSERTED DETAIL,20/01/2016,GI,2067217,"28,353.54",HC107838,Ethica Resourcing Ltd,201610,Adults Operations,Employees,
INSERTED DETAIL,20/01/2016,GI,2067217,"7,238.80",HC107838,Ethica Resourcing Ltd,201610,Commissioning,Employees,
INSERTED DETAIL,20/01/2016,GI,2067217,"4,024.70",HC107838,Ethica Resourcing Ltd,201610,Commissioning Adults,Employees,
INSERTED DETAIL,20/01/2016,GI,2067217,"4,758.01",HC107838,Ethica Resourcing Ltd,201610,Communities,Employees,
INSERTED DETAIL,20/01/2016,GI,2067217,"3,164.54",HC107838,Ethica Resourcing Ltd,201610,Education and Commissioning,Employees,
INSERTED DETAIL,20/01/2016,GI,2067217,"2,071.56",HC107838,Ethica Resourcing Ltd,201610,Mental Health,Employees,
INSERTED DETAIL,20/01/2016,GI,2067217,"7,046.55",HC107838,Ethica Resourcing Ltd,201610,Public Health,Employees,
INSERTED DETAIL,20/01/2016,GI,2067217,"1,807.03",HC107838,Ethica Resourcing Ltd,201610,Resources,Employees,
INSERTED DETAIL,20/01/2016,GI,2067217,"78,265.53",HC107838,Ethica Resourcing Ltd,201610,Safeguarding and Family Support,Employees,
INSERTED DETAIL,20/01/2016,GI,2067217,"2,012.50",HC107838,Ethica Resourcing Ltd,201610,Transformation and safeguarding,Employees,
INSERTED DETAIL,20/01/2016,GI,2067217,"3,816.56",HC107838,REDACTED,201610,Adults Operations,Employees,
INSERTED DETAIL,20/01/2016,GI,2067217,"15,560.65",HC107838,REDACTED,201610,Safeguarding and Family Support,Employees,
INSERTED DETAIL,22/01/2016,GI,2067218,615.78,HC111402,Weobley High School Petty Cash,201610,Schools,Employees,
INSERTED DETAIL,22/01/2016,GI,2067218,"1,963.93",HC111402,Weobley High School Petty Cash,201610,Schools,Supplies & Services,
INSERTED DETAIL,22/01/2016,GI,2067219,"28,353.54",HC107838,Ethica Resourcing Ltd,201610,Adults Operations,Employees,
INSERTED DETAIL,22/01/2016,GI,2067219,"7,238.80",HC107838,Ethica Resourcing Ltd,201610,Commissioning,Employees,
INSERTED DETAIL,22/01/2016,GI,2067219,"4,024.70",HC107838,Ethica Resourcing Ltd,201610,Commissioning Adults,Employees,
INSERTED DETAIL,22/01/2016,GI,2067219,"4,758.01",HC107838,Ethica Resourcing Ltd,201610,Communities,Employees,
INSERTED DETAIL,22/01/2016,GI,2067219,"3,164.54",HC107838,Ethica Resourcing Ltd,201610,Education and Commissioning,Employees,
INSERTED DETAIL,22/01/2016,GI,2067219,"2,071.56",HC107838,Ethica Resourcing Ltd,201610,Mental Health,Employees,
INSERTED DETAIL,22/01/2016,GI,2067219,"7,046.55",HC107838,Ethica Resourcing Ltd,201610,Public Health,Employees,
INSERTED DETAIL,22/01/2016,GI,2067219,"1,807.03",HC107838,Ethica Resourcing Ltd,201610,Resources,Employees,
INSERTED DETAIL,22/01/2016,GI,2067219,"78,265.53",HC107838,Ethica Resourcing Ltd,201610,Safeguarding and Family Support,Employees,
INSERTED DETAIL,22/01/2016,GI,2067219,"2,012.50",HC107838,Ethica Resourcing Ltd,201610,Transformation and safeguarding,Employees,
INSERTED DETAIL,22/01/2016,GI,2067219,"3,816.56",HC107838,REDACTED,201610,Adults Operations,Employees,
INSERTED DETAIL,22/01/2016,GI,2067219,"15,560.65",HC107838,REDACTED,201610,Safeguarding and Family Support,Employees,
INSERTED DETAIL,22/01/2016,WM,2068527,883.29,HC108443,West Mercia Energy,201610,Commissioning,Premises-Related Expenditure,
INSERTED DETAIL,22/01/2016,WM,2068527,883.29,,West Mercia Energy,201610,Commissioning,Premises-Related Expenditure,Energy Costs
INSERTED DETAIL,22/01/2016,WM,2068528,"1,090.44",HC108443,West Mercia Energy,201610,Commissioning,Premises-Related Expenditure,
INSERTED DETAIL,22/01/2016,WM,2068528,"1,090.44",,West Mercia Energy,201610,Commissioning,Premises-Related Expenditure,Energy Costs
INSERTED DETAIL,22/01/2016,WM,2068531,"1,167.46",HC108443,West Mercia Energy,201610,Schools,Premises-Related Expenditure,
INSERTED DETAIL,22/01/2016,WM,2068531,"1,167.46",,West Mercia Energy,201610,Schools,Premises-Related Expenditure,Energy Costs
INSERTED DETAIL,22/01/2016,WM,2068558,755.43,HC108443,West Mercia Energy,201610,Schools,Premises-Related Expenditure,
INSERTED DETAIL,22/01/2016,WM,2068558,755.43,,West Mercia Energy,201610,Schools,Premises-Related Expenditure,Energy Costs
INSERTED DETAIL,22/01/2016,WM,2068561,999.38,HC108443,West Mercia Energy,201610,Schools,Premises-Related Expenditure,
INSERTED DETAIL,22/01/2016,WM,2068561,999.38,,West Mercia Energy,201610,Schools,Premises-Related Expenditure,Energy Costs
INSERTED DETAIL,22/01/2016,WM,2068562,979.05,HC108443,West Mercia Energy,201610,Commissioning,Premises-Related Expenditure,
INSERTED DETAIL,22/01/2016,WM,2068562,979.05,,West Mercia Energy,201610,Commissioning,Premises-Related Expenditure,Energy Costs
INSERTED DETAIL,22/01/2016,WM,2068564,"1,515.85",HC108443,West Mercia Energy,201610,Schools,Premises-Related Expenditure,
INSERTED DETAIL,22/01/2016,WM,2068564,"1,515.85",,West Mercia Energy,201610,Schools,Premises-Related Expenditure,Energy Costs
INSERTED DETAIL,22/01/2016,WM,2068567,729.8,HC108443,West Mercia Energy,201610,Schools,Premises-Related Expenditure,
INSERTED DETAIL,22/01/2016,WM,2068567,729.8,,West Mercia Energy,201610,Schools,Premises-Related Expenditure,Energy Costs
INSERTED DETAIL,22/01/2016,WM,2068568,528.63,HC108443,West Mercia Energy,201610,Commissioning,Premises-Related Expenditure,
INSERTED DETAIL,22/01/2016,WM,2068568,528.63,,West Mercia Energy,201610,Commissioning,Premises-Related Expenditure,Energy Costs
INSERTED DETAIL,22/01/2016,WM,2068570,608.86,HC108443,West Mercia Energy,201610,Commissioning,Premises-Related Expenditure,
INSERTED DETAIL,22/01/2016,WM,2068570,608.86,,West Mercia Energy,201610,Commissioning,Premises-Related Expenditure,Energy Costs
INSERTED DETAIL,22/01/2016,WM,2068573,751.69,HC108443,West Mercia Energy,201610,Commissioning,Premises-Related Expenditure,
INSERTED DETAIL,22/01/2016,WM,2068573,751.69,,West Mercia Energy,201610,Commissioning,Premises-Related Expenditure,Energy Costs
INSERTED DETAIL,22/01/2016,WM,2068577,"2,677.31",HC108443,West Mercia Energy,201610,Commissioning,Premises-Related Expenditure,
INSERTED DETAIL,22/01/2016,WM,2068577,"2,677.31",,West Mercia Energy,201610,Commissioning,Premises-Related Expenditure,Energy Costs
INSERTED DETAIL,22/01/2016,WM,2068578,"1,760.11",HC108443,West Mercia Energy,201610,Commissioning,Premises-Related Expenditure,
INSERTED DETAIL,22/01/2016,WM,2068578,"1,760.11",,West Mercia Energy,201610,Commissioning,Premises-Related Expenditure,Energy Costs
INSERTED DETAIL,22/01/2016,WM,2068583,754.27,HC108443,West Mercia Energy,201610,Schools,Premises-Related Expenditure,
INSERTED DETAIL,22/01/2016,WM,2068583,754.27,,West Mercia Energy,201610,Schools,Premises-Related Expenditure,Energy Costs
INSERTED DETAIL,22/01/2016,WM,2068585,858.39,HC108443,West Mercia Energy,201610,Schools,Premises-Related Expenditure,
INSERTED DETAIL,22/01/2016,WM,2068585,858.39,,West Mercia Energy,201610,Schools,Premises-Related Expenditure,Energy Costs
INSERTED DETAIL,22/01/2016,WM,2068586,806.04,HC108443,West Mercia Energy,201610,Commissioning,Premises-Related Expenditure,
INSERTED DETAIL,22/01/2016,WM,2068586,806.04,,West Mercia Energy,201610,Commissioning,Premises-Related Expenditure,Energy Costs
INSERTED DETAIL,22/01/2016,WM,2068588,857.98,HC108443,West Mercia Energy,201610,Commissioning,Premises-Related Expenditure,
INSERTED DETAIL,22/01/2016,WM,2068588,857.98,,West Mercia Energy,201610,Commissioning,Premises-Related Expenditure,Energy Costs
INSERTED DETAIL,22/01/2016,WM,2068595,"2,165.50",HC108443,West Mercia Energy,201610,Commissioning,Premises-Related Expenditure,
INSERTED DETAIL,22/01/2016,WM,2068595,"2,165.50",,West Mercia Energy,201610,Commissioning,Premises-Related Expenditure,Energy Costs
INSERTED DETAIL,22/01/2016,WM,2068601,"1,946.80",HC108443,West Mercia Energy,201610,Commissioning,Premises-Related Expenditure,
INSERTED DETAIL,22/01/2016,WM,2068601,"1,946.80",,West Mercia Energy,201610,Commissioning,Premises-Related Expenditure,Energy Costs
INSERTED DETAIL,27/01/2016,GI,2068924,"1,103.57",HC102533,The Golden Valley Practice,201610,Public Health,Supplies & Services,
INSERTED DETAIL,27/01/2016,GI,2068925,"1,264.05",HC110075,St Katherines Surgery,201610,Public Health,Supplies & Services,
INSERTED DETAIL,27/01/2016,GI,2068926,"2,532.38",HC102578,Dr Turnbull & Partners,201610,Public Health,Supplies & Services,
INSERTED DETAIL,27/01/2016,GI,2068927,"1,222.86",HC103586,Greyfriars Surgery,201610,Public Health,Supplies & Services,
INSERTED DETAIL,27/01/2016,GI,2068928,"2,205.00",HC110687,The Marches Surgery,201610,Public Health,Supplies & Services,
INSERTED DETAIL,27/01/2016,GI,2068929,613.57,HC111398,Weobley And Staunton On Wye Surgery,201610,Public Health,Supplies & Services,
INSERTED DETAIL,27/01/2016,GI,2068930,"3,471.19",HC109627,Sarum House Surgery,201610,Public Health,Supplies & Services,
INSERTED DETAIL,27/01/2016,GI,2068931,857.5,HC107826,Much Birch Surgery,201610,Public Health,Supplies & Services,
INSERTED DETAIL,27/01/2016,GI,2068932,"3,228.33",HC106310,Moorfield House Surgery,201610,Public Health,Supplies & Services,
INSERTED DETAIL,27/01/2016,GI,2068933,"3,226.19",HC101470,Cantilupe Surgery,201610,Public Health,Supplies & Services,
INSERTED DETAIL,27/01/2016,GI,2068934,"1,550.24",HC112817,Drs T.G. Mathias & Partners,201610,Public Health,Supplies & Services,
INSERTED DETAIL,27/01/2016,GI,2068935,982.14,HC100412,Alton Street Surgery,201610,Public Health,Supplies & Services,
INSERTED DETAIL,27/01/2016,GI,2068936,"1,427.74",HC111328,Wargrave House Surgery,201610,Public Health,Supplies & Services,
INSERTED DETAIL,27/01/2016,GI,2068937,"1,185.95",HC108530,Pendeen Surgery,201610,Public Health,Supplies & Services,
INSERTED DETAIL,27/01/2016,GI,2068938,"2,409.88",HC108926,Quay House Medical Centre,201610,Public Health,Supplies & Services,
INSERTED DETAIL,27/01/2016,GI,2068939,"2,163.81",HC100946,Belmont Medical Centre,201610,Public Health,Supplies & Services,
INSERTED DETAIL,29/01/2016,GI,2068941,451.1,HC113047,Children's Social Care,201610,Safeguarding and Family Support,Third Party Payments,
INSERTED DETAIL,27/01/2016,GI,2068944,439.08,HC108165,REDACTED,201610,Safeguarding and Family Support,Employees,
INSERTED DETAIL,02/12/2015,GI,2069071,500,HC119027,Benefits Immediate Payments,201610,Collection Fund,Transfer Payments,
INSERTED DETAIL,29/01/2016,GI,2069115,"17,915.62",HC107838,Ethica Resourcing Ltd,201610,Adults Operations,Employees,
INSERTED DETAIL,29/01/2016,GI,2069115,"6,758.84",HC107838,Ethica Resourcing Ltd,201610,Commissioning,Employees,
INSERTED DETAIL,29/01/2016,GI,2069115,"3,502.59",HC107838,Ethica Resourcing Ltd,201610,Commissioning Adults,Employees,
INSERTED DETAIL,29/01/2016,GI,2069115,"6,555.76",HC107838,Ethica Resourcing Ltd,201610,Communities,Employees,
INSERTED DETAIL,29/01/2016,GI,2069115,"3,068.54",HC107838,Ethica Resourcing Ltd,201610,Education and Commissioning,Employees,
INSERTED DETAIL,29/01/2016,GI,2069115,"2,003.40",HC107838,Ethica Resourcing Ltd,201610,Mental Health,Employees,
INSERTED DETAIL,29/01/2016,GI,2069115,"8,246.50",HC107838,Ethica Resourcing Ltd,201610,Public Health,Employees,
INSERTED DETAIL,29/01/2016,GI,2069115,"2,172.82",HC107838,Ethica Resourcing Ltd,201610,Resources,Employees,
INSERTED DETAIL,29/01/2016,GI,2069115,"73,202.83",HC107838,Ethica Resourcing Ltd,201610,Safeguarding and Family Support,Employees,
INSERTED DETAIL,29/01/2016,GI,2069115,"2,613.10",HC107838,Ethica Resourcing Ltd,201610,Transformation and safeguarding,Employees,
INSERTED DETAIL,29/01/2016,GI,2069115,"5,194.11",HC107838,REDACTED,201610,Adults Operations,Employees,
INSERTED DETAIL,29/01/2016,GI,2069115,"10,824.21",HC107838,REDACTED,201610,Safeguarding and Family Support,Employees,
INSERTED DETAIL,13/01/2016,GI,2069116,822.5,HC101389,REDACTED,201610,Safeguarding and Family Support,Transport-Related Expenditure,
INSERTED DETAIL,17/01/2016,GI,2069914,490,HC119027,Benefits Immediate Payments,201610,Collection Fund,Transfer Payments,
INSERTED DETAIL,22/01/2016,GI,2069915,438,HC119027,Benefits Immediate Payments,201610,Collection Fund,Transfer Payments,
INSERTED DETAIL,28/01/2016,GI,2069926,450,HC119027,Benefits Immediate Payments,201610,Collection Fund,Transfer Payments,
INSERTED DETAIL,29/01/2016,GI,2069932,475,HC119027,Benefits Immediate Payments,201610,Collection Fund,Transfer Payments,
INSERTED DETAIL,08/01/2016,OI,3805768,"11,323.72",HC106975,Hoople Ltd,201610,Communities Capital,Suspense Accounts,
INSERTED DETAIL,08/01/2016,OI,3806255,865,HC119489,Cottage Web Design,201610,Schools,Supplies & Services,
INSERTED DETAIL,22/01/2016,OI,3807097,"8,135.34",HC106975,Hoople Ltd,201610,Resources,Supplies & Services,
INSERTED DETAIL,08/01/2016,OI,3807209,"6,535.78",HC106975,Hoople Ltd,201610,Resources,Supplies & Services,
INSERTED DETAIL,27/01/2016,OI,3810329,568.57,HC106975,Hoople Ltd,201610,Resources,Supplies & Services,
INSERTED DETAIL,08/01/2016,OI,3813112,"23,302.00",HC111181,Vaisala Ltd,201610,Commissioning,Supplies & Services,
INSERTED DETAIL,29/01/2016,OI,3813347,663,HC103660,Halo Leisure Services Ltd,201610,Schools,Premises-Related Expenditure,
INSERTED DETAIL,08/01/2016,OI,3815221,"13,029.60",HC117406,SSI Schaefer Ltd,201610,Commissioning,Supplies & Services,
INSERTED DETAIL,15/01/2016,OI,3815560,"1,500.00",HC109927,Socitm Ltd,201610,Resources,Supplies & Services,
INSERTED DETAIL,15/01/2016,OI,3816321,"2,925.00",HC101060,Blue Line Taxis,201610,Commissioning,Transport-Related Expenditure,
INSERTED DETAIL,29/01/2016,OI,3816564,"11,807.78",HC110117,Stagecoach Services Limited,201610,Commissioning,Third Party Payments,
INSERTED DETAIL,06/01/2016,OI,3816635,480,HC118686,Orona Limited,201610,Growth Capital,Capital Expenditure,
INSERTED DETAIL,13/01/2016,OI,3816665,"43,352.00",HC100213,REDACTED,201610,Safeguarding and Family Support,Supplies & Services,
INSERTED DETAIL,13/01/2016,OI,3816748,"3,287.10",HC101287,Bruel & Kjaer UK Ltd,201610,Commissioning,Supplies & Services,
INSERTED DETAIL,13/01/2016,OI,3816758,834,HC101890,Close House Projects,201610,Education and Commissioning,Third Party Payments,
INSERTED DETAIL,06/01/2016,OI,3816785,569.44,HC102910,Environmental Scientifics Group Ltd,201610,Commissioning,Supplies & Services,
INSERTED DETAIL,06/01/2016,OI,3816929,"13,083.33",HC110303,Stonham,201610,Commissioning Adults,Supplies & Services,
INSERTED DETAIL,06/01/2016,OI,3816930,"24,166.67",HC110303,Stonham,201610,Commissioning Adults,Supplies & Services,
INSERTED DETAIL,06/01/2016,OI,3817104,"2,110.00",HC109848,Sign-Rite Uk Ltd,201610,Growth Capital,Capital Expenditure,
INSERTED DETAIL,06/01/2016,OI,3817130,593.95,HC106071,Midshire Business Systems Ltd,201610,Schools,Supplies & Services,
INSERTED DETAIL,06/01/2016,OI,3817146,630.6,HC102232,Dancefest,201610,Schools,Supplies & Services,
INSERTED DETAIL,06/01/2016,OI,3817152,455.01,HC105512,Lord Combustion Services Ltd,201610,Schools,Premises-Related Expenditure,
INSERTED DETAIL,13/01/2016,OI,3817216,"2,041.66",HC118951,Participation People,201610,Central Childrens Directorate Costs,Third Party Payments,
INSERTED DETAIL,06/01/2016,OI,3817227,"1,303.50",HC108505,Pearson Education Ltd,201610,Schools,Suspense Accounts,
INSERTED DETAIL,13/01/2016,OI,3817347,"1,530.00",HC112806,Digicard Systems Ltd,201610,Commissioning,Supplies & Services,
INSERTED DETAIL,22/01/2016,OI,3817354,"27,789.66",HC117682,Portakabin Ltd,201610,Education and Commissioning,Premises-Related Expenditure,
INSERTED DETAIL,08/01/2016,OI,3817448,"1,262.70",HC102608,DSG Retail Limited - PC World Business,201610,Schools,Supplies & Services,
INSERTED DETAIL,06/01/2016,OI,3817488,600,HC120285,Gannah Ltd,201610,Resources,Supplies & Services,
INSERTED DETAIL,06/01/2016,OI,3817531,"3,000.00",HC110990,G M Joyce Surfacing Ltd,201610,Schools Devolved Capital,Capital Expenditure,
INSERTED DETAIL,06/01/2016,OI,3817573,"1,530.00",HC101060,Blue Line Taxis,201610,Commissioning,Transport-Related Expenditure,
INSERTED DETAIL,13/01/2016,OI,3817586,"6,925.00",HC120199,REDACTED,201610,Commissioning,Supplies & Services,
INSERTED DETAIL,20/01/2016,OI,3817622,"1,315,402.00",HC106975,Hoople Ltd,201610,Resources,Third Party Payments,
INSERTED DETAIL,08/01/2016,OI,3817636,466,HC107983,NES Ltd,201610,Schools,Premises-Related Expenditure,
INSERTED DETAIL,06/01/2016,OI,3817644,820.5,HC106975,Hoople Ltd,201610,Commissioning Adults,Supplies & Services,
INSERTED DETAIL,06/01/2016,OI,3817732,"2,700.00",HC111013,Tribal Education Ltd,201610,Education and Commissioning,Supplies & Services,
INSERTED DETAIL,06/01/2016,OI,3817745,"23,048.93",HC100411,Altodigital Networks  Ltd,201610,Resources,Supplies & Services,
INSERTED DETAIL,06/01/2016,OI,3817746,"2,750.00",HC107261,REDACTED,201610,Schools,Premises-Related Expenditure,
INSERTED DETAIL,06/01/2016,OI,3817769,446.02,HC103526,Gough Bailey Wright,201610,Commissioning,Supplies & Services,
INSERTED DETAIL,06/01/2016,OI,3817770,501.95,HC103526,Gough Bailey Wright,201610,Commissioning,Supplies & Services,
INSERTED DETAIL,06/01/2016,OI,3817774,495,HC102941,Discovery Education Europe Ltd,201610,Schools,Supplies & Services,
INSERTED DETAIL,06/01/2016,OI,3817780,501.95,HC103526,Gough Bailey Wright,201610,Commissioning,Supplies & Services,
INSERTED DETAIL,06/01/2016,OI,3817813,"1,737.66",HC105477,Local Government Association,201610,Communities,Supplies & Services,
INSERTED DETAIL,06/01/2016,OI,3817836,"1,059.00",HC102156,D & D Network Services Ltd,201610,Schools,Supplies & Services,
INSERTED DETAIL,06/01/2016,OI,3817868,531.63,HC108443,West Mercia Energy,201610,Schools,Premises-Related Expenditure,
INSERTED DETAIL,06/01/2016,OI,3817909,"1,090.00",HC101414,C Stanley Jones & Co,201610,Commissioning,Supplies & Services,
INSERTED DETAIL,06/01/2016,OI,3817910,"1,751.00",HC100165,ABC Print Ltd,201610,Director and Management,Supplies & Services,
INSERTED DETAIL,27/01/2016,OI,3817961,846.3,HC111347,Watson Petroleum Limited,201610,Schools,Premises-Related Expenditure,
INSERTED DETAIL,22/01/2016,OI,3818008,"1,838.53",HC117651,Michael Page International Recruitment Ltd,201610,Communities,Employees,
INSERTED DETAIL,13/01/2016,OI,3818103,"4,925.55",HC110683,REDACTED,201610,Safeguarding and Family Support,Supplies & Services,
INSERTED DETAIL,06/01/2016,OI,3818118,"2,250.00",HC111997,SMS Energy Services,201610,Growth Capital,Capital Expenditure,
INSERTED DETAIL,06/01/2016,OI,3818127,"3,100.00",HC103398,Geotechnical Instruments (UK) Ltd,201610,Commissioning,Supplies & Services,
INSERTED DETAIL,06/01/2016,OI,3818134,500.56,HC109997,Spa Gas Ltd,201610,Schools,Premises-Related Expenditure,
INSERTED DETAIL,06/01/2016,OI,3818137,"1,170.00",HC115966,Hoople Ltd (Easypay Services Ltd),201610,Schools,Suspense Accounts,
INSERTED DETAIL,06/01/2016,OI,3818138,"1,053.00",HC115966,Hoople Ltd (Easypay Services Ltd),201610,Schools,Suspense Accounts,
INSERTED DETAIL,06/01/2016,OI,3818139,"1,053.00",HC115966,Hoople Ltd (Easypay Services Ltd),201610,Schools,Suspense Accounts,
INSERTED DETAIL,06/01/2016,OI,3818141,600,HC115590,Phillips & Leslie Education Consultants,201610,Schools,Supplies & Services,
INSERTED DETAIL,06/01/2016,OI,3818145,"9,084.60",HC114833,NEPRO Limited,201610,Growth,Employees,
INSERTED DETAIL,06/01/2016,OI,3818157,"2,857.80",HC100385,Alliance In Partnership,201610,Schools,Supplies & Services,
INSERTED DETAIL,06/01/2016,OI,3818176,500,HC103189,Create Safter Orginisations,201610,Schools,Employees,
INSERTED DETAIL,13/01/2016,OI,3818179,"5,306.62",HC106975,Hoople Ltd,201610,Integrated Commissioning,Capital Expenditure,
INSERTED DETAIL,13/01/2016,OI,3818180,"4,045.38",HC106975,Hoople Ltd,201610,Integrated Commissioning,Capital Expenditure,
INSERTED DETAIL,06/01/2016,OI,3818181,"7,507.80",HC106975,Hoople Ltd,201610,Resources,Third Party Payments,
INSERTED DETAIL,06/01/2016,OI,3818197,"2,520.00",HC109134,Reed Business Information,201610,Safeguarding and Family Support,Suspense Accounts,
INSERTED DETAIL,08/01/2016,OI,3818204,480,HC112326,Lyndon Scaffolding Plc,201610,Commissioning,Premises-Related Expenditure,
INSERTED DETAIL,13/01/2016,OI,3818210,"1,050.00",HC111013,Tribal Education Ltd,201610,Education and Commissioning,Supplies & Services,
INSERTED DETAIL,13/01/2016,OI,3818211,900,HC111013,Tribal Education Ltd,201610,Education and Commissioning,Supplies & Services,
INSERTED DETAIL,06/01/2016,OI,3818223,582.2,HC106305,Monnow Electrical Services,201610,Schools,Premises-Related Expenditure,
INSERTED DETAIL,06/01/2016,OI,3818232,833,HC100220,Activate Educational Ltd,201610,Schools,Employees,
INSERTED DETAIL,06/01/2016,OI,3818237,"1,032.00",HC110034,Superstars/Sports Stars Ltd,201610,Schools,Supplies & Services,
INSERTED DETAIL,06/01/2016,OI,3818239,"3,528.00",HC111136,University Of Birmingham,201610,Safeguarding and Family Support,Supplies & Services,
INSERTED DETAIL,13/01/2016,OI,3818240,"5,555.67",HC100035,Bromsgrove District Council,201610,Commissioning,Supplies & Services,
INSERTED DETAIL,06/01/2016,OI,3818241,"27,789.66",HC117682,Portakabin Ltd,201610,Education and Commissioning,Premises-Related Expenditure,
INSERTED DETAIL,06/01/2016,OI,3818243,861.07,HC103526,Gough Bailey Wright,201610,Commissioning,Supplies & Services,
INSERTED DETAIL,06/01/2016,OI,3818244,"1,909.45",HC110944,Totalpoint Ltd,201610,Resources,Premises-Related Expenditure,
INSERTED DETAIL,06/01/2016,OI,3818248,"4,088.00",HC106362,Ant's Help Ltd,201610,Education and Commissioning,Supplies & Services,
INSERTED DETAIL,06/01/2016,OI,3818249,882,HC105863,The Cart Shed,201610,Education and Commissioning,Supplies & Services,
INSERTED DETAIL,06/01/2016,OI,3818250,"1,490.00",HC101798,CIPFA,201610,Resources,Employees,
INSERTED DETAIL,06/01/2016,OI,3818261,428.54,HC102362,Dell Corporation Ltd,201610,Schools,Supplies & Services,
INSERTED DETAIL,06/01/2016,OI,3818268,774,HC110034,Superstars/Sports Stars Ltd,201610,Schools,Supplies & Services,
INSERTED DETAIL,06/01/2016,OI,3818269,"1,015.00",HC109997,Spa Gas Ltd,201610,Schools,Premises-Related Expenditure,
INSERTED DETAIL,06/01/2016,OI,3818270,512.79,HC109997,Spa Gas Ltd,201610,Schools,Premises-Related Expenditure,
INSERTED DETAIL,06/01/2016,OI,3818283,447.77,HC109997,Spa Gas Ltd,201610,Schools,Premises-Related Expenditure,
INSERTED DETAIL,06/01/2016,OI,3818287,519.67,HC111426,West Mercia Supplies (The Consortium),201610,Schools,Supplies & Services,
INSERTED DETAIL,06/01/2016,OI,3818302,421.9,HC109997,Spa Gas Ltd,201610,Schools,Premises-Related Expenditure,
INSERTED DETAIL,06/01/2016,OI,3818312,"2,700.00",HC111013,Tribal Education Ltd,201610,Education and Commissioning,Supplies & Services,
INSERTED DETAIL,06/01/2016,OI,3818324,497.49,HC103526,Gough Bailey Wright,201610,Commissioning,Supplies & Services,
INSERTED DETAIL,06/01/2016,OI,3818325,441.55,HC103526,Gough Bailey Wright,201610,Commissioning,Supplies & Services,
INSERTED DETAIL,06/01/2016,OI,3818328,900,HC111013,Tribal Education Ltd,201610,Education and Commissioning,Supplies & Services,
INSERTED DETAIL,06/01/2016,OI,3818337,"8,820.00",HC114833,NEPRO Limited,201610,Central Childrens Directorate Costs,Supplies & Services,
INSERTED DETAIL,06/01/2016,OI,3818342,"8,003.10",HC114833,NEPRO Limited,201610,Growth,Employees,
INSERTED DETAIL,06/01/2016,OI,3818344,"2,860.00",HC105024,Keysoft Solutions Ltd,201610,Commissioning,Supplies & Services,
INSERTED DETAIL,06/01/2016,OI,3818348,450,HC111013,Tribal Education Ltd,201610,Education and Commissioning,Supplies & Services,
INSERTED DETAIL,20/01/2016,OI,3818351,"1,329.80",HC103585,Gresswell,201610,Communities,Supplies & Services,
INSERTED DETAIL,06/01/2016,OI,3818352,"1,275.00",HC120333,KMP Training and Consultancy,201610,Communities,Employees,
INSERTED DETAIL,06/01/2016,OI,3818354,"12,500.00",HC118301,Herefordshire Vennture - Hereford Street Pastors,201610,Growth,Transfer Payments,
INSERTED DETAIL,06/01/2016,OI,3818355,"2,500.00",HC118977,Herefordshire Vennture,201610,Growth,Transfer Payments,
INSERTED DETAIL,06/01/2016,OI,3818356,"15,000.00",HC119318,Herefordshire Vennture-Hereford Family Pastors,201610,Growth,Transfer Payments,
INSERTED DETAIL,06/01/2016,OI,3818357,805.13,HC103526,Gough Bailey Wright,201610,Commissioning,Supplies & Services,
INSERTED DETAIL,22/01/2016,OI,3818358,"3,395.10",HC102028,Cotswold Business Supplies,201610,Schools Devolved Capital,Suspense Accounts,
INSERTED DETAIL,06/01/2016,OI,3818361,720,HC100879,Barrettine Environmental Health,201610,Commissioning,Supplies & Services,
INSERTED DETAIL,06/01/2016,OI,3818363,819,HC100385,Alliance In Partnership,201610,Schools,Supplies & Services,
INSERTED DETAIL,06/01/2016,OI,3818366,"1,527.75",HC100385,Alliance In Partnership,201610,Schools,Supplies & Services,
INSERTED DETAIL,06/01/2016,OI,3818392,"1,380.00",HC118306,REDACTED,201610,Schools,Premises-Related Expenditure,
INSERTED DETAIL,06/01/2016,OI,3818398,"5,000.00",HC116511,Inform CPI Ltd,201610,Resources,Supplies & Services,
INSERTED DETAIL,06/01/2016,OI,3818399,740,HC110459,The Key Support Services Ltd,201610,Schools,Employees,
INSERTED DETAIL,06/01/2016,OI,3818406,"1,232.00",HC103243,Frome Private Hire Cars,201610,Commissioning,Transport-Related Expenditure,
INSERTED DETAIL,06/01/2016,OI,3818412,"1,585.00",HC104674,JMC Monmouth Ltd,201610,Learning Disabilities,Transport-Related Expenditure,
INSERTED DETAIL,06/01/2016,OI,3818413,"1,100.82",HC104674,JMC Monmouth Ltd,201610,Learning Disabilities,Transport-Related Expenditure,
INSERTED DETAIL,06/01/2016,OI,3818414,"1,680.01",HC104674,JMC Monmouth Ltd,201610,Commissioning,Transport-Related Expenditure,
INSERTED DETAIL,06/01/2016,OI,3818415,"1,330.00",HC104674,JMC Monmouth Ltd,201610,Commissioning,Transport-Related Expenditure,
INSERTED DETAIL,06/01/2016,OI,3818416,"2,393.98",HC104674,JMC Monmouth Ltd,201610,Commissioning,Transport-Related Expenditure,
INSERTED DETAIL,06/01/2016,OI,3818417,"1,960.00",HC104674,JMC Monmouth Ltd,201610,Commissioning,Transport-Related Expenditure,
INSERTED DETAIL,06/01/2016,OI,3818418,"1,855.00",HC118023,REDACTED,201610,Commissioning,Transport-Related Expenditure,
INSERTED DETAIL,08/01/2016,OI,3818419,"1,075.00",HC117920,Avonside Taxis,201610,Commissioning,Transport-Related Expenditure,
INSERTED DETAIL,06/01/2016,OI,3818420,"1,279.88",HC100090,A J Watkins,201610,Commissioning,Transport-Related Expenditure,
INSERTED DETAIL,06/01/2016,OI,3818421,"2,660.00",HC100090,A J Watkins,201610,Commissioning,Transport-Related Expenditure,
INSERTED DETAIL,06/01/2016,OI,3818422,981.12,HC100090,A J Watkins,201610,Commissioning,Transport-Related Expenditure,
INSERTED DETAIL,06/01/2016,OI,3818423,"1,465.10",HC104165,I & S Coaches,201610,Commissioning,Transport-Related Expenditure,
INSERTED DETAIL,06/01/2016,OI,3818424,"8,462.73",HC100493,George Youngs Coaches Ltd,201610,Commissioning,Transport-Related Expenditure,
INSERTED DETAIL,08/01/2016,OI,3818425,"4,956.00",HC116150,Roy Browns Coaches,201610,Commissioning,Transport-Related Expenditure,
INSERTED DETAIL,06/01/2016,OI,3818426,"2,310.00",HC116149,M & J Travel,201610,Commissioning,Transport-Related Expenditure,
INSERTED DETAIL,06/01/2016,OI,3818428,840,HC112110,REDACTED,201610,Commissioning,Transport-Related Expenditure,
INSERTED DETAIL,06/01/2016,OI,3818436,816,HC106106,Minibus Services,201610,Learning Disabilities,Transport-Related Expenditure,
INSERTED DETAIL,06/01/2016,OI,3818438,"67,657.00",HC110117,Stagecoach Services Limited,201610,Commissioning,Third Party Payments,
INSERTED DETAIL,15/01/2016,OI,3818450,"3,190.50",HC116984,The Heritage Practice,201610,Commissioning,Suspense Accounts,
INSERTED DETAIL,15/01/2016,OI,3818451,"2,361.00",HC116984,The Heritage Practice,201610,Commissioning,Suspense Accounts,
INSERTED DETAIL,15/01/2016,OI,3818452,"2,445.00",HC116984,The Heritage Practice,201610,Commissioning,Suspense Accounts,
INSERTED DETAIL,15/01/2016,OI,3818453,"2,830.50",HC116984,The Heritage Practice,201610,Commissioning,Suspense Accounts,
INSERTED DETAIL,15/01/2016,OI,3818454,"2,647.50",HC116984,The Heritage Practice,201610,Commissioning,Suspense Accounts,
INSERTED DETAIL,06/01/2016,OI,3818474,"1,817.90",HC102718,Pearson,201610,Schools,Supplies & Services,
INSERTED DETAIL,06/01/2016,OI,3818475,776.45,HC102718,Pearson,201610,Schools,Supplies & Services,
INSERTED DETAIL,06/01/2016,OI,3818476,"111,071.00",HC111603,Worcestershire County Council,201610,Commissioning,Third Party Payments,
INSERTED DETAIL,06/01/2016,OI,3818480,"1,008.20",HC109962,Kier Construction - Central Div of Kier Construction Ltd,201610,Children & Young People Capital,Capital Expenditure,
INSERTED DETAIL,06/01/2016,OI,3818482,"1,779.00",HC105814,Just Checking Ltd,201610,Transformation and safeguarding,Supplies & Services,
INSERTED DETAIL,06/01/2016,OI,3818486,750,HC107261,REDACTED,201610,Schools,Premises-Related Expenditure,
INSERTED DETAIL,06/01/2016,OI,3818487,557.05,HC108789,Preservation Equipment Ltd,201610,Communities,Supplies & Services,
INSERTED DETAIL,06/01/2016,OI,3818490,"1,000.00",HC118475,REDACTED,201610,Communities,Supplies & Services,
INSERTED DETAIL,08/01/2016,OI,3818493,450,HC120024,Protec Fire Detection PLC,201610,Communities,Supplies & Services,
INSERTED DETAIL,08/01/2016,OI,3818495,"1,918.00",HC120195,The Albion Foundation,201610,Schools,Supplies & Services,
INSERTED DETAIL,06/01/2016,OI,3818504,800,HC117419,JGP Resourcing Ltd,201610,Resources,Supplies & Services,
INSERTED DETAIL,13/01/2016,OI,3818507,661.5,HC116317,NOCN,201610,Education and Commissioning,Supplies & Services,
INSERTED DETAIL,08/01/2016,OI,3818509,"2,002.00",HC116149,M & J Travel,201610,Commissioning,Transport-Related Expenditure,
INSERTED DETAIL,08/01/2016,OI,3818510,427.2,HC113109,REDACTED,201610,Commissioning,Transport-Related Expenditure,
INSERTED DETAIL,06/01/2016,OI,3818511,708,HC119330,REDACTED,201610,Commissioning,Transport-Related Expenditure,
INSERTED DETAIL,06/01/2016,OI,3818512,"2,200.00",HC101060,Blue Line Taxis,201610,Commissioning,Transport-Related Expenditure,
INSERTED DETAIL,13/01/2016,OI,3818513,"1,512.00",HC101060,Blue Line Taxis,201610,Commissioning,Transport-Related Expenditure,
INSERTED DETAIL,08/01/2016,OI,3818514,"17,000.00",HC108134,Northgate Information Solutions UK Ltd,201610,Communities,Supplies & Services,
INSERTED DETAIL,08/01/2016,OI,3818515,"79,606.68",HC108307,Owen Pell Ltd,201610,Growth Capital,Capital Expenditure,
INSERTED DETAIL,08/01/2016,OI,3818516,"4,200.00",HC103935,Herefordshire & Ludlow College,201610,Education and Commissioning,Supplies & Services,
INSERTED DETAIL,08/01/2016,OI,3818526,690,HC104259,Informatics Computing Ltd,201610,Schools,Supplies & Services,
INSERTED DETAIL,08/01/2016,OI,3818532,"2,085.58",HC104352,J P Catering,201610,Schools,Supplies & Services,
INSERTED DETAIL,08/01/2016,OI,3818535,458.72,HC104882,K T Gooch,201610,Schools,Supplies & Services,
INSERTED DETAIL,13/01/2016,OI,3818538,563.76,HC111779,Morepack (Packaging) Ltd,201610,Communities,Supplies & Services,
INSERTED DETAIL,08/01/2016,OI,3818541,"44,841.86",HC108307,Owen Pell Ltd,201610,Growth Capital,Capital Expenditure,
INSERTED DETAIL,08/01/2016,OI,3818542,504,HC104097,Hope For Children & Their Families Ltd,201610,Education and Commissioning,Supplies & Services,
INSERTED DETAIL,08/01/2016,OI,3818543,"1,838.53",HC117651,Michael Page International Recruitment Ltd,201610,Communities,Employees,
INSERTED DETAIL,08/01/2016,OI,3818548,"3,923.40",HC119093,DJN Planning Limited,201610,Commissioning,Third Party Payments,
INSERTED DETAIL,08/01/2016,OI,3818552,"1,225.50",HC105192,Ashfords LLP,201610,Communities,Supplies & Services,
INSERTED DETAIL,13/01/2016,OI,3818561,"5,859.00",HC106003,Metric Group Ltd,201610,Commissioning,Supplies & Services,
INSERTED DETAIL,08/01/2016,OI,3818572,"31,101.00",HC111535,Grant Thornton,201610,Resources,Supplies & Services,
INSERTED DETAIL,08/01/2016,OI,3818573,"6,035.31",HC119724,Tiller Research,201610,Public Health,Supplies & Services,
INSERTED DETAIL,13/01/2016,OI,3818583,"1,473.00",HC108814,Print Plus,201610,Growth,Supplies & Services,
INSERTED DETAIL,13/01/2016,OI,3818586,"3,884.85",HC119949,Joedan Manufacturing UK Ltd,201610,Schools Devolved Capital,Capital Expenditure,
INSERTED DETAIL,13/01/2016,OI,3818587,470,HC104855,TMS Consultancy,201610,Commissioning,Transfer Payments,
INSERTED DETAIL,08/01/2016,OI,3818594,"1,009.71",HC101472,Capita Business Services Ltd,201610,Resources,Supplies & Services,
INSERTED DETAIL,08/01/2016,OI,3818597,478.65,HC101377,Booker Cash & Carry (Direct Debit),201610,Schools,Supplies & Services,
INSERTED DETAIL,08/01/2016,OI,3818598,"1,350.00",HC110429,Encore Enterprises,201610,Schools,Supplies & Services,
INSERTED DETAIL,08/01/2016,OI,3818604,"2,409.90",HC116124,Woods of Whitchurch,201610,Schools,Supplies & Services,
INSERTED DETAIL,13/01/2016,OI,3818616,"2,199.54",HC109622,Sargeants Brothers Ltd,201610,Commissioning,Transport-Related Expenditure,
INSERTED DETAIL,08/01/2016,OI,3818617,"1,820.00",HC109622,Sargeants Brothers Ltd,201610,Commissioning,Transport-Related Expenditure,
INSERTED DETAIL,08/01/2016,OI,3818618,"14,000.00",HC109622,Sargeants Brothers Ltd,201610,Commissioning,Transport-Related Expenditure,
INSERTED DETAIL,08/01/2016,OI,3818621,680,HC106786,Mr M C Lane (Country Cars),201610,Learning Disabilities,Transport-Related Expenditure,
INSERTED DETAIL,08/01/2016,OI,3818624,420.01,HC109443,S & R Taxis,201610,Physical Disabilities,Transport-Related Expenditure,
INSERTED DETAIL,08/01/2016,OI,3818628,503.65,HC100633,Arriva Trains Wales Ltd,201610,Commissioning,Transport-Related Expenditure,
INSERTED DETAIL,08/01/2016,OI,3818631,"4,331.15",HC100633,Arriva Trains Wales Ltd,201610,Commissioning,Transport-Related Expenditure,
INSERTED DETAIL,08/01/2016,OI,3818632,"12,689.20",HC100633,Arriva Trains Wales Ltd,201610,Commissioning,Transport-Related Expenditure,
INSERTED DETAIL,08/01/2016,OI,3818633,"12,248.25",HC100633,Arriva Trains Wales Ltd,201610,Commissioning,Transport-Related Expenditure,
INSERTED DETAIL,08/01/2016,OI,3818634,"4,790.15",HC100633,Arriva Trains Wales Ltd,201610,Commissioning,Transport-Related Expenditure,
INSERTED DETAIL,08/01/2016,OI,3818635,"3,823.40",HC100633,Arriva Trains Wales Ltd,201610,Commissioning,Transport-Related Expenditure,
INSERTED DETAIL,08/01/2016,OI,3818636,"5,321.90",HC100633,Arriva Trains Wales Ltd,201610,Commissioning,Transport-Related Expenditure,
INSERTED DETAIL,08/01/2016,OI,3818637,"5,618.90",HC100633,Arriva Trains Wales Ltd,201610,Commissioning,Transport-Related Expenditure,
INSERTED DETAIL,08/01/2016,OI,3818638,"6,255.15",HC100633,Arriva Trains Wales Ltd,201610,Commissioning,Transport-Related Expenditure,
INSERTED DETAIL,08/01/2016,OI,3818639,"4,787.00",HC100633,Arriva Trains Wales Ltd,201610,Commissioning,Transport-Related Expenditure,
INSERTED DETAIL,08/01/2016,OI,3818640,"6,213.90",HC100633,Arriva Trains Wales Ltd,201610,Commissioning,Transport-Related Expenditure,
INSERTED DETAIL,08/01/2016,OI,3818641,"6,053.50",HC100633,Arriva Trains Wales Ltd,201610,Commissioning,Transport-Related Expenditure,
INSERTED DETAIL,08/01/2016,OI,3818642,"5,557.05",HC100633,Arriva Trains Wales Ltd,201610,Commissioning,Transport-Related Expenditure,
INSERTED DETAIL,08/01/2016,OI,3818643,"21,168.90",HC100633,Arriva Trains Wales Ltd,201610,Commissioning,Transport-Related Expenditure,
INSERTED DETAIL,08/01/2016,OI,3818647,"8,051.20",HC119408,The Wharf 1771 Ltd,201610,Growth Capital,Capital Expenditure,
INSERTED DETAIL,08/01/2016,OI,3818648,430,HC110760,The Red Ridge Centre,201610,Schools,Supplies & Services,
INSERTED DETAIL,08/01/2016,OI,3818652,"29,092.62",HC120412,Salop Design & Engineering,201610,Growth Capital,Capital Expenditure,
INSERTED DETAIL,08/01/2016,OI,3818657,"1,600.00",HC105639,King Henry High School,201610,Education and Commissioning,Support Services,
INSERTED DETAIL,08/01/2016,OI,3818660,474.73,HC100656,Allstar Business Solutions Ltd (Arval),201610,Commissioning,Transport-Related Expenditure,
INSERTED DETAIL,13/01/2016,OI,3818667,714.45,HC111426,West Mercia Supplies (The Consortium),201610,Schools,Supplies & Services,
INSERTED DETAIL,13/01/2016,OI,3818668,"7,568.56",HC119068,Multidrive Ltd,201610,Growth Capital,Capital Expenditure,
INSERTED DETAIL,20/01/2016,OI,3818669,"12,454.00",HC100495,C M Davies,201610,Commissioning,Transport-Related Expenditure,
INSERTED DETAIL,13/01/2016,OI,3818670,"2,754.62",HC104879,K S Harris Transport,201610,Commissioning,Transport-Related Expenditure,
INSERTED DETAIL,13/01/2016,OI,3818672,925,HC101060,Blue Line Taxis,201610,Commissioning,Transport-Related Expenditure,
INSERTED DETAIL,13/01/2016,OI,3818674,849.99,HC101060,Blue Line Taxis,201610,Commissioning,Transport-Related Expenditure,
INSERTED DETAIL,13/01/2016,OI,3818675,"1,120.01",HC101060,Blue Line Taxis,201610,Commissioning,Transport-Related Expenditure,
INSERTED DETAIL,13/01/2016,OI,3818676,"2,380.00",HC101060,Blue Line Taxis,201610,Commissioning,Transport-Related Expenditure,
INSERTED DETAIL,13/01/2016,OI,3818677,"1,539.97",HC101060,Blue Line Taxis,201610,Commissioning,Transport-Related Expenditure,
INSERTED DETAIL,13/01/2016,OI,3818678,"1,680.00",HC101060,Blue Line Taxis,201610,Commissioning,Transport-Related Expenditure,
INSERTED DETAIL,13/01/2016,OI,3818679,"1,820.00",HC101060,Blue Line Taxis,201610,Commissioning,Transport-Related Expenditure,
INSERTED DETAIL,13/01/2016,OI,3818680,"2,240.01",HC101060,Blue Line Taxis,201610,Commissioning,Transport-Related Expenditure,
INSERTED DETAIL,13/01/2016,OI,3818681,"2,240.01",HC101060,Blue Line Taxis,201610,Commissioning,Transport-Related Expenditure,
INSERTED DETAIL,13/01/2016,OI,3818682,"1,400.00",HC101060,Blue Line Taxis,201610,Commissioning,Transport-Related Expenditure,
INSERTED DETAIL,13/01/2016,OI,3818683,651.45,HC101003,Bikold Ltd,201610,Schools,Supplies & Services,
INSERTED DETAIL,13/01/2016,OI,3818685,660,HC109794,REDACTED,201610,Adults Operations,Supplies & Services,
INSERTED DETAIL,13/01/2016,OI,3818686,891,HC109794,REDACTED,201610,Adults Operations,Supplies & Services,
INSERTED DETAIL,13/01/2016,OI,3818688,"12,012.50",HC119964,PJH Management Consulting Ltd,201610,Directors,Supplies & Services,
INSERTED DETAIL,13/01/2016,OI,3818693,"7,087.50",HC120088,Nystart Limited,201610,Resources,Suspense Accounts,
INSERTED DETAIL,13/01/2016,OI,3818694,"2,550.01",HC114874,HCT Construction Consultants Ltd,201610,Growth Capital,Capital Expenditure,
INSERTED DETAIL,13/01/2016,OI,3818695,899.96,HC116631,Howl Associates Ltd,201610,Growth Capital,Capital Expenditure,
INSERTED DETAIL,13/01/2016,OI,3818696,"3,480.00",HC114874,HCT Construction Consultants Ltd,201610,Growth Capital,Capital Expenditure,
INSERTED DETAIL,13/01/2016,OI,3818698,"1,254.00",HC108505,Pearson Education Ltd,201610,Schools,Supplies & Services,
INSERTED DETAIL,22/01/2016,OI,3818699,"6,134.00",HC106975,Hoople Ltd,201610,Resources,Third Party Payments,
INSERTED DETAIL,13/01/2016,OI,3818700,"31,314.50",HC106975,Hoople Ltd,201610,Resources,Supplies & Services,
INSERTED DETAIL,13/01/2016,OI,3818705,"28,914.00",HC110607,The Extracare Charitable Trust,201610,Physical Disabilities,Third Party Payments,
INSERTED DETAIL,13/01/2016,OI,3818710,645,HC101060,Blue Line Taxis,201610,Commissioning,Transport-Related Expenditure,
INSERTED DETAIL,13/01/2016,OI,3818713,"30,875.00",HC112977,Brightstripe - Cultural Health CIC,201610,Public Health,Supplies & Services,
INSERTED DETAIL,15/01/2016,OI,3818714,"1,200.00",HC118296, Landmark Chambers,201610,Communities,Supplies & Services,
INSERTED DETAIL,13/01/2016,OI,3818715,"1,540.00",HC101060,REDACTED,201610,Safeguarding and Family Support,Transport-Related Expenditure,
INSERTED DETAIL,13/01/2016,OI,3818716,"2,520.00",HC101060,Blue Line Taxis,201610,Commissioning,Transport-Related Expenditure,
INSERTED DETAIL,13/01/2016,OI,3818717,"1,557.00",HC101060,Blue Line Taxis,201610,Safeguarding and Family Support,Transport-Related Expenditure,
INSERTED DETAIL,13/01/2016,OI,3818718,659.99,HC101060,Blue Line Taxis,201610,Commissioning,Transport-Related Expenditure,
INSERTED DETAIL,13/01/2016,OI,3818719,"1,540.00",HC101060,Blue Line Taxis,201610,Commissioning,Transport-Related Expenditure,
INSERTED DETAIL,13/01/2016,OI,3818720,"1,008.00",HC101060,Blue Line Taxis,201610,Commissioning,Transport-Related Expenditure,
INSERTED DETAIL,15/01/2016,OI,3818722,600,HC111136,University Of Birmingham,201610,Adults Operations,Supplies & Services,
INSERTED DETAIL,13/01/2016,OI,3818723,574.01,HC101060,Blue Line Taxis,201610,Commissioning,Transport-Related Expenditure,
INSERTED DETAIL,13/01/2016,OI,3818724,"1,650.00",HC101060,REDACTED,201610,Safeguarding and Family Support,Transport-Related Expenditure,
INSERTED DETAIL,13/01/2016,OI,3818725,"1,010.00",HC101060,REDACTED,201610,Safeguarding and Family Support,Transport-Related Expenditure,
INSERTED DETAIL,15/01/2016,OI,3818726,"2,150.00",HC103102,Egbert H Taylor & Company Ltd,201610,Commissioning,Supplies & Services,
INSERTED DETAIL,15/01/2016,OI,3818727,540,HC101060,Blue Line Taxis,201610,Commissioning,Transport-Related Expenditure,
INSERTED DETAIL,15/01/2016,OI,3818730,"1,120.00",HC101060,Blue Line Taxis,201610,Commissioning,Transport-Related Expenditure,
INSERTED DETAIL,15/01/2016,OI,3818731,600,HC101060,Blue Line Taxis,201610,Commissioning,Transport-Related Expenditure,
INSERTED DETAIL,13/01/2016,OI,3818736,"1,639.10",HC117865,Food For Thought,201610,Schools,Supplies & Services,
INSERTED DETAIL,13/01/2016,OI,3818740,803.82,HC113877,Albion Computers PLC,201610,Schools,Supplies & Services,
INSERTED DETAIL,22/01/2016,OI,3818743,480,HC120139,REDACTED,201610,Schools,Supplies & Services,
INSERTED DETAIL,15/01/2016,OI,3818744,"4,125.00",HC120236,Planning and Management Ltd,201610,Growth,Supplies & Services,
INSERTED DETAIL,13/01/2016,OI,3818745,"5,196.10",HC105282,Herecad Enterprises Ltd,201610,Schools,Supplies & Services,
INSERTED DETAIL,13/01/2016,OI,3818748,"1,753.30",HC103869,Wye Valley NHS Trust,201610,Schools,Supplies & Services,
INSERTED DETAIL,13/01/2016,OI,3818766,"2,739.88",HC110110,Staffordshire County Council,201610,Communities,Supplies & Services,
INSERTED DETAIL,20/01/2016,OI,3818768,"4,125.00",HC118706,NPS Group Ltd T/A NPS Property Consultants,201610,Resources,Third Party Payments,
INSERTED DETAIL,20/01/2016,OI,3818769,"4,334.00",HC118706,NPS Group Ltd T/A NPS Property Consultants,201610,Resources,Suspense Accounts,
INSERTED DETAIL,15/01/2016,OI,3818770,"1,350.00",HC112891,Sports Plus Scheme Ltd,201610,Schools,Supplies & Services,
INSERTED DETAIL,13/01/2016,OI,3818771,530,HC110459,The Key Support Services Ltd,201610,Schools,Supplies & Services,
INSERTED DETAIL,13/01/2016,OI,3818772,525.6,HC105926,Mavis Russell Cleaning Ltd,201610,Schools,Premises-Related Expenditure,
INSERTED DETAIL,13/01/2016,OI,3818780,"2,250.00",HC119700,REDACTED,201610,Communities,Supplies & Services,
INSERTED DETAIL,13/01/2016,OI,3818788,765,HC103642,H Mason & Son Ltd,201610,Schools,Premises-Related Expenditure,
INSERTED DETAIL,13/01/2016,OI,3818817,635,HC119899,Team Bees Ltd,201610,Schools,Supplies & Services,
INSERTED DETAIL,20/01/2016,OI,3818818,"2,879.50",HC100385,Alliance In Partnership,201610,Schools,Supplies & Services,
INSERTED DETAIL,13/01/2016,OI,3818822,723.69,HC100976,Bespoke Cleaning Services,201610,Schools,Premises-Related Expenditure,
INSERTED DETAIL,13/01/2016,OI,3818823,"1,052.76",HC100976,Bespoke Cleaning Services,201610,Schools,Premises-Related Expenditure,
INSERTED DETAIL,13/01/2016,OI,3818830,887.62,HC101123,Boss,201610,Schools,Supplies & Services,
INSERTED DETAIL,13/01/2016,OI,3818834,"3,686.79",HC100976,Bespoke Cleaning Services,201610,Schools,Premises-Related Expenditure,
INSERTED DETAIL,13/01/2016,OI,3818837,"2,731.76",HC110227,Stretton Care Limited,201610,Physical Disabilities,Third Party Payments,
INSERTED DETAIL,20/01/2016,OI,3818839,"5,150.00",HC114833,NEPRO Limited,201610,Commissioning,Premises-Related Expenditure,
INSERTED DETAIL,15/01/2016,OI,3818841,"1,359.05",HC117651,Michael Page International Recruitment Ltd,201610,Communities,Employees,
INSERTED DETAIL,13/01/2016,OI,3818846,"3,283.20",HC110531,The British Library,201610,Communities,Supplies & Services,
INSERTED DETAIL,13/01/2016,OI,3818850,563.3,HC101861,Clearview Cleaning Services,201610,Schools,Premises-Related Expenditure,
INSERTED DETAIL,15/01/2016,OI,3818859,719.74,HC101003,Bikold Ltd,201610,Schools,Supplies & Services,
INSERTED DETAIL,15/01/2016,OI,3818861,771.76,HC101003,Bikold Ltd,201610,Schools,Supplies & Services,
INSERTED DETAIL,15/01/2016,OI,3818864,"2,861.10",HC111071,Turner & Co (Rent A/C),201610,Resources,Premises-Related Expenditure,
INSERTED DETAIL,15/01/2016,OI,3818866,"4,187.85",HC105563,Lugg Valley Primrose Travel Ltd,201610,Commissioning,Third Party Payments,
INSERTED DETAIL,15/01/2016,OI,3818867,"17,424.03",HC111071,Turner & Co (Rent A/C),201610,Resources,Premises-Related Expenditure,
INSERTED DETAIL,15/01/2016,OI,3818868,"1,889.49",HC111071,Turner & Co (Rent A/C),201610,Resources,Premises-Related Expenditure,
INSERTED DETAIL,20/01/2016,OI,3818869,"1,250.00",HC106975,Hoople Ltd,201610,Commissioning,Third Party Payments,
INSERTED DETAIL,15/01/2016,OI,3818870,480,HC103869,Wye Valley NHS Trust,201610,Commissioning,Supplies & Services,
INSERTED DETAIL,15/01/2016,OI,3818875,"11,160.88",HC110117,Stagecoach Services Limited,201610,Commissioning,Third Party Payments,
INSERTED DETAIL,15/01/2016,OI,3818876,731.99,HC101126,Bowyer's Coaches,201610,Commissioning,Third Party Payments,
INSERTED DETAIL,15/01/2016,OI,3818877,"6,911.87",HC109622,Sargeants Brothers Ltd,201610,Commissioning,Third Party Payments,
INSERTED DETAIL,15/01/2016,OI,3818878,"3,564.17",HC103869,Wye Valley NHS Trust,201610,Education and Commissioning,Third Party Payments,
INSERTED DETAIL,15/01/2016,OI,3818879,"4,641.26",HC103869,Wye Valley NHS Trust,201610,Education and Commissioning,Third Party Payments,
INSERTED DETAIL,15/01/2016,OI,3818883,"1,131.90",HC112977,Brightstripe - Cultural Health CIC,201610,Education and Commissioning,Supplies & Services,
INSERTED DETAIL,15/01/2016,OI,3818884,490,HC112977,Brightstripe - Cultural Health CIC,201610,Education and Commissioning,Supplies & Services,
INSERTED DETAIL,15/01/2016,OI,3818885,490,HC112977,Brightstripe - Cultural Health CIC,201610,Education and Commissioning,Supplies & Services,
INSERTED DETAIL,15/01/2016,OI,3818891,"2,832.60",HC106310,Moorfield House Surgery,201610,Commissioning,Supplies & Services,
INSERTED DETAIL,15/01/2016,OI,3818892,"2,184.00",HC103621,H & H Motors,201610,Commissioning,Transport-Related Expenditure,
INSERTED DETAIL,15/01/2016,OI,3818893,"1,217.86",HC103621,H & H Motors,201610,Commissioning,Transport-Related Expenditure,
INSERTED DETAIL,15/01/2016,OI,3818894,"1,393.02",HC103621,H & H Motors,201610,Commissioning,Transport-Related Expenditure,
INSERTED DETAIL,15/01/2016,OI,3818895,"1,015.00",HC103621,H & H Motors,201610,Commissioning,Transport-Related Expenditure,
INSERTED DETAIL,15/01/2016,OI,3818897,"2,654.23",HC106310,Moorfield House Surgery,201610,Commissioning,Supplies & Services,
INSERTED DETAIL,15/01/2016,OI,3818898,"2,535.86",HC106310,Moorfield House Surgery,201610,Commissioning,Supplies & Services,
INSERTED DETAIL,15/01/2016,OI,3818899,"2,535.86",HC106310,Moorfield House Surgery,201610,Commissioning,Supplies & Services,
INSERTED DETAIL,15/01/2016,OI,3818900,"2,072.60",HC106310,Moorfield House Surgery,201610,Commissioning,Supplies & Services,
INSERTED DETAIL,15/01/2016,OI,3818905,458.61,HC111426,West Mercia Supplies (The Consortium),201610,Schools,Supplies & Services,
INSERTED DETAIL,15/01/2016,OI,3818907,"1,736.01",HC103621,H & H Motors,201610,Commissioning,Transport-Related Expenditure,
INSERTED DETAIL,15/01/2016,OI,3818908,"1,540.01",HC103621,H & H Motors,201610,Commissioning,Transport-Related Expenditure,
INSERTED DETAIL,20/01/2016,OI,3818914,609.36,HC103526,Gough Bailey Wright,201610,Commissioning,Supplies & Services,
INSERTED DETAIL,20/01/2016,OI,3818915,581.39,HC103526,Gough Bailey Wright,201610,Commissioning,Supplies & Services,
INSERTED DETAIL,15/01/2016,OI,3818917,"1,068.00",HC102096,CLA (Country Land & Business Association),201610,Resources,Supplies & Services,
INSERTED DETAIL,15/01/2016,OI,3818918,"5,471.51",HC118836,Llangattock School Ltd,201610,Education and Commissioning,Third Party Payments,
INSERTED DETAIL,15/01/2016,OI,3818920,"1,600.00",HC102539,Cheshire West & Chester Council,201610,Education and Commissioning,Support Services,
INSERTED DETAIL,15/01/2016,OI,3818921,"1,808.68",HC114774,Independent Clinical Services Ltd T/A Thornbury Nursing Services,201610,Education and Commissioning,Third Party Payments,
INSERTED DETAIL,15/01/2016,OI,3818922,"1,304.04",HC114774,Independent Clinical Services Ltd T/A Thornbury Nursing Services,201610,Education and Commissioning,Third Party Payments,
INSERTED DETAIL,15/01/2016,OI,3818923,"1,808.68",HC114774,Independent Clinical Services Ltd T/A Thornbury Nursing Services,201610,Education and Commissioning,Third Party Payments,
INSERTED DETAIL,15/01/2016,OI,3818924,453.15,HC114774,Independent Clinical Services Ltd T/A Thornbury Nursing Services,201610,Education and Commissioning,Third Party Payments,
INSERTED DETAIL,15/01/2016,OI,3818925,927.8,HC114774,Independent Clinical Services Ltd T/A Thornbury Nursing Services,201610,Education and Commissioning,Third Party Payments,
INSERTED DETAIL,15/01/2016,OI,3818926,"1,541.48",HC114774,Independent Clinical Services Ltd T/A Thornbury Nursing Services,201610,Education and Commissioning,Third Party Payments,
INSERTED DETAIL,15/01/2016,OI,3818928,873.92,HC114774,Independent Clinical Services Ltd T/A Thornbury Nursing Services,201610,Education and Commissioning,Third Party Payments,
INSERTED DETAIL,15/01/2016,OI,3818930,"1,292.82",HC119950,REDACTED,201610,Safeguarding and Family Support,Supplies & Services,
INSERTED DETAIL,15/01/2016,OI,3818931,875,HC104761,Herefordshire Marches Federation-Lord Scudamore,201610,Education and Commissioning,Employees,
INSERTED DETAIL,15/01/2016,OI,3818932,"1,255.50",HC107737,MS & EM Patrick Ltd,201610,Commissioning,Supplies & Services,
INSERTED DETAIL,15/01/2016,OI,3818937,"2,050.00",HC106941,Omnibus Solutions Ltd,201610,Commissioning,Supplies & Services,
INSERTED DETAIL,15/01/2016,OI,3818938,"2,045.00",HC111431,West Midlands Employers,201610,Resources,Supplies & Services,
INSERTED DETAIL,27/01/2016,OI,3818939,585,HC111431,West Midlands Employers,201610,Central Childrens Directorate Costs,Employees,
INSERTED DETAIL,15/01/2016,OI,3818944,493,HC120261,ServiceSport UK Ltd,201610,Communities,Supplies & Services,
INSERTED DETAIL,15/01/2016,OI,3818948,"8,000.00",HC118035,McKie Consulting Limited,201610,Commissioning,Supplies & Services,
INSERTED DETAIL,15/01/2016,OI,3818956,"23,559.12",HC111181,Vaisala Ltd,201610,Commissioning,Supplies & Services,
INSERTED DETAIL,15/01/2016,OI,3818958,"1,092.00",HC105863,The Cart Shed,201610,Education and Commissioning,Supplies & Services,
INSERTED DETAIL,15/01/2016,OI,3818961,"4,576.00",HC100728,Veolia Transport T/A Astons Coaches,201610,Commissioning,Third Party Payments,
INSERTED DETAIL,15/01/2016,OI,3818964,"1,854.56",HC111685,Yeomans Travel Ltd,201610,Commissioning,Third Party Payments,
INSERTED DETAIL,15/01/2016,OI,3818965,"7,055.00",HC109622,Sargeants Brothers Ltd,201610,Commissioning,Third Party Payments,
INSERTED DETAIL,15/01/2016,OI,3818970,420,HC101060,Blue Line Taxis,201610,Commissioning,Transport-Related Expenditure,
INSERTED DETAIL,22/01/2016,OI,3818971,545,HC103982,HVOSS,201610,Learning Disabilities,Transport-Related Expenditure,
INSERTED DETAIL,15/01/2016,OI,3818973,980,HC101060,Blue Line Taxis,201610,Commissioning,Transport-Related Expenditure,
INSERTED DETAIL,15/01/2016,OI,3818974,"1,260.00",HC103621,H & H Motors,201610,Commissioning,Transport-Related Expenditure,
INSERTED DETAIL,20/01/2016,OI,3818975,"3,000.00",HC112494,St Michael's Hospice,201610,Adults Operations,Supplies & Services,
INSERTED DETAIL,15/01/2016,OI,3818981,"1,306.20",HC101969,CVA Ledbury & District,201610,Commissioning,Transport-Related Expenditure,
INSERTED DETAIL,15/01/2016,OI,3818991,"1,260.00",HC101060,Blue Line Taxis,201610,Commissioning,Transport-Related Expenditure,
INSERTED DETAIL,15/01/2016,OI,3818992,"1,294.99",HC101060,Blue Line Taxis,201610,Commissioning,Transport-Related Expenditure,
INSERTED DETAIL,15/01/2016,OI,3818993,420,HC101060,Blue Line Taxis,201610,Commissioning,Transport-Related Expenditure,
INSERTED DETAIL,15/01/2016,OI,3818994,448,HC101060,Blue Line Taxis,201610,Commissioning,Transport-Related Expenditure,
INSERTED DETAIL,15/01/2016,OI,3818995,700,HC101060,Blue Line Taxis,201610,Commissioning,Transport-Related Expenditure,
INSERTED DETAIL,15/01/2016,OI,3818996,"1,750.00",HC101060,Blue Line Taxis,201610,Commissioning,Transport-Related Expenditure,
INSERTED DETAIL,15/01/2016,OI,3818997,"1,830.00",HC101060,Blue Line Taxis,201610,Commissioning,Transport-Related Expenditure,
INSERTED DETAIL,15/01/2016,OI,3818998,645,HC101060,Blue Line Taxis,201610,Commissioning,Transport-Related Expenditure,
INSERTED DETAIL,15/01/2016,OI,3818998,645,HC101060,Blue Line Taxis,201610,Safeguarding and Family Support,Transport-Related Expenditure,
INSERTED DETAIL,15/01/2016,OI,3818999,940.8,HC101060,Blue Line Taxis,201610,Commissioning,Transport-Related Expenditure,
INSERTED DETAIL,20/01/2016,OI,3819002,"2,391.65",HC100385,Alliance In Partnership,201610,Schools,Supplies & Services,
INSERTED DETAIL,15/01/2016,OI,3819003,"1,370.25",HC100385,Alliance In Partnership,201610,Schools,Supplies & Services,
INSERTED DETAIL,15/01/2016,OI,3819004,"3,428.61",HC117651,Michael Page International Recruitment Ltd,201610,Communities,Employees,
INSERTED DETAIL,15/01/2016,OI,3819007,"1,625.00",HC117849,REDACTED,201610,Commissioning,Supplies & Services,
INSERTED DETAIL,15/01/2016,OI,3819008,"4,583.33",HC105756,Marches Family Network,201610,Education and Commissioning,Third Party Payments,
INSERTED DETAIL,15/01/2016,OI,3819009,"2,041.66",HC118951,Participation People,201610,Central Childrens Directorate Costs,Third Party Payments,
INSERTED DETAIL,27/01/2016,OI,3819010,"43,352.00",HC100213,REDACTED,201610,Safeguarding and Family Support,Supplies & Services,
INSERTED DETAIL,20/01/2016,OI,3819011,"11,180.59",HC102113,Crossroads Care-Forest Of Dean & Hfds,201610,Education and Commissioning,Third Party Payments,
INSERTED DETAIL,15/01/2016,OI,3819012,740,HC120416,REDACTED,201610,Education and Commissioning,Supplies & Services,
INSERTED DETAIL,15/01/2016,OI,3819015,"1,787.96",HC114774,Independent Clinical Services Ltd T/A Thornbury Nursing Services,201610,Education and Commissioning,Third Party Payments,
INSERTED DETAIL,15/01/2016,OI,3819016,936.2,HC114774,Independent Clinical Services Ltd T/A Thornbury Nursing Services,201610,Education and Commissioning,Third Party Payments,
INSERTED DETAIL,15/01/2016,OI,3819017,442.04,HC114774,Independent Clinical Services Ltd T/A Thornbury Nursing Services,201610,Education and Commissioning,Third Party Payments,
INSERTED DETAIL,15/01/2016,OI,3819018,951.97,HC114774,Independent Clinical Services Ltd T/A Thornbury Nursing Services,201610,Education and Commissioning,Third Party Payments,
INSERTED DETAIL,20/01/2016,OI,3819019,"1,403.95",HC108505,Pearson Education Ltd,201610,Schools,Employees,
INSERTED DETAIL,20/01/2016,OI,3819019,502.5,HC108505,Pearson Education Ltd,201610,Schools,Supplies & Services,
INSERTED DETAIL,20/01/2016,OI,3819020,463,HC108814,Print Plus,201610,Adults Operations,Supplies & Services,
INSERTED DETAIL,20/01/2016,OI,3819026,"4,748.91",HC109769,Shaw Healthcare (Herefordshire) Ltd,201610,Physical Disabilities,Third Party Payments,
INSERTED DETAIL,20/01/2016,OI,3819027,"56,964.05",HC109769,Shaw Healthcare (Herefordshire) Ltd,201610,Physical Disabilities,Third Party Payments,
INSERTED DETAIL,20/01/2016,OI,3819028,"4,960.00",HC109769,Shaw Healthcare (Herefordshire) Ltd,201610,Physical Disabilities,Third Party Payments,
INSERTED DETAIL,20/01/2016,OI,3819031,500,HC119132,Full Home,201610,Adults Operations,Supplies & Services,
INSERTED DETAIL,20/01/2016,OI,3819035,"7,072.00",HC118836,Llangattock School Ltd,201610,Education and Commissioning,Third Party Payments,
INSERTED DETAIL,20/01/2016,OI,3819036,"1,600.00",HC109972,South Gloucestershire Council,201610,Education and Commissioning,Support Services,
INSERTED DETAIL,22/01/2016,OI,3819042,"25,147.50",HC103827,Herdman Coaches Ltd,201610,Commissioning,Transport-Related Expenditure,
INSERTED DETAIL,20/01/2016,OI,3819045,449,HC107764,The Waterfront Conference Company Ltd,201610,Commissioning Capital,Capital Expenditure,
INSERTED DETAIL,22/01/2016,OI,3819050,"15,435.95",HC108016,Newbury Coaches,201610,Commissioning,Transport-Related Expenditure,
INSERTED DETAIL,20/01/2016,OI,3819051,"45,864.00",HC110117,Stagecoach Services Limited,201610,Commissioning,Transport-Related Expenditure,
INSERTED DETAIL,20/01/2016,OI,3819052,"2,495.00",HC101060,Blue Line Taxis,201610,Commissioning,Transport-Related Expenditure,
INSERTED DETAIL,20/01/2016,OI,3819053,"1,932.00",HC101060,Blue Line Taxis,201610,Commissioning,Transport-Related Expenditure,
INSERTED DETAIL,20/01/2016,OI,3819054,"1,288.00",HC101060,Blue Line Taxis,201610,Commissioning,Transport-Related Expenditure,
INSERTED DETAIL,20/01/2016,OI,3819055,"1,578.00",HC101060,Blue Line Taxis,201610,Commissioning,Transport-Related Expenditure,
INSERTED DETAIL,22/01/2016,OI,3819056,"1,282.93",HC110975,Tradebe  Gwent Ltd,201610,Commissioning,Supplies & Services,
INSERTED DETAIL,20/01/2016,OI,3819057,"7,200.00",HC104591,Robert West Consulting Ltd,201610,Growth,Supplies & Services,
INSERTED DETAIL,22/01/2016,OI,3819058,"3,607.44",HC102156,D & D Network Services Ltd,201610,Schools,Supplies & Services,
INSERTED DETAIL,12/08/2015,OI,3819059,525,HC116436,Herefordshire Council,201610,Schools,Supplies & Services,
INSERTED DETAIL,22/01/2016,OI,3819060,"2,022.50",HC102156,D & D Network Services Ltd,201610,Schools,Supplies & Services,
INSERTED DETAIL,20/01/2016,OI,3819071,999,HC107327,Snap Surveys,201610,Public Health,Supplies & Services,
INSERTED DETAIL,20/01/2016,OI,3819080,"1,610.00",HC101343,Enterprise Rent A Car UK T/A Flex E Rent,201610,Commissioning,Transport-Related Expenditure,
INSERTED DETAIL,20/01/2016,OI,3819084,"1,447.60",HC112921,Ancer Spa Ltd,201610,Growth,Supplies & Services,
INSERTED DETAIL,20/01/2016,OI,3819086,"1,330.00",HC103131,Values Based Leadership Ltd,201610,Education and Commissioning,Supplies & Services,
INSERTED DETAIL,20/01/2016,OI,3819087,"28,914.00",HC110607,The Extracare Charitable Trust,201610,Physical Disabilities,Third Party Payments,
INSERTED DETAIL,22/01/2016,OI,3819088,"12,500.00",HC103967,Herefordshire Mind,201610,Mental Health,Supplies & Services,
INSERTED DETAIL,20/01/2016,OI,3819090,"2,326.34",HC103981,Herefordshire Vision Links,201610,Commissioning Adults,Supplies & Services,
INSERTED DETAIL,20/01/2016,OI,3819095,930,HC119552,REDACTED,201610,Adults Operations,Supplies & Services,
INSERTED DETAIL,22/01/2016,OI,3819096,"1,320.00",HC106816,REDACTED,201610,Adults Operations,Premises-Related Expenditure,
INSERTED DETAIL,20/01/2016,OI,3819105,897,HC116363,Grenke Leasing Ltd,201610,Schools,Supplies & Services,
INSERTED DETAIL,20/01/2016,OI,3819108,"191,962.00",HC103869,Wye Valley NHS Trust,201610,Public Health,Supplies & Services,
INSERTED DETAIL,22/01/2016,OI,3819113,"1,250.00",HC117849,REDACTED,201610,Commissioning,Supplies & Services,
INSERTED DETAIL,20/01/2016,OI,3819115,"1,138.15",HC105926,Mavis Russell Cleaning Ltd,201610,Schools,Premises-Related Expenditure,
INSERTED DETAIL,22/01/2016,OI,3819120,"2,118.40",HC108444,Patrol,201610,Commissioning,Supplies & Services,
INSERTED DETAIL,22/01/2016,OI,3819124,786.25,HC110459,The Key Support Services Ltd,201610,Schools,Supplies & Services,
INSERTED DETAIL,20/01/2016,OI,3819132,887.08,HC105926,Mavis Russell Cleaning Ltd,201610,Schools,Premises-Related Expenditure,
INSERTED DETAIL,20/01/2016,OI,3819135,747.5,HC109717,Sentinel Security Systems,201610,Schools,Premises-Related Expenditure,
INSERTED DETAIL,20/01/2016,OI,3819144,691.18,HC108443,West Mercia Energy,201610,Schools,Premises-Related Expenditure,
INSERTED DETAIL,22/01/2016,OI,3819148,"1,635.00",HC111135,University Of  Worcester,201610,Schools,Employees,
INSERTED DETAIL,27/01/2016,OI,3819149,"62,665.00",HC100022,FACE Recording & Measurements Systems,201610,Commissioning Adults,Supplies & Services,
INSERTED DETAIL,22/01/2016,OI,3819155,557.57,HC111380,Welsh Water,201610,Schools,Premises-Related Expenditure,
INSERTED DETAIL,20/01/2016,OI,3819159,"4,333.60",HC100581,REDACTED,201610,Safeguarding and Family Support,Supplies & Services,
INSERTED DETAIL,20/01/2016,OI,3819164,750,HC100248,REDACTED,201610,Schools,Premises-Related Expenditure,
INSERTED DETAIL,20/01/2016,OI,3819165,444.5,HC111380,Welsh Water,201610,Schools,Premises-Related Expenditure,
INSERTED DETAIL,20/01/2016,OI,3819167,"3,075.26",HC102156,D & D Network Services Ltd,201610,Schools,Supplies & Services,
INSERTED DETAIL,20/01/2016,OI,3819168,"1,034.59",HC100758,Autopress Education,201610,Schools,Supplies & Services,
INSERTED DETAIL,22/01/2016,OI,3819170,498,HC109333,Ross Gazette,201610,Schools,Supplies & Services,
INSERTED DETAIL,22/01/2016,OI,3819185,"80,478.50",HC102151,2Gether NHS Foundation Trust,201610,Commissioning Adults,Third Party Payments,
INSERTED DETAIL,20/01/2016,OI,3819186,"13,083.33",HC110303,Stonham,201610,Commissioning Adults,Supplies & Services,
INSERTED DETAIL,20/01/2016,OI,3819187,"24,166.67",HC110303,Stonham,201610,Commissioning Adults,Supplies & Services,
INSERTED DETAIL,20/01/2016,OI,3819188,"15,377.52",HC117351,Ategi Ltd,201610,Commissioning Adults,Third Party Payments,
INSERTED DETAIL,20/01/2016,OI,3819192,925.91,HC106069,Midlands Wood Fuel Supply Ltd (MWF),201610,Schools,Premises-Related Expenditure,
INSERTED DETAIL,22/01/2016,OI,3819199,961.54,HC111380,Welsh Water,201610,Schools,Premises-Related Expenditure,
INSERTED DETAIL,20/01/2016,OI,3819200,"17,700.00",HC100282,Age Concern UK Hereford & Worcester,201610,Physical Disabilities,Supplies & Services,
INSERTED DETAIL,20/01/2016,OI,3819202,"252,706.11",HC109769,Shaw Healthcare (Herefordshire) Ltd,201610,Physical Disabilities,Third Party Payments,
INSERTED DETAIL,20/01/2016,OI,3819203,936,HC110034,Superstars/Sports Stars Ltd,201610,Schools,Supplies & Services,
INSERTED DETAIL,20/01/2016,OI,3819206,635.91,HC109835,Siemens Financial Services Ltd,201610,Schools,Supplies & Services,
INSERTED DETAIL,20/01/2016,OI,3819212,730.75,HC105926,Mavis Russell Cleaning Ltd,201610,Schools,Premises-Related Expenditure,
INSERTED DETAIL,20/01/2016,OI,3819214,"1,125.00",HC118412,Sportsm8tes,201610,Schools,Supplies & Services,
INSERTED DETAIL,20/01/2016,OI,3819218,"1,142.58",HC116363,Grenke Leasing Ltd,201610,Schools,Supplies & Services,
INSERTED DETAIL,20/01/2016,OI,3819223,"2,062.80",HC115657,Powys County Council,201610,Schools,Supplies & Services,
INSERTED DETAIL,20/01/2016,OI,3819225,"1,746.05",HC115657,Powys County Council,201610,Schools,Supplies & Services,
INSERTED DETAIL,20/01/2016,OI,3819230,"2,731.76",HC110227,Stretton Care Limited,201610,Physical Disabilities,Third Party Payments,
INSERTED DETAIL,22/01/2016,OI,3819232,"1,500.00",HC119241,REDACTED,201610,Communities,Supplies & Services,
INSERTED DETAIL,22/01/2016,OI,3819237,"1,000.00",HC114181,Calon Solutions Limited,201610,Schools,Supplies & Services,
INSERTED DETAIL,20/01/2016,OI,3819243,556,HC110034,Superstars/Sports Stars Ltd,201610,Schools,Supplies & Services,
INSERTED DETAIL,20/01/2016,OI,3819251,"2,975.15",HC110115,Stagecoach  Wales,201610,Commissioning,Third Party Payments,
INSERTED DETAIL,22/01/2016,OI,3819255,875,HC108132,Northern Link Traffic Data Consultancy Ltd,201610,Commissioning Capital,Capital Expenditure,
INSERTED DETAIL,20/01/2016,OI,3819257,"1,282.23",HC106975,Hoople Ltd,201610,Resources,Employees,
INSERTED DETAIL,20/01/2016,OI,3819258,"7,569.43",HC119693,Nicol & Co Estate Agents Ltd,201610,Growth Capital,Capital Expenditure,
INSERTED DETAIL,20/01/2016,OI,3819259,"5,442.43",HC109121,Red Spark Learning CIC,201610,Education and Commissioning,Supplies & Services,
INSERTED DETAIL,20/01/2016,OI,3819261,"5,000.00",HC116406,Sustrans,201610,Commissioning Capital,Capital Expenditure,
INSERTED DETAIL,20/01/2016,OI,3819262,670.08,HC105512,Lord Combustion Services Ltd,201610,Schools,Premises-Related Expenditure,
INSERTED DETAIL,20/01/2016,OI,3819263,"5,037.00",HC101890,Close House Projects,201610,Public Health,Transfer Payments,
INSERTED DETAIL,27/01/2016,OI,3819265,450,HC101027,Bishop Of Herefords Bluecoat School,201610,Central Childrens Directorate Costs,Supplies & Services,
INSERTED DETAIL,22/01/2016,OI,3819266,"32,543.00",HC109726,Services For Independent Living,201610,Commissioning Adults,Third Party Payments,
INSERTED DETAIL,20/01/2016,OI,3819268,"1,602.80",HC106975,Hoople Ltd,201610,Resources,Employees,
INSERTED DETAIL,22/01/2016,OI,3819271,"2,300.57",HC103869,Wye Valley NHS Trust,201610,Schools,Supplies & Services,
INSERTED DETAIL,20/01/2016,OI,3819281,580.67,HC111380,Welsh Water,201610,Schools,Premises-Related Expenditure,
INSERTED DETAIL,20/01/2016,OI,3819282,"1,080.00",HC120397,Lidia Lucaciu Ltd,201610,Central Childrens Directorate Costs,Employees,
INSERTED DETAIL,22/01/2016,OI,3819285,"1,100.00",HC110429,Encore Enterprises,201610,Schools,Supplies & Services,
INSERTED DETAIL,20/01/2016,OI,3819286,"1,389.44",HC116520,Regus Management (UK)Ltd,201610,Growth,Premises-Related Expenditure,
INSERTED DETAIL,20/01/2016,OI,3819290,616,HC106975,Hoople Ltd,201610,Schools,Employees,
INSERTED DETAIL,20/01/2016,OI,3819293,993,HC119304,Carter Haynes Ltd,201610,Schools,Supplies & Services,
INSERTED DETAIL,20/01/2016,OI,3819294,483.5,HC119304,Carter Haynes Ltd,201610,Schools,Supplies & Services,
INSERTED DETAIL,20/01/2016,OI,3819298,968.98,HC104018,Highground Maintenance Limited,201610,Schools,Premises-Related Expenditure,
INSERTED DETAIL,20/01/2016,OI,3819306,571,HC102941,Discovery Education Europe Ltd,201610,Schools,Supplies & Services,
INSERTED DETAIL,20/01/2016,OI,3819311,426.5,HC103660,Halo Leisure Services Ltd,201610,Schools,Premises-Related Expenditure,
INSERTED DETAIL,22/01/2016,OI,3819313,630.2,HC109997,Spa Gas Ltd,201610,Schools,Premises-Related Expenditure,
INSERTED DETAIL,22/01/2016,OI,3819315,"2,038.21",HC117116,4imprint Direct Ltd,201610,Growth,Supplies & Services,
INSERTED DETAIL,22/01/2016,OI,3819316,750,HC120471,REDACTED,201610,Communities,Supplies & Services,
INSERTED DETAIL,22/01/2016,OI,3819318,"3,038.25",HC120439,Community Spirit Partnership CIC,201610,Growth,Supplies & Services,
INSERTED DETAIL,20/01/2016,OI,3819320,"15,450.00",HC118978,Taurus Healthcare,201610,Public Health,Supplies & Services,
INSERTED DETAIL,20/01/2016,OI,3819321,424,HC110459,The Key Support Services Ltd,201610,Schools,Supplies & Services,
INSERTED DETAIL,22/01/2016,OI,3819337,546,HC114478,Perfect Colours Ltd,201610,Commissioning,Supplies & Services,
INSERTED DETAIL,22/01/2016,OI,3819338,"1,500.00",HC119098,REDACTED,201610,Communities,Supplies & Services,
INSERTED DETAIL,22/01/2016,OI,3819353,"8,330.00",HC117202,Permanent Futures Ltd,201610,Integrated Commissioning,Capital Expenditure,
INSERTED DETAIL,22/01/2016,OI,3819356,"16,229.22",HC102595,DRM (Bromyard) Ltd,201610,Commissioning,Third Party Payments,
INSERTED DETAIL,29/01/2016,OI,3819357,"2,711.49",HC100493,George Youngs Coaches Ltd,201610,Commissioning,Third Party Payments,
INSERTED DETAIL,22/01/2016,OI,3819358,509,HC109380,Royal Inst Of Chartered Surveyors (RICS),201610,Resources,Supplies & Services,
INSERTED DETAIL,22/01/2016,OI,3819360,"1,500.00",HC111195,Valuation Office Agency,201610,Resources,Premises-Related Expenditure,
INSERTED DETAIL,27/01/2016,OI,3819364,"12,000.00",HC117202,Permanent Futures Ltd,201610,Education and Commissioning,Supplies & Services,
INSERTED DETAIL,22/01/2016,OI,3819366,"1,196.10",HC110743,The Plynlimon Trust Community Car Scheme,201610,Commissioning,Transport-Related Expenditure,
INSERTED DETAIL,22/01/2016,OI,3819367,"2,571.10",HC110743,The Plynlimon Trust Community Car Scheme,201610,Commissioning,Transport-Related Expenditure,
INSERTED DETAIL,22/01/2016,OI,3819368,744.3,HC110743,The Plynlimon Trust Community Car Scheme,201610,Commissioning,Transport-Related Expenditure,
INSERTED DETAIL,22/01/2016,OI,3819370,577.5,HC111924,Bromyard Community Transport Ltd,201610,Commissioning,Transport-Related Expenditure,
INSERTED DETAIL,29/01/2016,OI,3819371,509,HC109380,Royal Inst Of Chartered Surveyors (RICS),201610,Resources,Supplies & Services,
INSERTED DETAIL,22/01/2016,OI,3819372,445,HC100542,Orange plc (Equipment),201610,Adults Operations,Supplies & Services,
INSERTED DETAIL,22/01/2016,OI,3819378,856,HC109622,Sargeants Brothers Ltd,201610,Commissioning,Third Party Payments,
INSERTED DETAIL,22/01/2016,OI,3819383,532.08,HC105926,Mavis Russell Cleaning Ltd,201610,Schools,Premises-Related Expenditure,
INSERTED DETAIL,22/01/2016,OI,3819384,"1,630.00",HC103869,Wye Valley NHS Trust,201610,Resources,Third Party Payments,
INSERTED DETAIL,22/01/2016,OI,3819386,"4,170.00",HC100144,Star Technology Services Ltd,201610,Resources,Supplies & Services,
INSERTED DETAIL,22/01/2016,OI,3819388,"1,031.28",HC104018,Highground Maintenance Limited,201610,Schools,Premises-Related Expenditure,
INSERTED DETAIL,22/01/2016,OI,3819389,735,HC103621,H & H Motors,201610,Schools,Transport-Related Expenditure,
INSERTED DETAIL,27/01/2016,OI,3819394,517.22,HC116828,Gloucestershire Care Services NHST,201610,Public Health,Third Party Payments,
INSERTED DETAIL,22/01/2016,OI,3819398,493.41,HC100728,Veolia Transport T/A Astons Coaches,201610,Commissioning,Third Party Payments,
INSERTED DETAIL,22/01/2016,OI,3819401,425,HC108361,P W Jones (Hereford) Ltd,201610,Schools,Transport-Related Expenditure,
INSERTED DETAIL,22/01/2016,OI,3819402,756,HC112412,Forward Products,201610,Schools,Supplies & Services,
INSERTED DETAIL,29/01/2016,OI,3819404,"5,996.33",HC100728,Veolia Transport T/A Astons Coaches,201610,Commissioning,Third Party Payments,
INSERTED DETAIL,22/01/2016,OI,3819406,"2,100.00",HC109622,Sargeants Brothers Ltd,201610,Commissioning,Transport-Related Expenditure,
INSERTED DETAIL,22/01/2016,OI,3819411,588,HC100385,Alliance In Partnership,201610,Schools,Supplies & Services,
INSERTED DETAIL,22/01/2016,OI,3819420,"26,195.40",HC104097,Hope For Children & Their Families Ltd,201610,Safeguarding and Family Support,Third Party Payments,
INSERTED DETAIL,22/01/2016,OI,3819422,"1,021.95",HC118904,REDACTED,201610,Safeguarding and Family Support,Supplies & Services,
INSERTED DETAIL,22/01/2016,OI,3819423,"1,380.00",HC110658,The Houghton Project,201610,Education and Commissioning,Third Party Payments,
INSERTED DETAIL,22/01/2016,OI,3819425,"1,149.36",HC104739,John Masefield High School (Academy),201610,Education and Commissioning,Employees,
INSERTED DETAIL,22/01/2016,OI,3819426,"1,720.00",HC103935,Herefordshire & Ludlow College,201610,Education and Commissioning,Supplies & Services,
INSERTED DETAIL,22/01/2016,OI,3819427,"19,200.00",HC110648,BAE Trust T/A The Hereford Academy,201610,Education and Commissioning,Support Services,
INSERTED DETAIL,22/01/2016,OI,3819428,"11,180.59",HC102113,Crossroads Care-Forest Of Dean & Hfds,201610,Education and Commissioning,Third Party Payments,
INSERTED DETAIL,22/01/2016,OI,3819429,"4,583.33",HC105756,Marches Family Network,201610,Education and Commissioning,Third Party Payments,
INSERTED DETAIL,22/01/2016,OI,3819436,"3,418.36",HC106975,Hoople Ltd,201610,Resources,Suspense Accounts,
INSERTED DETAIL,29/01/2016,OI,3819437,509,HC109380,Royal Inst Of Chartered Surveyors (RICS),201610,Resources,Supplies & Services,
INSERTED DETAIL,29/01/2016,OI,3819438,509,HC109380,Royal Inst Of Chartered Surveyors (RICS),201610,Resources,Supplies & Services,
INSERTED DETAIL,22/01/2016,OI,3819441,611.37,HC107979,Neopost Finance Ltd,201610,Resources,Supplies & Services,
INSERTED DETAIL,22/01/2016,OI,3819443,"3,599.06",HC111338,Marches Energy Agency,201610,Commissioning,Third Party Payments,
INSERTED DETAIL,27/01/2016,OI,3819445,"11,550.74",HC112697,Parkeon,201610,Commissioning,Supplies & Services,
INSERTED DETAIL,22/01/2016,OI,3819449,637.5,HC105552,Luctonians Sports Club Ltd,201610,Schools,Supplies & Services,
INSERTED DETAIL,22/01/2016,OI,3819456,"1,099.02",HC102151,2Gether NHS Foundation Trust,201610,Public Health,Supplies & Services,
INSERTED DETAIL,22/01/2016,OI,3819457,682,HC106975,Hoople Ltd,201610,Schools,Employees,
INSERTED DETAIL,22/01/2016,OI,3819462,651,HC107466,Worcestershire Health & Care NHS Trust,201610,Public Health,Third Party Payments,
INSERTED DETAIL,29/01/2016,OI,3819468,780,HC102599,REDACTED,201610,Schools,Premises-Related Expenditure,
INSERTED DETAIL,22/01/2016,OI,3819470,"2,700.00",HC103935,Herefordshire & Ludlow College,201610,Education and Commissioning,Supplies & Services,
INSERTED DETAIL,22/01/2016,OI,3819472,"1,540.00",HC101975,Complete Security & Fire Protection Ltd,201610,Schools,Supplies & Services,
INSERTED DETAIL,22/01/2016,OI,3819473,"1,518.00",HC101975,Complete Security & Fire Protection Ltd,201610,Schools,Supplies & Services,
INSERTED DETAIL,29/01/2016,OI,3819481,"1,130.00",HC120476,REDACTED,201610,Schools,Premises-Related Expenditure,
INSERTED DETAIL,22/01/2016,OI,3819484,740,HC110395,Tann Synchronome Limited,201610,Schools Devolved Capital,Capital Expenditure,
INSERTED DETAIL,22/01/2016,OI,3819485,"1,062.66",HC108866,Education Property Partnership Ltd,201610,Schools Devolved Capital,Capital Expenditure,
INSERTED DETAIL,22/01/2016,OI,3819487,"10,664.89",HC101384,C J Bayliss (Hereford) Ltd,201610,Schools Devolved Capital,Capital Expenditure,
INSERTED DETAIL,22/01/2016,OI,3819489,478,HC101472,Capita Business Services Ltd,201610,Schools,Supplies & Services,
INSERTED DETAIL,27/01/2016,OI,3819493,600,HC103702,Bearwood Associates Ltd,201610,Growth,Supplies & Services,
INSERTED DETAIL,22/01/2016,OI,3819494,700,HC110692,The Messaging Centre Ltd,201610,Commissioning,Supplies & Services,
INSERTED DETAIL,29/01/2016,OI,3819495,509,HC109380,Royal Inst Of Chartered Surveyors (RICS),201610,Resources,Supplies & Services,
INSERTED DETAIL,22/01/2016,OI,3819497,500,HC102396,Design Umbrella,201610,Commissioning Capital,Capital Expenditure,
INSERTED DETAIL,22/01/2016,OI,3819498,"1,750.00",HC118137,Powells Rural Property Professional Ltd,201610,Resources,Supplies & Services,
INSERTED DETAIL,22/01/2016,OI,3819508,"2,995.00",HC103869,Wye Valley NHS Trust,201610,Resources,Third Party Payments,
INSERTED DETAIL,27/01/2016,OI,3819512,850.85,HC103268,REDACTED,201610,Adults Operations,Supplies & Services,
INSERTED DETAIL,27/01/2016,OI,3819513,945,HC108022,Newsquest Media Group Ltd,201610,Commissioning,Supplies & Services,
INSERTED DETAIL,22/01/2016,OI,3819515,"50,000.00",HC103933,Herefordshire Citizens Advice Bureaux,201610,Commissioning Adults,Third Party Payments,
INSERTED DETAIL,22/01/2016,OI,3819516,"1,741.24",HC110215,Storm Technologies Ltd,201610,Resources,Supplies & Services,
INSERTED DETAIL,29/01/2016,OI,3819519,707.66,HC101123,Boss,201610,Schools,Supplies & Services,
INSERTED DETAIL,22/01/2016,OI,3819522,424,HC110459,The Key Support Services Ltd,201610,Schools,Supplies & Services,
INSERTED DETAIL,22/01/2016,OI,3819524,627.79,HC106071,Midshire Business Systems Ltd,201610,Schools,Supplies & Services,
INSERTED DETAIL,22/01/2016,OI,3819543,"1,838.53",HC117651,Michael Page International Recruitment Ltd,201610,Communities,Employees,
INSERTED DETAIL,22/01/2016,OI,3819544,"2,087.00",HC101232,Speller Metcalfe Malvern Ltd,201610,Communities Capital,Capital Expenditure,
INSERTED DETAIL,22/01/2016,OI,3819545,844.55,HC117651,Michael Page International Recruitment Ltd,201610,Communities,Employees,
INSERTED DETAIL,22/01/2016,OI,3819549,"2,500.00",HC110540,The Bulmer Foundation,201610,Growth,Transfer Payments,
INSERTED DETAIL,27/01/2016,OI,3819560,512.15,HC107522,Mrs M J Thomson (The Iron Rice Bowl),201610,Schools,Supplies & Services,
INSERTED DETAIL,22/01/2016,OI,3819566,"3,060.00",HC100385,Alliance In Partnership,201610,Schools,Supplies & Services,
INSERTED DETAIL,22/01/2016,OI,3819567,"1,439.25",HC100385,Alliance In Partnership,201610,Schools,Supplies & Services,
INSERTED DETAIL,29/01/2016,OI,3819571,"1,199.00",HC100385,Alliance In Partnership,201610,Schools,Supplies & Services,
INSERTED DETAIL,22/01/2016,OI,3819572,"7,500.00",HC117835,The Brookfield School (Academy),201610,Education and Commissioning,Supplies & Services,
INSERTED DETAIL,22/01/2016,OI,3819575,923.33,HC103660,Halo Leisure Services Ltd,201610,Public Health,Supplies & Services,
INSERTED DETAIL,22/01/2016,OI,3819580,720,HC119565,Signis Ltd,201610,Schools,Employees,
INSERTED DETAIL,22/01/2016,OI,3819582,570,HC103390,George Youngs Coaches Ltd (Factor A/C),201610,Schools,Transport-Related Expenditure,
INSERTED DETAIL,22/01/2016,OI,3819586,525,HC103390,George Youngs Coaches Ltd (Factor A/C),201610,Schools,Transport-Related Expenditure,
INSERTED DETAIL,22/01/2016,OI,3819587,665,HC103390,George Youngs Coaches Ltd (Factor A/C),201610,Schools,Transport-Related Expenditure,
INSERTED DETAIL,22/01/2016,OI,3819588,748.98,HC116363,Grenke Leasing Ltd,201610,Schools,Supplies & Services,
INSERTED DETAIL,22/01/2016,OI,3819589,426.5,HC103660,Halo Leisure Services Ltd,201610,Schools,Premises-Related Expenditure,
INSERTED DETAIL,22/01/2016,OI,3819590,426.5,HC103660,Halo Leisure Services Ltd,201610,Schools,Premises-Related Expenditure,
INSERTED DETAIL,27/01/2016,OI,3819593,688.28,HC115722,The Nationwide Community Learning Partnership (NCLP),201610,Education and Commissioning,Supplies & Services,
INSERTED DETAIL,22/01/2016,OI,3819602,427.5,HC119223,Wealden Leisure Ltd T/A Freedom Leisure,201610,Schools,Premises-Related Expenditure,
INSERTED DETAIL,22/01/2016,OI,3819603,440.77,HC116520,Regus Management (UK)Ltd,201610,Growth,Premises-Related Expenditure,
INSERTED DETAIL,22/01/2016,OI,3819603,976,HC116520,Regus Management (UK)Ltd,201610,Growth,Supplies & Services,
INSERTED DETAIL,22/01/2016,OI,3819609,562.52,HC111380,Welsh Water,201610,Schools,Premises-Related Expenditure,
INSERTED DETAIL,22/01/2016,OI,3819612,474,HC104548,Wyvern Business Systems,201610,Adults Operations,Supplies & Services,
INSERTED DETAIL,22/01/2016,OI,3819613,442.57,HC102156,D & D Network Services Ltd,201610,Schools,Supplies & Services,
INSERTED DETAIL,27/01/2016,OI,3819615,590.18,HC102156,D & D Network Services Ltd,201610,Schools,Supplies & Services,
INSERTED DETAIL,22/01/2016,OI,3819620,"7,762.50",HC120199,REDACTED,201610,Communities,Supplies & Services,
INSERTED DETAIL,22/01/2016,OI,3819621,"3,341.10",HC103959,Herefordshire Housing Ltd,201610,Transformation and safeguarding,Supplies & Services,
INSERTED DETAIL,22/01/2016,OI,3819625,548,HC111685,Yeomans Travel Ltd,201610,Schools,Transport-Related Expenditure,
INSERTED DETAIL,22/01/2016,OI,3819626,"2,058.00",HC111685,Yeomans Travel Ltd,201610,Schools,Supplies & Services,
INSERTED DETAIL,22/01/2016,OI,3819630,697.99,HC114573,Leominster Pharmacy,201610,Public Health,Supplies & Services,
INSERTED DETAIL,22/01/2016,OI,3819636,450,HC119223,Wealden Leisure Ltd T/A Freedom Leisure,201610,Schools,Premises-Related Expenditure,
INSERTED DETAIL,22/01/2016,OI,3819639,897.21,HC105926,Mavis Russell Cleaning Ltd,201610,Schools,Premises-Related Expenditure,
INSERTED DETAIL,22/01/2016,OI,3819646,"1,600.00",HC102714,Modern Mindset Ltd,201610,Resources,Supplies & Services,
INSERTED DETAIL,27/01/2016,OI,3819652,"7,200.00",HC119092,Pathways2Prevention Ltd,201610,Public Health,Suspense Accounts,
INSERTED DETAIL,22/01/2016,OI,3819655,"2,529.00",HC100582,REDACTED,201610,Safeguarding and Family Support,Supplies & Services,
INSERTED DETAIL,22/01/2016,OI,3819659,645.33,HC104018,Highground Maintenance Limited,201610,Schools,Premises-Related Expenditure,
INSERTED DETAIL,27/01/2016,OI,3819666,420.99,HC101003,Bikold Ltd,201610,Schools,Supplies & Services,
INSERTED DETAIL,29/01/2016,OI,3819668,"1,110.89",HC104568,NPOWER,201610,Schools,Premises-Related Expenditure,
INSERTED DETAIL,27/01/2016,OI,3819670,574.95,HC102702,Ebuyer (Uk) Ltd,201610,Schools,Supplies & Services,
INSERTED DETAIL,27/01/2016,OI,3819673,"1,354.70",HC116124,Woods of Whitchurch,201610,Schools,Supplies & Services,
INSERTED DETAIL,29/01/2016,OI,3819675,839.26,HC110854,Alcontrol UK Ltd,201610,Commissioning,Supplies & Services,
INSERTED DETAIL,27/01/2016,OI,3819680,"1,483.76",HC108143,Nottingham Rehab Ltd,201610,Transformation and safeguarding,Supplies & Services,
INSERTED DETAIL,27/01/2016,OI,3819693,"3,500.00",HC111421,West Mercia Police & Crime Commissioner,201610,Communities,Supplies & Services,
INSERTED DETAIL,27/01/2016,OI,3819694,"3,000.00",HC120322,Aquarium CMS Ltd,201610,Adults Operations,Suspense Accounts,
INSERTED DETAIL,29/01/2016,OI,3819696,"1,683.00",HC109622,Sargeants Brothers Ltd,201610,Commissioning,Third Party Payments,
INSERTED DETAIL,29/01/2016,OI,3819701,455.5,HC120404,REDACTED,201610,Mental Health,Supplies & Services,
INSERTED DETAIL,27/01/2016,OI,3819704,656.06,HC105512,Lord Combustion Services Ltd,201610,Schools,Premises-Related Expenditure,
INSERTED DETAIL,27/01/2016,OI,3819707,690,HC100254,REDACTED,201610,Schools,Supplies & Services,
INSERTED DETAIL,29/01/2016,OI,3819708,630.75,HC100385,Alliance In Partnership,201610,Schools,Supplies & Services,
INSERTED DETAIL,29/01/2016,OI,3819710,"1,064.25",HC100385,Alliance In Partnership,201610,Schools,Supplies & Services,
INSERTED DETAIL,27/01/2016,OI,3819723,"1,000.00",HC109794,REDACTED,201610,Adults Operations,Supplies & Services,
INSERTED DETAIL,27/01/2016,OI,3819724,"3,333.00",HC103959,Herefordshire Housing Ltd,201610,Transformation and safeguarding,Supplies & Services,
INSERTED DETAIL,27/01/2016,OI,3819725,"3,237.85",HC103959,Herefordshire Housing Ltd,201610,Transformation and safeguarding,Supplies & Services,
INSERTED DETAIL,29/01/2016,OI,3819726,"1,680.00",HC103959,Herefordshire Housing Ltd,201610,Transformation and safeguarding,Supplies & Services,
INSERTED DETAIL,29/01/2016,OI,3819727,"2,356.20",HC103959,Herefordshire Housing Ltd,201610,Transformation and safeguarding,Supplies & Services,
INSERTED DETAIL,27/01/2016,OI,3819728,"1,200.00",HC100254,REDACTED,201610,Schools,Supplies & Services,
INSERTED DETAIL,27/01/2016,OI,3819736,755,HC119548,REDACTED,201610,Schools,Supplies & Services,
INSERTED DETAIL,27/01/2016,OI,3819737,500,HC119548,REDACTED,201610,Schools,Supplies & Services,
INSERTED DETAIL,27/01/2016,OI,3819738,900,HC120265,Primary School Data.Uk,201610,Schools,Supplies & Services,
INSERTED DETAIL,27/01/2016,OI,3819739,450,HC105552,Luctonians Sports Club Ltd,201610,Schools,Supplies & Services,
INSERTED DETAIL,27/01/2016,OI,3819742,"1,645.00",HC110658,The Houghton Project,201610,Education and Commissioning,Supplies & Services,
INSERTED DETAIL,27/01/2016,OI,3819743,605.6,HC116901,REDACTED,201610,Safeguarding and Family Support,Supplies & Services,
INSERTED DETAIL,29/01/2016,OI,3819744,500.15,HC116901,REDACTED,201610,Safeguarding and Family Support,Supplies & Services,
INSERTED DETAIL,29/01/2016,OI,3819752,468.75,HC120404,REDACTED,201610,Mental Health,Supplies & Services,
INSERTED DETAIL,27/01/2016,OI,3819753,"1,540.00",HC101975,Complete Security & Fire Protection Ltd,201610,Schools,Supplies & Services,
INSERTED DETAIL,27/01/2016,OI,3819759,"1,779.19",HC105512,Lord Combustion Services Ltd,201610,Schools,Premises-Related Expenditure,
INSERTED DETAIL,27/01/2016,OI,3819761,738.33,HC105926,Mavis Russell Cleaning Ltd,201610,Schools,Premises-Related Expenditure,
INSERTED DETAIL,27/01/2016,OI,3819763,726.95,HC111380,Welsh Water,201610,Schools,Premises-Related Expenditure,
INSERTED DETAIL,27/01/2016,OI,3819764,"30,000.00",HC103660,Halo Leisure Services Ltd,201610,Communities,Supplies & Services,
INSERTED DETAIL,27/01/2016,OI,3819765,518,HC111685,Yeomans Travel Ltd,201610,Schools,Transport-Related Expenditure,
INSERTED DETAIL,27/01/2016,OI,3819766,765,HC102595,DRM (Bromyard) Ltd,201610,Commissioning,Transport-Related Expenditure,
INSERTED DETAIL,27/01/2016,OI,3819767,"44,659.67",HC111685,Yeomans Travel Ltd,201610,Commissioning,Third Party Payments,
INSERTED DETAIL,29/01/2016,OI,3819768,900,HC100528,B & H Cars,201610,Learning Disabilities,Transport-Related Expenditure,
INSERTED DETAIL,27/01/2016,OI,3819775,648.82,HC100656,Allstar Business Solutions Ltd (Arval),201610,Commissioning,Transport-Related Expenditure,
INSERTED DETAIL,27/01/2016,OI,3819776,500,HC116720,Redactive Publishing Ltd,201610,Resources,Employees,
INSERTED DETAIL,29/01/2016,OI,3819781,"1,711.00",HC102007,MDP Builders Ltd,201610,Schools,Premises-Related Expenditure,
INSERTED DETAIL,27/01/2016,OI,3819784,"19,934.64",HC114833,NEPRO Limited,201610,Commissioning,Third Party Payments,
INSERTED DETAIL,27/01/2016,OI,3819785,"10,206.24",HC114833,NEPRO Limited,201610,Commissioning,Suspense Accounts,
INSERTED DETAIL,27/01/2016,OI,3819786,"9,742.32",HC114833,NEPRO Limited,201610,Commissioning,Suspense Accounts,
INSERTED DETAIL,27/01/2016,OI,3819787,"8,100.04",HC114833,NEPRO Limited,201610,Commissioning,Suspense Accounts,
INSERTED DETAIL,29/01/2016,OI,3819788,807.67,HC103027,Facultatieve Technologies Limited,201610,Commissioning,Premises-Related Expenditure,
INSERTED DETAIL,27/01/2016,OI,3819795,"1,708.20",HC109826,Shropshire Council,201610,Schools,Supplies & Services,
INSERTED DETAIL,27/01/2016,OI,3819801,"13,493.75",HC114541,GreySky Consulting Ltd,201610,Growth Capital,Capital Expenditure,
INSERTED DETAIL,27/01/2016,OI,3819803,"1,572.75",HC120299,REDACTED,201610,Growth Capital,Capital Expenditure,
INSERTED DETAIL,27/01/2016,OI,3819804,"4,592.34",HC119740,Harrier Fluid Power Ltd T/A Flowfit,201610,Growth Capital,Capital Expenditure,
INSERTED DETAIL,27/01/2016,OI,3819805,958.91,HC106975,Hoople Ltd,201610,Resources,Suspense Accounts,
INSERTED DETAIL,27/01/2016,OI,3819806,853,HC103660,Halo Leisure Services Ltd,201610,Schools,Premises-Related Expenditure,
INSERTED DETAIL,27/01/2016,OI,3819813,"1,312.50",HC104676,JMP Consultants Ltd,201610,Commissioning,Third Party Payments,
INSERTED DETAIL,29/01/2016,OI,3819821,500,HC117852,Nexus Heritage,201610,Commissioning,Supplies & Services,
INSERTED DETAIL,29/01/2016,OI,3819822,"3,055.79",HC109737,Severn Waste Services Ltd,201610,Commissioning,Supplies & Services,
INSERTED DETAIL,29/01/2016,OI,3819826,806.4,HC100385,Alliance In Partnership,201610,Schools,Supplies & Services,
INSERTED DETAIL,29/01/2016,OI,3819829,"6,346.51",HC109737,Severn Waste Services Ltd,201610,Commissioning,Premises-Related Expenditure,
INSERTED DETAIL,29/01/2016,OI,3819829,"3,586.51",HC109737,Severn Waste Services Ltd,201610,Commissioning,Supplies & Services,
INSERTED DETAIL,29/01/2016,OI,3819831,767.5,HC116004,Able 2 Occupational Therapy Services Limited,201610,Communities,Supplies & Services,
INSERTED DETAIL,27/01/2016,OI,3819832,"3,500.00",HC108194,Octaga Security Services Ltd,201610,Commissioning,Supplies & Services,
INSERTED DETAIL,27/01/2016,OI,3819834,840,HC111403,REDACTED,201610,Safeguarding and Family Support,Supplies & Services,
INSERTED DETAIL,27/01/2016,OI,3819839,922.05,HC100976,Bespoke Cleaning Services,201610,Schools,Premises-Related Expenditure,
INSERTED DETAIL,29/01/2016,OI,3819843,495,HC116790,REDACTED,201610,Commissioning,Supplies & Services,
INSERTED DETAIL,29/01/2016,OI,3819844,"1,130.12",HC118523,REDACTED,201610,Commissioning,Supplies & Services,
INSERTED DETAIL,27/01/2016,OI,3819848,"2,027.72",HC109152,Relion Heating Services Ltd,201610,Schools,Premises-Related Expenditure,
INSERTED DETAIL,27/01/2016,OI,3819853,"1,420.00",HC103642,H Mason & Son Ltd,201610,Schools,Premises-Related Expenditure,
INSERTED DETAIL,27/01/2016,OI,3819860,"79,784.19",HC108143,Nottingham Rehab Ltd,201610,Commissioning Adults,Supplies & Services,
INSERTED DETAIL,27/01/2016,OI,3819860,"10,630.95",HC108143,Nottingham Rehab Ltd,201610,Commissioning Adults,Transport-Related Expenditure,
INSERTED DETAIL,27/01/2016,OI,3819861,625,HC109765,REDACTED,201610,Schools,Supplies & Services,
INSERTED DETAIL,29/01/2016,OI,3819864,510,HC118940,Earl Mortimer College & Sixth Form HCC,201610,Schools,Supplies & Services,
INSERTED DETAIL,29/01/2016,OI,3819865,890.67,HC105903,Mastercraft Cycles,201610,Commissioning,Supplies & Services,
INSERTED DETAIL,27/01/2016,OI,3819867,981.55,HC102156,D & D Network Services Ltd,201610,Schools,Supplies & Services,
INSERTED DETAIL,27/01/2016,OI,3819870,"1,087.50",HC105926,Mavis Russell Cleaning Ltd,201610,Schools,Premises-Related Expenditure,
INSERTED DETAIL,27/01/2016,OI,3819871,664.35,HC105512,Lord Combustion Services Ltd,201610,Schools,Premises-Related Expenditure,
INSERTED DETAIL,29/01/2016,OI,3819880,"1,250.00",HC104870,Kingstone High School (Academy),201610,Safeguarding and Family Support,Supplies & Services,
INSERTED DETAIL,29/01/2016,OI,3819884,450,HC109547,REDACTED,201610,Schools,Supplies & Services,
INSERTED DETAIL,27/01/2016,OI,3819888,"1,219.50",HC104505,Herefordshire Rural Hub CIC,201610,Growth,Transfer Payments,
INSERTED DETAIL,27/01/2016,OI,3819896,"1,200.00",HC120380,REDACTED,201610,Growth,Third Party Payments,
INSERTED DETAIL,27/01/2016,OI,3819897,"4,240.00",HC111414,West Mercia  Womens Aid,201610,Growth,Transfer Payments,
INSERTED DETAIL,27/01/2016,OI,3819898,"13,020.75",HC107758,Onside Independent Advocacy,201610,Commissioning Adults,Third Party Payments,
INSERTED DETAIL,27/01/2016,OI,3819899,"20,728.75",HC107758,Onside Independent Advocacy,201610,Commissioning Adults,Third Party Payments,
INSERTED DETAIL,29/01/2016,OI,3819900,"38,889.25",HC103982,HVOSS,201610,Commissioning Adults,Third Party Payments,
INSERTED DETAIL,27/01/2016,OI,3819901,"5,609.45",HC106525,Alzheimer's Society,201610,Mental Health,Supplies & Services,
INSERTED DETAIL,29/01/2016,OI,3819902,"15,000.00",HC107758,Onside Independent Advocacy,201610,Commissioning Adults,Third Party Payments,
INSERTED DETAIL,29/01/2016,OI,3819904,900,HC109765,REDACTED,201610,Schools,Supplies & Services,
INSERTED DETAIL,27/01/2016,OI,3819915,"1,700.00",HC114541,GreySky Consulting Ltd,201610,Growth Capital,Capital Expenditure,
INSERTED DETAIL,27/01/2016,OI,3819919,470.07,HC111380,Welsh Water,201610,Schools,Premises-Related Expenditure,
INSERTED DETAIL,27/01/2016,OI,3819920,"1,126.40",HC111347,Watson Petroleum Limited,201610,Schools,Premises-Related Expenditure,
INSERTED DETAIL,27/01/2016,OI,3819921,"2,152.10",HC108283,Orleton School Meals,201610,Schools,Supplies & Services,
INSERTED DETAIL,27/01/2016,OI,3819927,"1,250.00",HC117852,Nexus Heritage,201610,Commissioning,Supplies & Services,
INSERTED DETAIL,27/01/2016,OI,3819931,"1,437.33",HC108807,Primecare,201610,Transformation and safeguarding,Third Party Payments,
INSERTED DETAIL,29/01/2016,OI,3819932,725.8,HC103171,Forest Of Dean Gymnastics Fitness Centre,201610,Schools,Premises-Related Expenditure,
INSERTED DETAIL,27/01/2016,OI,3819933,750,HC116192,REDACTED,201610,Safeguarding and Family Support,Supplies & Services,
INSERTED DETAIL,27/01/2016,OI,3819939,640,HC112240,You Time Counselling Trust,201610,Schools,Supplies & Services,
INSERTED DETAIL,29/01/2016,OI,3819943,"1,155.00",HC108199,Ofcom (Spectrum Licencing),201610,Commissioning,Supplies & Services,
INSERTED DETAIL,27/01/2016,OI,3819949,991.97,HC106069,Midlands Wood Fuel Supply Ltd (MWF),201610,Schools,Premises-Related Expenditure,
INSERTED DETAIL,29/01/2016,OI,3819952,"6,910.83",HC115532,Enigma CCTV Ltd,201610,Commissioning,Third Party Payments,
INSERTED DETAIL,29/01/2016,OI,3819953,"6,910.83",HC115532,Enigma CCTV Ltd,201610,Commissioning,Third Party Payments,
INSERTED DETAIL,27/01/2016,OI,3819960,"2,979.10",HC103745,Hazelhurst Nursing Home,201610,Physical Disabilities,Third Party Payments,
INSERTED DETAIL,27/01/2016,OI,3819963,"3,363.75",HC118445,Deloitte LLP No 2 Account,201610,Commissioning,Supplies & Services,
INSERTED DETAIL,27/01/2016,OI,3819964,"22,417.86",HC105863,The Cart Shed,201610,Growth,Transfer Payments,
INSERTED DETAIL,27/01/2016,OI,3819965,438.38,HC108473,REDACTED,201610,Schools,Transport-Related Expenditure,
INSERTED DETAIL,27/01/2016,OI,3819970,"1,170.00",HC109622,Sargeants Brothers Ltd,201610,Schools,Transport-Related Expenditure,
INSERTED DETAIL,27/01/2016,OI,3819978,509.84,HC114281,H Carson Ltd  (DAY211),201610,Public Health,Supplies & Services,
INSERTED DETAIL,27/01/2016,OI,3819979,"1,731.40",HC109413,Rumbling Tum,201610,Schools,Supplies & Services,
INSERTED DETAIL,27/01/2016,OI,3819981,"110,854.57",HC108307,Owen Pell Ltd,201610,Growth Capital,Capital Expenditure,
INSERTED DETAIL,27/01/2016,OI,3819982,"25,447.50",HC120402,Joules Brewery Ltd,201610,Growth Capital,Capital Expenditure,
INSERTED DETAIL,27/01/2016,OI,3819986,"1,200.00",HC110387,REDACTED,201610,Schools,Supplies & Services,
INSERTED DETAIL,27/01/2016,OI,3819987,"1,435.00",HC109089,Investec Asset Finance,201610,Schools,Supplies & Services,
INSERTED DETAIL,27/01/2016,OI,3819988,808.88,HC100385,Alliance In Partnership,201610,Schools,Supplies & Services,
INSERTED DETAIL,27/01/2016,OI,3819991,450,HC108361,P W Jones (Hereford) Ltd,201610,Schools,Supplies & Services,
INSERTED DETAIL,29/01/2016,OI,3819995,660.96,HC108443,West Mercia Energy,201610,Schools,Premises-Related Expenditure,
INSERTED DETAIL,27/01/2016,OI,3819998,990,HC103660,Halo Leisure Services Ltd,201610,Schools,Premises-Related Expenditure,
INSERTED DETAIL,29/01/2016,OI,3820000,426.5,HC103660,Halo Leisure Services Ltd,201610,Schools,Premises-Related Expenditure,
INSERTED DETAIL,27/01/2016,OI,3820001,528,HC110459,The Key Support Services Ltd,201610,Schools,Supplies & Services,
INSERTED DETAIL,27/01/2016,OI,3820002,720,HC101647,Cf Asset Finance Ltd,201610,Schools,Supplies & Services,
INSERTED DETAIL,27/01/2016,OI,3820004,574.69,HC100411,Altodigital Networks  Ltd,201610,Schools,Supplies & Services,
INSERTED DETAIL,27/01/2016,OI,3820015,"1,470.00",HC101343,Enterprise Rent A Car UK T/A Flex E Rent,201610,Commissioning,Transport-Related Expenditure,
INSERTED DETAIL,29/01/2016,OI,3820028,448,HC108286,Orphans Press Ltd,201610,Growth,Supplies & Services,
INSERTED DETAIL,29/01/2016,OI,3820029,565.51,HC101123,Boss,201610,Schools,Supplies & Services,
INSERTED DETAIL,29/01/2016,OI,3820031,"4,193.98",HC104097,Hope For Children & Their Families Ltd,201610,Resources,Premises-Related Expenditure,
INSERTED DETAIL,29/01/2016,OI,3820036,525.45,HC103526,Gough Bailey Wright,201610,Commissioning,Supplies & Services,
INSERTED DETAIL,29/01/2016,OI,3820043,"1,605.00",HC118697,Builth Wells High School PCC,201610,Education and Commissioning,Support Services,
INSERTED DETAIL,29/01/2016,OI,3820044,"1,605.00",HC118697,Builth Wells High School PCC,201610,Education and Commissioning,Support Services,
INSERTED DETAIL,29/01/2016,OI,3820045,902.5,HC120414,Balsall Common Primary School,201610,Education and Commissioning,Support Services,
INSERTED DETAIL,29/01/2016,OI,3820046,"3,887.50",HC120415,Dizions Ltd,201610,Education and Commissioning,Supplies & Services,
INSERTED DETAIL,29/01/2016,OI,3820047,834,HC101890,Close House Projects,201610,Education and Commissioning,Third Party Payments,
INSERTED DETAIL,29/01/2016,OI,3820048,"6,717.32",HC101100,Book Trust,201610,Education and Commissioning,Support Services,
INSERTED DETAIL,29/01/2016,OI,3820049,976.62,HC110998,REDACTED,201610,Adults Operations,Supplies & Services,
INSERTED DETAIL,29/01/2016,OI,3820058,"1,188.00",HC101123,Boss,201610,Resources,Premises-Related Expenditure,
INSERTED DETAIL,29/01/2016,OI,3820065,"15,893.64",HC104284,Insight Direct (UK) Ltd,201610,Resources,Supplies & Services,
INSERTED DETAIL,29/01/2016,OI,3820066,478,HC111440,Westcom Business Communications Ltd,201610,Schools Devolved Capital,Capital Expenditure,
INSERTED DETAIL,29/01/2016,OI,3820078,"336,660.84",HC103144,Fcc Environment Services (uk) Ltd,201610,Commissioning,Third Party Payments,
INSERTED DETAIL,29/01/2016,OI,3820079,"1,127.02",HC103552,GL Education Group Ltd,201610,Schools,Supplies & Services,
INSERTED DETAIL,29/01/2016,OI,3820088,"56,250.00",HC116966,South West Audit Partnership Ltd - SWAP,201610,Resources,Supplies & Services,
INSERTED DETAIL,29/01/2016,OI,3820094,"1,109.66",HC109769,Shaw Healthcare (Herefordshire) Ltd,201610,Physical Disabilities,Employees,
INSERTED DETAIL,29/01/2016,OI,3820095,"1,215.00",HC109997,Spa Gas Ltd,201610,Schools,Premises-Related Expenditure,
INSERTED DETAIL,29/01/2016,OI,3820098,790,HC110996,Travel Class Limited T/A Jca,201610,Schools,Supplies & Services,
INSERTED DETAIL,29/01/2016,OI,3820107,738.3,HC111508,Wigmore High School (Academy),201610,Schools,Supplies & Services,
INSERTED DETAIL,03/02/2016,OI,3820108,790.43,HC111380,Welsh Water,201610,Schools,Premises-Related Expenditure,
INSERTED DETAIL,29/01/2016,OI,3820109,455,HC108646,PHS Group Plc,201610,Schools,Supplies & Services,
INSERTED DETAIL,29/01/2016,OI,3820121,450,HC106299,Monmouth School Enterprises Ltd,201610,Schools,Premises-Related Expenditure,
INSERTED DETAIL,29/01/2016,OI,3820132,480,HC100165,ABC Print Ltd,201610,Schools,Supplies & Services,
INSERTED DETAIL,29/01/2016,OI,3820136,"2,350.00",HC102761,Edwards Tree Services Ltd,201610,Schools,Premises-Related Expenditure,
INSERTED DETAIL,29/01/2016,OI,3820156,697,HC111893,Barrington Print Ltd,201610,Resources,Supplies & Services,
INSERTED DETAIL,03/02/2016,OI,3820158,441,HC120103,The Plylimon Trust-Horizon Training,201610,Commissioning,Supplies & Services,
INSERTED DETAIL,03/02/2016,OI,3820169,798,HC114180,SLS School Improvement Ltd,201610,Schools,Supplies & Services,
INSERTED DETAIL,29/01/2016,OI,3820175,"30,191.67",HC120534,Victoria Whitchurch Ltd,201610,Growth Capital,Capital Expenditure,
INSERTED DETAIL,29/01/2016,OI,3820182,480,HC102898,NWN Media Ltd,201610,Schools,Supplies & Services,
INSERTED DETAIL,03/02/2016,OI,3820188,"1,142.16",HC117075,Barton Tree Consultancy Ltd,201610,Commissioning,Supplies & Services,
INSERTED DETAIL,29/01/2016,OI,3820189,"2,047.50",HC118412,Sportsm8tes,201610,Schools,Supplies & Services,
INSERTED DETAIL,29/01/2016,OI,3820195,"9,278.47",HC109775,Shaw Healthcare Ltd,201610,Physical Disabilities,Employees,
INSERTED DETAIL,29/01/2016,OI,3820197,828,HC110034,Superstars/Sports Stars Ltd,201610,Schools,Supplies & Services,
INSERTED DETAIL,29/01/2016,OI,3820198,"1,087.50",HC105926,Mavis Russell Cleaning Ltd,201610,Schools,Premises-Related Expenditure,
INSERTED DETAIL,29/01/2016,OI,3820205,"68,750.00",HC103929,Herefordshire Carers Support Ltd,201610,Commissioning Adults,Supplies & Services,
INSERTED DETAIL,29/01/2016,OI,3820206,"30,956.67",HC111414,West Mercia  Womens Aid,201610,Commissioning Adults,Supplies & Services,
INSERTED DETAIL,29/01/2016,OI,3820207,"3,024.29",HC108396,Ezitracker,201610,Transformation and safeguarding,Supplies & Services,
INSERTED DETAIL,29/01/2016,OI,3820212,"2,464.56",HC103959,Herefordshire Housing Ltd,201610,Transformation and safeguarding,Supplies & Services,
INSERTED DETAIL,29/01/2016,OI,3820241,"2,804.40",HC101470,Cantilupe Surgery,201610,Commissioning,Transfer Payments,
INSERTED DETAIL,29/01/2016,OI,3820244,"9,427.50",HC109775,Shaw Healthcare Ltd,201610,Physical Disabilities,Employees,
INSERTED DETAIL,03/02/2016,OI,3820245,"1,419.29",HC118714,Restore plc,201610,Communities,Supplies & Services,
INSERTED DETAIL,03/02/2016,OI,3820246,"1,485.67",HC118714,Restore plc,201610,Communities,Supplies & Services,
INSERTED DETAIL,05/02/2016,OI,3820247,442.27,HC109642,Scholastic Book Club,201610,Schools,Supplies & Services,
INSERTED DETAIL,03/02/2016,OI,3820260,"1,375.72",HC100519,MLB Ltd,201610,Schools,Supplies & Services,
INSERTED DETAIL,03/02/2016,OI,3820263,"2,080.00",HC110717,The NST Travel Group Plc,201610,Schools,Supplies & Services,
INSERTED DETAIL,08/01/2016,SI,4680233,"36,875.00",HC115806,Lee Baron Ltd,201610,Resources,Premises-Related Expenditure,
INSERTED DETAIL,08/01/2016,SI,4680573,655.79,HC118939,Riverside Primary School - HCC,201610,Commissioning,Premises-Related Expenditure,
INSERTED DETAIL,08/01/2016,SI,4680609,"36,875.00",HC115806,Lee Baron Ltd,201610,Resources,Premises-Related Expenditure,
INSERTED DETAIL,06/01/2016,SI,4680825,"4,413.28",HC100626,Arnold Clark Finance Limited,201610,Adults Operations,Transport-Related Expenditure,
INSERTED DETAIL,06/01/2016,SI,4681201,"33,075.00",HC108725,Pontrilas Developments Ltd,201610,Resources,Premises-Related Expenditure,
INSERTED DETAIL,06/01/2016,SI,4681202,"5,424.30",HC108725,Pontrilas Developments Ltd,201610,Resources,Premises-Related Expenditure,
INSERTED DETAIL,06/01/2016,SI,4681203,"4,252.50",HC108725,Pontrilas Developments Ltd,201610,Resources,Premises-Related Expenditure,
INSERTED DETAIL,15/01/2016,SI,4681210,"10,164.00",HC108725,Pontrilas Developments Ltd,201610,Resources,Premises-Related Expenditure,
INSERTED DETAIL,06/01/2016,SI,4681213,"15,780.79",HC111459,Westwood Developments,201610,Commissioning,Premises-Related Expenditure,
INSERTED DETAIL,06/01/2016,SI,4681227,"6,887.50",HC119429,Marketing Planning Associates (MPA),201610,Communities,Supplies & Services,
INSERTED DETAIL,06/01/2016,SI,4681237,825,HC100153,Abbeydore & Bacton G.P.C.,201610,Commissioning,Third Party Payments,
INSERTED DETAIL,06/01/2016,SI,4681238,"2,531.25",HC101949,Colwall Parish Council,201610,Commissioning,Third Party Payments,
INSERTED DETAIL,06/01/2016,SI,4681249,600,HC101033,Bishopstone & District G.P.C.,201610,Commissioning,Third Party Payments,
INSERTED DETAIL,06/01/2016,SI,4681250,430,HC101142,Brampton Abbotts & Foy G.P.C.,201610,Commissioning,Third Party Payments,
INSERTED DETAIL,06/01/2016,SI,4681251,"2,182.50",HC102067,Cradley Parish Council,201610,Commissioning,Third Party Payments,
INSERTED DETAIL,06/01/2016,SI,4681252,660,HC104099,Hope Mansell Parish Council,201610,Commissioning,Third Party Payments,
INSERTED DETAIL,06/01/2016,SI,4681253,"3,425.00",HC105331,Leominster Town Council,201610,Commissioning,Third Party Payments,
INSERTED DETAIL,06/01/2016,SI,4681278,"1,187.74",HC108443,West Mercia Energy,201610,Schools,Premises-Related Expenditure,
INSERTED DETAIL,06/01/2016,SI,4681281,417.93,HC108443,West Mercia Energy,201610,Schools,Premises-Related Expenditure,
INSERTED DETAIL,06/01/2016,SI,4681286,"2,440.39",HC108443,West Mercia Energy,201610,Schools,Premises-Related Expenditure,
INSERTED DETAIL,06/01/2016,SI,4681343,"3,201.99",HC107488,REDACTED,201610,Safeguarding and Family Support,Third Party Payments,
INSERTED DETAIL,06/01/2016,SI,4681346,504,HC116224,REDACTED,201610,Safeguarding and Family Support,Supplies & Services,
INSERTED DETAIL,06/01/2016,SI,4681347,737.5,HC118077,REDACTED,201610,Safeguarding and Family Support,Supplies & Services,
INSERTED DETAIL,06/01/2016,SI,4681350,"3,534.00",HC118107,REDACTED,201610,Safeguarding and Family Support,Third Party Payments,
INSERTED DETAIL,06/01/2016,SI,4681351,"3,534.00",HC118107,REDACTED,201610,Safeguarding and Family Support,Third Party Payments,
INSERTED DETAIL,06/01/2016,SI,4681352,"3,520.67",HC118112,REDACTED,201610,Safeguarding and Family Support,Third Party Payments,
INSERTED DETAIL,06/01/2016,SI,4681353,"3,224.00",HC118610,REDACTED,201610,Safeguarding and Family Support,Third Party Payments,
INSERTED DETAIL,06/01/2016,SI,4681354,"2,865.33",HC119188,REDACTED,201610,Safeguarding and Family Support,Third Party Payments,
INSERTED DETAIL,06/01/2016,SI,4681363,"3,255.00",HC103035,REDACTED,201610,Safeguarding and Family Support,Third Party Payments,
INSERTED DETAIL,06/01/2016,SI,4681364,"4,424.01",HC103035,REDACTED,201610,Safeguarding and Family Support,Third Party Payments,
INSERTED DETAIL,06/01/2016,SI,4681365,"3,361.64",HC103035,REDACTED,201610,Safeguarding and Family Support,Third Party Payments,
INSERTED DETAIL,06/01/2016,SI,4681366,"3,361.85",HC112045,REDACTED,201610,Safeguarding and Family Support,Third Party Payments,
INSERTED DETAIL,06/01/2016,SI,4681367,"3,361.85",HC112045,REDACTED,201610,Safeguarding and Family Support,Third Party Payments,
INSERTED DETAIL,06/01/2016,SI,4681368,571.42,HC114547,REDACTED,201610,Safeguarding and Family Support,Third Party Payments,
INSERTED DETAIL,06/01/2016,SI,4681465,"1,000.00",HC102416,Neopost Ltd,201610,Resources,Supplies & Services,
INSERTED DETAIL,06/01/2016,SI,4681466,"1,000.00",HC102416,Neopost Ltd,201610,Resources,Supplies & Services,
INSERTED DETAIL,06/01/2016,SI,4681467,"1,000.00",HC102416,Neopost Ltd,201610,Resources,Supplies & Services,
INSERTED DETAIL,06/01/2016,SI,4681490,529,HC103547,RICS (BCIS),201610,Commissioning,Employees,
INSERTED DETAIL,06/01/2016,SI,4681585,"53,453.01",HC117423,Interserve FS (UK) Ltd,201610,Holding Codes,Holding Codes,
INSERTED DETAIL,06/01/2016,SI,4681638,"1,800.00",HC117550,REDACTED,201610,Safeguarding and Family Support,Third Party Payments,
INSERTED DETAIL,06/01/2016,SI,4681643,572,HC105714,QEHC Academy Trust T/A Queen Elizabeth Humanities College,201610,Schools,Supplies & Services,
INSERTED DETAIL,06/01/2016,SI,4681652,"1,342.05",HC101123,Boss,201610,Schools,Supplies & Services,
INSERTED DETAIL,06/01/2016,SI,4681663,"1,325.35",HC102941,Discovery Education Europe Ltd,201610,Schools,Supplies & Services,
INSERTED DETAIL,06/01/2016,SI,4681664,"30,000.00",HC103317,Gallagher Bassett International Ltd,201610,Resources,Supplies & Services,
INSERTED DETAIL,06/01/2016,SI,4681666,"1,282.55",HC102941,Discovery Education Europe Ltd,201610,Schools,Supplies & Services,
INSERTED DETAIL,06/01/2016,SI,4681668,600,HC118814,REDACTED,201610,Schools,Supplies & Services,
INSERTED DETAIL,06/01/2016,SI,4681673,"1,200.00",HC102695,Eastnor Pottery,201610,Schools,Supplies & Services,
INSERTED DETAIL,06/01/2016,SI,4681675,450,HC110034,Superstars/Sports Stars Ltd,201610,Schools,Supplies & Services,
INSERTED DETAIL,06/01/2016,SI,4681685,"1,249.37",HC104882,K T Gooch,201610,Schools,Supplies & Services,
INSERTED DETAIL,06/01/2016,SI,4681688,"3,762.50",HC102749,Edutech Solutions Ltd,201610,Schools,Premises-Related Expenditure,
INSERTED DETAIL,06/01/2016,SI,4681690,520.44,HC101861,Clearview Cleaning Services,201610,Schools,Premises-Related Expenditure,
INSERTED DETAIL,06/01/2016,SI,4681691,"1,800.00",HC110435,Team-Teach Ltd,201610,Education and Commissioning,Supplies & Services,
INSERTED DETAIL,06/01/2016,SI,4681693,595,HC101472,Capita Business Services Ltd,201610,Schools,Supplies & Services,
INSERTED DETAIL,06/01/2016,SI,4681699,450,HC102644,Data Harvest Group Ltd,201610,Schools,Supplies & Services,
INSERTED DETAIL,06/01/2016,SI,4681710,621,HC116366,REDACTED,201610,Schools,Supplies & Services,
INSERTED DETAIL,06/01/2016,SI,4681712,"1,902.50",HC108505,Pearson Education Ltd,201610,Schools,Supplies & Services,
INSERTED DETAIL,06/01/2016,SI,4681721,"1,590.00",HC103196,REDACTED,201610,Safeguarding and Family Support,Third Party Payments,
INSERTED DETAIL,06/01/2016,SI,4681722,"2,192.14",HC103196,REDACTED,201610,Safeguarding and Family Support,Third Party Payments,
INSERTED DETAIL,06/01/2016,SI,4681723,"3,520.71",HC103196,REDACTED,201610,Safeguarding and Family Support,Third Party Payments,
INSERTED DETAIL,08/01/2016,SI,4681725,595.9,HC115216,REDACTED,201610,Communities,Supplies & Services,
INSERTED DETAIL,06/01/2016,SI,4681726,"3,386.71",HC103196,REDACTED,201610,Safeguarding and Family Support,Third Party Payments,
INSERTED DETAIL,06/01/2016,SI,4681727,"2,991.94",HC103196,REDACTED,201610,Safeguarding and Family Support,Third Party Payments,
INSERTED DETAIL,06/01/2016,SI,4681728,"3,476.43",HC103196,REDACTED,201610,Safeguarding and Family Support,Third Party Payments,
INSERTED DETAIL,06/01/2016,SI,4681729,"3,232.86",HC103196,REDACTED,201610,Safeguarding and Family Support,Third Party Payments,
INSERTED DETAIL,06/01/2016,SI,4681730,"3,476.43",HC103196,REDACTED,201610,Safeguarding and Family Support,Third Party Payments,
INSERTED DETAIL,06/01/2016,SI,4681731,"2,991.94",HC103196,REDACTED,201610,Safeguarding and Family Support,Third Party Payments,
INSERTED DETAIL,06/01/2016,SI,4681733,"4,111.00",HC102543,"Dr M Hayes, Dr E Wessels & Dr K McCarthy",201610,Communities,Supplies & Services,
INSERTED DETAIL,06/01/2016,SI,4681735,"3,520.71",HC103196,REDACTED,201610,Safeguarding and Family Support,Third Party Payments,
INSERTED DETAIL,06/01/2016,SI,4681736,956.95,HC111380,Welsh Water,201610,Commissioning,Premises-Related Expenditure,
INSERTED DETAIL,06/01/2016,SI,4681752,"2,747.80",HC107522,Mrs M J Thomson (The Iron Rice Bowl),201610,Schools,Supplies & Services,
INSERTED DETAIL,06/01/2016,SI,4681754,452.35,HC102416,Neopost Ltd,201610,Resources,Supplies & Services,
INSERTED DETAIL,06/01/2016,SI,4681755,"2,989.76",HC108593,Peters Bookselling Services,201610,Communities,Supplies & Services,
INSERTED DETAIL,06/01/2016,SI,4681757,"4,625.00",HC120425,REDACTED,201610,Safeguarding and Family Support,Supplies & Services,
INSERTED DETAIL,06/01/2016,SI,4681759,652.6,HC102556,REDACTED,201610,Communities,Supplies & Services,
INSERTED DETAIL,06/01/2016,SI,4681760,495,HC103165,Forensics Ltd,201610,Communities,Supplies & Services,
INSERTED DETAIL,06/01/2016,SI,4681762,"4,362.14",HC105376,REDACTED,201610,Safeguarding and Family Support,Third Party Payments,
INSERTED DETAIL,06/01/2016,SI,4681764,740,HC114841,REDACTED,201610,Safeguarding and Family Support,Supplies & Services,
INSERTED DETAIL,06/01/2016,SI,4681765,"3,100.00",HC117550,REDACTED,201610,Safeguarding and Family Support,Third Party Payments,
INSERTED DETAIL,06/01/2016,SI,4681766,"3,975.00",HC117688,REDACTED,201610,Safeguarding and Family Support,Third Party Payments,
INSERTED DETAIL,06/01/2016,SI,4681767,"1,515.78",HC102416,Neopost Ltd,201610,Resources,Supplies & Services,
INSERTED DETAIL,06/01/2016,SI,4681768,"2,023.18",HC102416,Neopost Ltd,201610,Resources,Supplies & Services,
INSERTED DETAIL,06/01/2016,SI,4681769,"4,144.05",HC105376,REDACTED,201610,Safeguarding and Family Support,Third Party Payments,
INSERTED DETAIL,06/01/2016,SI,4681770,451.44,HC120428,REDACTED,201610,Safeguarding and Family Support,Third Party Payments,
INSERTED DETAIL,06/01/2016,SI,4681778,"8,899.00",HC100385,Alliance In Partnership,201610,Schools,Supplies & Services,
INSERTED DETAIL,06/01/2016,SI,4681779,"2,538.80",HC100385,Alliance In Partnership,201610,Schools,Supplies & Services,
INSERTED DETAIL,06/01/2016,SI,4681780,"1,412.40",HC100385,Alliance In Partnership,201610,Schools,Supplies & Services,
INSERTED DETAIL,06/01/2016,SI,4681781,"2,774.20",HC100385,Alliance In Partnership,201610,Schools,Supplies & Services,
INSERTED DETAIL,06/01/2016,SI,4681783,"4,057.23",HC108793,REDACTED,201610,Adults Operations,Supplies & Services,
INSERTED DETAIL,06/01/2016,SI,4681786,"23,557.07",HC120421,Homes & Communities Agency (HCA),201610,Resources Capital,Capital Income,
INSERTED DETAIL,06/01/2016,SI,4681787,871.35,HC120424,REDACTED,201610,Commissioning,Supplies & Services,
INSERTED DETAIL,06/01/2016,SI,4681789,"1,899.00",HC117808,REDACTED,201610,Safeguarding and Family Support,Supplies & Services,
INSERTED DETAIL,06/01/2016,SI,4681805,899.7,HC120426,A J Merriman Electrical Services,201610,Schools,Premises-Related Expenditure,
INSERTED DETAIL,06/01/2016,SI,4681812,"1,892.00",HC106098,Millhouse Residential Care Home,201610,Learning Disabilities,Third Party Payments,
INSERTED DETAIL,08/01/2016,SI,4681816,"2,019.23",HC102416,Neopost Ltd,201610,Resources,Supplies & Services,
INSERTED DETAIL,06/01/2016,SI,4681818,898.03,HC110583,The Danwood Group Limited,201610,Schools,Supplies & Services,
INSERTED DETAIL,06/01/2016,SI,4681819,580.47,HC110583,The Danwood Group Limited,201610,Schools,Supplies & Services,
INSERTED DETAIL,08/01/2016,SI,4681830,"2,261.60",HC100385,Alliance In Partnership,201610,Schools,Supplies & Services,
INSERTED DETAIL,06/01/2016,SI,4681834,"8,312.50",HC110272,Sunderlands & Thompsons (Client Rental A/C),201610,Communities,Premises-Related Expenditure,
INSERTED DETAIL,06/01/2016,SI,4681835,"6,250.00",HC101961,Arkwright Owens (Standing Order only),201610,Adults Operations,Premises-Related Expenditure,
INSERTED DETAIL,06/01/2016,SI,4681836,"36,718.14",HC103831,Hereford & Worc Fire & Rescue Service,201610,Consolidated Revenue Account,Supplies & Services,
INSERTED DETAIL,10/02/2016,SI,4681847,"3,979.25",HC101473,Capita Business Services Ltd (Direct Debit),201610,Resources,Supplies & Services,
INSERTED DETAIL,08/01/2016,SI,4681848,"2,663.80",HC107522,Mrs M J Thomson (The Iron Rice Bowl),201610,Schools,Supplies & Services,
INSERTED DETAIL,08/01/2016,SI,4681849,718.84,HC107522,Mrs M J Thomson (The Iron Rice Bowl),201610,Schools,Supplies & Services,
INSERTED DETAIL,08/01/2016,SI,4681855,"1,874.84",HC100969,Bertram Trading Ltd,201610,Communities,Supplies & Services,
INSERTED DETAIL,13/01/2016,SI,4681857,"4,840.25",HC100969,Bertram Trading Ltd,201610,Communities,Supplies & Services,
INSERTED DETAIL,13/01/2016,SI,4681867,"4,785.66",HC101387,Allpay Ltd  (Direct Debit only),201610,Resources,Supplies & Services,
INSERTED DETAIL,13/01/2016,SI,4681876,"5,256.01",HC101387,Allpay Ltd  (Direct Debit only),201610,Resources,Supplies & Services,
INSERTED DETAIL,08/01/2016,SI,4681882,500,HC120435,REDACTED,201610,Growth,Transfer Payments,
INSERTED DETAIL,08/01/2016,SI,4681899,"5,140.00",HC118940,Earl Mortimer College & Sixth Form HCC,201610,Schools,Supplies & Services,
INSERTED DETAIL,08/01/2016,SI,4681904,"1,102.00",HC101439,Callow & Haywood G.P.C.,201610,Commissioning,Third Party Payments,
INSERTED DETAIL,13/01/2016,SI,4681905,"17,573.00",HC115392,RNIB Services Ltd,201610,Education and Commissioning,Third Party Payments,
INSERTED DETAIL,13/01/2016,SI,4681906,"17,573.33",HC115392,RNIB Services Ltd,201610,Education and Commissioning,Third Party Payments,
INSERTED DETAIL,13/01/2016,SI,4681907,"3,046.06",HC112753,REDACTED,201610,Safeguarding and Family Support,Third Party Payments,
INSERTED DETAIL,13/01/2016,SI,4681908,"3,485.33",HC112753,REDACTED,201610,Safeguarding and Family Support,Third Party Payments,
INSERTED DETAIL,13/01/2016,SI,4681909,"3,485.33",HC112753,REDACTED,201610,Safeguarding and Family Support,Third Party Payments,
INSERTED DETAIL,13/01/2016,SI,4681910,"3,485.33",HC112753,REDACTED,201610,Safeguarding and Family Support,Third Party Payments,
INSERTED DETAIL,13/01/2016,SI,4681911,"3,374.73",HC112975,REDACTED,201610,Safeguarding and Family Support,Third Party Payments,
INSERTED DETAIL,13/01/2016,SI,4681912,"17,573.33",HC115392,RNIB Services Ltd,201610,Education and Commissioning,Third Party Payments,
INSERTED DETAIL,13/01/2016,SI,4681913,"3,188.57",HC100163,REDACTED,201610,Safeguarding and Family Support,Third Party Payments,
INSERTED DETAIL,13/01/2016,SI,4681914,"3,029.14",HC100163,REDACTED,201610,Safeguarding and Family Support,Third Party Payments,
INSERTED DETAIL,13/01/2016,SI,4681915,"3,188.57",HC100163,REDACTED,201610,Safeguarding and Family Support,Third Party Payments,
INSERTED DETAIL,13/01/2016,SI,4681916,"17,573.33",HC115392,RNIB Services Ltd,201610,Education and Commissioning,Third Party Payments,
INSERTED DETAIL,08/01/2016,SI,4681920,"18,920.00",HC106098,Millhouse Residential Care Home,201610,Learning Disabilities,Third Party Payments,
INSERTED DETAIL,08/01/2016,SI,4681922,500,HC120434,REDACTED,201610,Growth,Transfer Payments,
INSERTED DETAIL,08/01/2016,SI,4681923,500,HC120433,REDACTED,201610,Growth,Transfer Payments,
INSERTED DETAIL,08/01/2016,SI,4681924,500,HC118092,REDACTED,201610,Growth,Transfer Payments,
INSERTED DETAIL,08/01/2016,SI,4681943,934.8,HC101123,Boss,201610,Schools,Supplies & Services,
INSERTED DETAIL,08/01/2016,SI,4681944,450,HC108548,123Comms Ltd,201610,Schools,Supplies & Services,
INSERTED DETAIL,13/01/2016,SI,4681946,"3,454.29",HC100163,REDACTED,201610,Safeguarding and Family Support,Third Party Payments,
INSERTED DETAIL,13/01/2016,SI,4681947,"3,415.29",HC100163,REDACTED,201610,Safeguarding and Family Support,Third Party Payments,
INSERTED DETAIL,13/01/2016,SI,4681948,"3,596.00",HC112753,REDACTED,201610,Safeguarding and Family Support,Third Party Payments,
INSERTED DETAIL,13/01/2016,SI,4681949,"3,046.06",HC112753,REDACTED,201610,Safeguarding and Family Support,Third Party Payments,
INSERTED DETAIL,08/01/2016,SI,4681954,"1,926.00",HC104055,HM Courts & Tribunals Service,201610,Resources,Supplies & Services,
INSERTED DETAIL,13/01/2016,SI,4681957,"3,607.47",HC114039,REDACTED,201610,Safeguarding and Family Support,Third Party Payments,
INSERTED DETAIL,13/01/2016,SI,4681958,"3,416.20",HC114039,REDACTED,201610,Safeguarding and Family Support,Third Party Payments,
INSERTED DETAIL,13/01/2016,SI,4681959,"1,502.70",HC100385,Alliance In Partnership,201610,Schools,Supplies & Services,
INSERTED DETAIL,13/01/2016,SI,4681965,"6,081.88",HC102102,REDACTED,201610,Safeguarding and Family Support,Third Party Payments,
INSERTED DETAIL,13/01/2016,SI,4681966,"3,973.89",HC110812,REDACTED,201610,Safeguarding and Family Support,Third Party Payments,
INSERTED DETAIL,13/01/2016,SI,4681967,"3,224.00",HC114039,REDACTED,201610,Safeguarding and Family Support,Third Party Payments,
INSERTED DETAIL,13/01/2016,SI,4681972,856,HC107825,Much Birch Parish Council,201610,Commissioning,Third Party Payments,
INSERTED DETAIL,13/01/2016,SI,4681973,"1,668.80",HC108512,Pembridge Parish Council,201610,Commissioning,Third Party Payments,
INSERTED DETAIL,13/01/2016,SI,4681974,"1,212.00",HC111456,Weston-Under-Penyard P.C.,201610,Commissioning,Third Party Payments,
INSERTED DETAIL,13/01/2016,SI,4681975,"1,986.00",HC111657,Wyeside Group Parish Council,201610,Commissioning,Third Party Payments,
INSERTED DETAIL,13/01/2016,SI,4681976,"1,242.00",HC102989,Ewyas Harold GPC,201610,Commissioning,Third Party Payments,
INSERTED DETAIL,13/01/2016,SI,4681977,728.5,HC105430,Little Dewchurch Parish Council,201610,Commissioning,Third Party Payments,
INSERTED DETAIL,13/01/2016,SI,4681978,"1,330.00",HC100382,Allensmore Parish Council,201610,Commissioning,Third Party Payments,
INSERTED DETAIL,13/01/2016,SI,4681986,"235,374.28",HC107466,Worcestershire Health & Care NHS Trust,201610,Public Health,Third Party Payments,
INSERTED DETAIL,13/01/2016,SI,4681987,"3,032.64",HC105355,REDACTED,201610,Safeguarding and Family Support,Transport-Related Expenditure,
INSERTED DETAIL,13/01/2016,SI,4681988,"147,522.74",HC120328,Addaction,201610,Public Health,Third Party Payments,
INSERTED DETAIL,13/01/2016,SI,4681996,"1,029.50",HC103954,Herefordshire Headway,201610,Physical Disabilities,Third Party Payments,
INSERTED DETAIL,13/01/2016,SI,4681998,952.38,HC103954,Herefordshire Headway,201610,Physical Disabilities,Third Party Payments,
INSERTED DETAIL,13/01/2016,SI,4682000,"1,016.73",HC103954,Herefordshire Headway,201610,Physical Disabilities,Third Party Payments,
INSERTED DETAIL,13/01/2016,SI,4682007,"1,061.78",HC103954,Herefordshire Headway,201610,Physical Disabilities,Third Party Payments,
INSERTED DETAIL,13/01/2016,SI,4682008,450.45,HC103954,Herefordshire Headway,201610,Physical Disabilities,Third Party Payments,
INSERTED DETAIL,15/01/2016,SI,4682011,"1,773.02",HC111380,Welsh Water,201610,Commissioning,Premises-Related Expenditure,
INSERTED DETAIL,13/01/2016,SI,4682013,945.95,HC103954,Herefordshire Headway,201610,Physical Disabilities,Third Party Payments,
INSERTED DETAIL,13/01/2016,SI,4682016,907.34,HC103954,Herefordshire Headway,201610,Physical Disabilities,Third Party Payments,
INSERTED DETAIL,13/01/2016,SI,4682018,965.25,HC103954,Herefordshire Headway,201610,Physical Disabilities,Third Party Payments,
INSERTED DETAIL,13/01/2016,SI,4682020,978.12,HC103954,Herefordshire Headway,201610,Physical Disabilities,Third Party Payments,
INSERTED DETAIL,13/01/2016,SI,4682022,894.47,HC103954,Herefordshire Headway,201610,Physical Disabilities,Third Party Payments,
INSERTED DETAIL,13/01/2016,SI,4682023,907.34,HC103954,Herefordshire Headway,201610,Physical Disabilities,Third Party Payments,
INSERTED DETAIL,13/01/2016,SI,4682025,900.9,HC103954,Herefordshire Headway,201610,Physical Disabilities,Third Party Payments,
INSERTED DETAIL,13/01/2016,SI,4682027,"1,074.65",HC103954,Herefordshire Headway,201610,Physical Disabilities,Third Party Payments,
INSERTED DETAIL,13/01/2016,SI,4682034,772.2,HC103954,Herefordshire Headway,201610,Physical Disabilities,Third Party Payments,
INSERTED DETAIL,13/01/2016,SI,4682038,881.6,HC103954,Herefordshire Headway,201610,Physical Disabilities,Third Party Payments,
INSERTED DETAIL,13/01/2016,SI,4682042,"2,015.00",HC104140,"Humber, Ford & Stoke Prior G.P.C.",201610,Commissioning,Third Party Payments,
INSERTED DETAIL,13/01/2016,SI,4682044,972,HC110898,Titley And District G P C,201610,Commissioning,Third Party Payments,
INSERTED DETAIL,13/01/2016,SI,4682045,499.27,HC111380,Welsh Water,201610,Schools,Premises-Related Expenditure,
INSERTED DETAIL,13/01/2016,SI,4682048,"5,280.32",HC108793,REDACTED,201610,Adults Operations,Supplies & Services,
INSERTED DETAIL,13/01/2016,SI,4682050,"1,422.00",HC100385,REDACTED,201610,Adults Operations,Supplies & Services,
INSERTED DETAIL,13/01/2016,SI,4682051,544.5,HC100385,Alliance In Partnership,201610,Schools,Supplies & Services,
detail,13/01/2016,SI,4682052,694.7,HC100385,Alliance In Partnership,201610,Schools,Supplies & Services,
INSERTED DETAIL,13/01/2016,SI,4682053,"1,093.00",HC100385,Alliance In Partnership,201610,Schools,Supplies & Services,
INSERTED DETAIL,13/01/2016,SI,4682054,"1,882.40",HC100385,Alliance In Partnership,201610,Schools,Supplies & Services,
INSERTED DETAIL,13/01/2016,SI,4682057,"2,000.00",HC103940,REDACTED,201610,Safeguarding and Family Support,Supplies & Services,
INSERTED DETAIL,13/01/2016,SI,4682058,"2,000.00",HC103940,REDACTED,201610,Safeguarding and Family Support,Supplies & Services,
INSERTED DETAIL,13/01/2016,SI,4682059,630,HC118939,Riverside Primary School - HCC,201610,Education and Commissioning,Transfer Payments,
INSERTED DETAIL,13/01/2016,SI,4682060,630,HC101340,Burley Gate Pre-School,201610,Education and Commissioning,Transfer Payments,
INSERTED DETAIL,13/01/2016,SI,4682062,"1,045.00",HC110322,Sutton Seedlings,201610,Education and Commissioning,Transfer Payments,
INSERTED DETAIL,13/01/2016,SI,4682063,487,HC111022,Trinity Extended Services CIC 1 Nursery,201610,Education and Commissioning,Transfer Payments,
INSERTED DETAIL,13/01/2016,SI,4682064,630,HC111648,Wye Nursery,201610,Education and Commissioning,Transfer Payments,
INSERTED DETAIL,13/01/2016,SI,4682065,426,HC103201,Wyeside Day Nursery,201610,Education and Commissioning,Transfer Payments,
INSERTED DETAIL,13/01/2016,SI,4682066,630,HC108691,Play And Learn Nurseries Ltd,201610,Education and Commissioning,Transfer Payments,
INSERTED DETAIL,13/01/2016,SI,4682067,"1,045.00",HC108172,Oak House Nursery (Ohns),201610,Education and Commissioning,Transfer Payments,
INSERTED DETAIL,13/01/2016,SI,4682068,"2,385.00",HC108094,Noahs Ark Pre-School,201610,Education and Commissioning,Transfer Payments,
INSERTED DETAIL,13/01/2016,SI,4682069,630,HC114882,Merry Go Round Day Nursery @ Riverside,201610,Education and Commissioning,Transfer Payments,
INSERTED DETAIL,13/01/2016,SI,4682070,588,HC115913,Beech House Nursery School,201610,Education and Commissioning,Transfer Payments,
INSERTED DETAIL,13/01/2016,SI,4682071,"1,045.00",HC102141,Cut & Paste Childcare,201610,Education and Commissioning,Transfer Payments,
INSERTED DETAIL,13/01/2016,SI,4682072,"2,090.00",HC101037,Bizzie Lizzies,201610,Education and Commissioning,Transfer Payments,
INSERTED DETAIL,13/01/2016,SI,4682073,567,HC103492,Golden Valley Pre School,201610,Education and Commissioning,Transfer Payments,
INSERTED DETAIL,13/01/2016,SI,4682074,"1,675.00",HC102462,Dolly Mixtures Pre School,201610,Education and Commissioning,Transfer Payments,
INSERTED DETAIL,13/01/2016,SI,4682075,"1,045.00",HC105989,Merry Go Round,201610,Education and Commissioning,Transfer Payments,
INSERTED DETAIL,13/01/2016,SI,4682076,"1,056.00",HC105771,Marden Playgroup,201610,Education and Commissioning,Transfer Payments,
INSERTED DETAIL,13/01/2016,SI,4682077,630,HC105692,Madley Pre School,201610,Education and Commissioning,Transfer Payments,
INSERTED DETAIL,13/01/2016,SI,4682078,630,HC105434,Little Leintwardine Nursery CIC,201610,Education and Commissioning,Transfer Payments,
INSERTED DETAIL,13/01/2016,SI,4682079,"1,045.00",HC105050,Kimbolton Nursery Group,201610,Education and Commissioning,Transfer Payments,
INSERTED DETAIL,13/01/2016,SI,4682080,630,HC104377,Ivington Early Days CIC,201610,Education and Commissioning,Transfer Payments,
INSERTED DETAIL,13/01/2016,SI,4682081,905,HC104145,Hunderton Neighbourhood Nursery,201610,Education and Commissioning,Transfer Payments,
INSERTED DETAIL,13/01/2016,SI,4682083,"2,723.00",HC100385,Alliance In Partnership,201610,Schools,Supplies & Services,
INSERTED DETAIL,13/01/2016,SI,4682086,"2,079.34",HC111380,Welsh Water,201610,Schools,Premises-Related Expenditure,
INSERTED DETAIL,13/01/2016,SI,4682088,"1,133.00",HC110250,RJ & RB Mailes,201610,Schools,Supplies & Services,
INSERTED DETAIL,13/01/2016,SI,4682090,590,HC111685,Yeomans Travel Ltd,201610,Schools,Transport-Related Expenditure,
INSERTED DETAIL,13/01/2016,SI,4682094,"1,045.00",HC101353,Busy Bees Pre School (Clifford),201610,Education and Commissioning,Transfer Payments,
INSERTED DETAIL,13/01/2016,SI,4682095,630,HC101255,Brockhampton  Pre School,201610,Education and Commissioning,Transfer Payments,
INSERTED DETAIL,13/01/2016,SI,4682096,"1,675.00",HC100870,Bargates Childrens Centre,201610,Education and Commissioning,Transfer Payments,
INSERTED DETAIL,13/01/2016,SI,4682097,"1,214.00",HC114361,Dolphin Lifts Midlands Ltd,201610,Housing & Independent Living Capital,Capital Expenditure,
INSERTED DETAIL,15/01/2016,SI,4682099,470.3,HC100767,REDACTED,201610,Schools,Supplies & Services,
INSERTED DETAIL,13/01/2016,SI,4682107,509,HC105360,REDACTED,201610,Resources,Employees,
INSERTED DETAIL,13/01/2016,SI,4682108,523.05,HC111024,Trinity Primary School (Imprest/Petty Cash),201610,Schools,Supplies & Services,
INSERTED DETAIL,13/01/2016,SI,4682109,942.99,HC111060,TTS Group Ltd,201610,Schools,Supplies & Services,
INSERTED DETAIL,13/01/2016,SI,4682125,723.75,HC108521,Pencombe & Little Cowarne Parish Hall,201610,Schools,Premises-Related Expenditure,
INSERTED DETAIL,13/01/2016,SI,4682146,859.21,HC111380,Welsh Water,201610,Schools,Premises-Related Expenditure,
INSERTED DETAIL,13/01/2016,SI,4682161,859.21,HC111380,Welsh Water,201610,Schools,Premises-Related Expenditure,
INSERTED DETAIL,13/01/2016,SI,4682162,"95,000.00",HC103317,Gallagher Bassett International Ltd,201610,Resources,Supplies & Services,
INSERTED DETAIL,15/01/2016,SI,4682167,"456,297.57",HC104323,Integral UK Ltd,201610,Holding Codes,Holding Codes,
INSERTED DETAIL,15/01/2016,SI,4682173,"1,701.38",HC100845,Clifford Community Centre,201610,Schools,Premises-Related Expenditure,
INSERTED DETAIL,15/01/2016,SI,4682174,"1,675.00",HC105571,Wigmore Primary School (Academy),201610,Education and Commissioning,Transfer Payments,
INSERTED DETAIL,15/01/2016,SI,4682176,630,HC104761,Herefordshire Marches Federation-Lord Scudamore,201610,Education and Commissioning,Transfer Payments,
INSERTED DETAIL,15/01/2016,SI,4682177,"1,045.00",HC104019,Highmore Hedgehogs Preschool,201610,Education and Commissioning,Transfer Payments,
INSERTED DETAIL,15/01/2016,SI,4682189,650,HC103390,George Youngs Coaches Ltd (Factor A/C),201610,Schools,Transport-Related Expenditure,
INSERTED DETAIL,15/01/2016,SI,4682190,690,HC103390,George Youngs Coaches Ltd (Factor A/C),201610,Schools,Transport-Related Expenditure,
INSERTED DETAIL,15/01/2016,SI,4682192,500,HC120464,REDACTED,201610,Growth,Transfer Payments,
INSERTED DETAIL,15/01/2016,SI,4682193,"1,110.75",HC100385,Alliance In Partnership,201610,Schools,Supplies & Services,
INSERTED DETAIL,15/01/2016,SI,4682194,"1,989.00",HC100385,Alliance In Partnership,201610,Schools,Supplies & Services,
INSERTED DETAIL,15/01/2016,SI,4682195,"2,571.24",HC102362,Dell Corporation Ltd,201610,Schools,Supplies & Services,
INSERTED DETAIL,15/01/2016,SI,4682200,559.92,HC111426,West Mercia Supplies (The Consortium),201610,Schools,Premises-Related Expenditure,
INSERTED DETAIL,15/01/2016,SI,4682210,908.35,HC111426,West Mercia Supplies (The Consortium),201610,Schools,Supplies & Services,
INSERTED DETAIL,15/01/2016,SI,4682211,"2,594.45",HC111426,West Mercia Supplies (The Consortium),201610,Schools,Supplies & Services,
INSERTED DETAIL,15/01/2016,SI,4682212,"1,521.24",HC111426,West Mercia Supplies (The Consortium),201610,Schools,Supplies & Services,
INSERTED DETAIL,15/01/2016,SI,4682218,538,HC109747,SG World Ltd,201610,Schools,Supplies & Services,
INSERTED DETAIL,15/01/2016,SI,4682225,"3,447.00",HC111004,Trend Control Systems Limited,201610,Schools,Premises-Related Expenditure,
INSERTED DETAIL,15/01/2016,SI,4682228,559.78,HC111426,West Mercia Supplies (The Consortium),201610,Schools,Supplies & Services,
INSERTED DETAIL,15/01/2016,SI,4682232,520.44,HC101861,Clearview Cleaning Services,201610,Schools,Premises-Related Expenditure,
INSERTED DETAIL,15/01/2016,SI,4682240,485.87,HC109835,Siemens Financial Services Ltd,201610,Schools,Supplies & Services,
INSERTED DETAIL,15/01/2016,SI,4682244,"7,166.10",HC100385,Alliance In Partnership,201610,Schools,Supplies & Services,
INSERTED DETAIL,15/01/2016,SI,4682245,"1,029.60",HC103954,Herefordshire Headway,201610,Physical Disabilities,Third Party Payments,
INSERTED DETAIL,15/01/2016,SI,4682269,"1,740.00",HC108852,Provide Home Solutions Ltd,201610,Schools,Premises-Related Expenditure,
INSERTED DETAIL,15/01/2016,SI,4682270,547.5,HC118990,Arthur J Gallagher Insurance Brokers Ltd,201610,Schools,Supplies & Services,
INSERTED DETAIL,15/01/2016,SI,4682272,454.83,HC110583,The Danwood Group Limited,201610,Schools,Supplies & Services,
INSERTED DETAIL,15/01/2016,SI,4682274,"1,131.98",HC110583,The Danwood Group Limited,201610,Schools,Supplies & Services,
INSERTED DETAIL,15/01/2016,SI,4682276,"2,725.00",HC104761,Herefordshire Marches Federation-Lord Scudamore,201610,Schools,Supplies & Services,
INSERTED DETAIL,15/01/2016,SI,4682285,484.7,HC109997,Spa Gas Ltd,201610,Schools,Premises-Related Expenditure,
INSERTED DETAIL,15/01/2016,SI,4682290,"1,264.75",HC102941,Discovery Education Europe Ltd,201610,Schools,Supplies & Services,
INSERTED DETAIL,27/01/2016,SI,4682294,"1,390.50",HC100385,Alliance In Partnership,201610,Schools,Supplies & Services,
"detail,1",15/01/2016,SI,4682295,891,HC105857,Marstow Parish Council,201610,Commissioning,Third Party Payments,
,15/01/2016,SI,4682296,550,HC104099,Hope Mansell Parish Council,201610,Commissioning,Third Party Payments,
,15/01/2016,SI,4682297,"1,125.00",HC105689,Madley Parish Council,201610,Commissioning,Third Party Payments,
,15/01/2016,SI,4682298,"2,839.00",HC111473,Whitchurch & Ganarew GPC,201610,Commissioning,Third Party Payments,
,15/01/2016,SI,4682299,630,HC111473,Whitchurch & Ganarew GPC,201610,Commissioning,Third Party Payments,
,15/01/2016,SI,4682301,"139,375.00",HC120286,Setfords Solicitors Ltd,201610,Housing & Independent Living Capital,Capital Expenditure,
,15/01/2016,SI,4682303,600,HC120286,Setfords Solicitors Ltd,201610,Housing & Independent Living Capital,Capital Expenditure,
,15/01/2016,SI,4682310,"2,500.00",HC104726,J & W Kostorz Ltd,201610,Housing & Independent Living Capital,Capital Expenditure,
,15/01/2016,SI,4682311,"3,422.00",HC107858,MVF Builders Ltd,201610,Housing & Independent Living Capital,Capital Expenditure,
,15/01/2016,SI,4682316,"41,700.00",HC111602,Worcestershire County Council Pension Fund,201610,Resources,Employees,
,18/01/2016,SI,4682320,"1,873,472.19",HC114724,Balfour Beatty Living Places Ltd,201610,Holding Codes,Holding Codes,
,27/01/2016,SI,4682322,"1,115.58",HC100626,Arnold Clark Finance Limited,201610,Adults Operations,Transport-Related Expenditure,
,20/01/2016,SI,4682324,"3,062.80",HC110812,REDACTED,201610,Safeguarding and Family Support,Third Party Payments,
,20/01/2016,SI,4682325,"3,224.00",HC110812,REDACTED,201610,Safeguarding and Family Support,Third Party Payments,
,20/01/2016,SI,4682326,"3,062.80",HC110812,REDACTED,201610,Safeguarding and Family Support,Third Party Payments,
,20/01/2016,SI,4682328,"3,003.90",HC110812,REDACTED,201610,Safeguarding and Family Support,Third Party Payments,
,20/01/2016,SI,4682329,"1,740.33",HC111589,REDACTED,201610,Safeguarding and Family Support,Third Party Payments,
,20/01/2016,SI,4682332,"1,906.08",HC111589,REDACTED,201610,Safeguarding and Family Support,Third Party Payments,
,20/01/2016,SI,4682333,"3,232.86",HC100874,REDACTED,201610,Safeguarding and Family Support,Third Party Payments,
,20/01/2016,SI,4682334,"2,320.44",HC111589,REDACTED,201610,Safeguarding and Family Support,Third Party Payments,
,20/01/2016,SI,4682335,719.22,HC111589,REDACTED,201610,Safeguarding and Family Support,Third Party Payments,
,20/01/2016,SI,4682336,"3,977.88",HC111589,REDACTED,201610,Safeguarding and Family Support,Third Party Payments,
,20/01/2016,SI,4682337,800,HC111589,REDACTED,201610,Safeguarding and Family Support,Third Party Payments,
,20/01/2016,SI,4682338,447,HC108891,Pyons Group Parish Council,201610,Commissioning,Third Party Payments,
,20/01/2016,SI,4682339,"1,225.00",HC108891,Pyons Group Parish Council,201610,Commissioning,Third Party Payments,
,29/01/2016,SI,4682340,"15,360.15",HC108593,Peters Bookselling Services,201610,Communities,Supplies & Services,
,20/01/2016,SI,4682341,474.64,HC108891,Pyons Group Parish Council,201610,Commissioning,Third Party Payments,
,20/01/2016,SI,4682344,"4,226.60",HC103869,Wye Valley NHS Trust,201610,Communities,Supplies & Services,
,20/01/2016,SI,4682345,595.4,HC104921,Hawcutt Funeral Directors & Monumental Masons,201610,Communities,Supplies & Services,
,20/01/2016,SI,4682347,"2,472.50",HC102482,Dormington & Mordiford G.P.C.,201610,Commissioning,Third Party Payments,
,20/01/2016,SI,4682348,"2,375.00",HC105506,Longtown Group Parish Council,201610,Commissioning,Third Party Payments,
,20/01/2016,SI,4682349,"5,404.18",HC110451,Telent Traffic Technology Services Ltd,201610,Commissioning,Third Party Payments,
,20/01/2016,SI,4682360,"4,316.62",HC114361,Dolphin Lifts Midlands Ltd,201610,Housing & Independent Living Capital,Capital Expenditure,
,20/01/2016,SI,4682361,"8,000.00",HC103959,Herefordshire Housing Ltd,201610,Housing & Independent Living Capital,Capital Expenditure,
,22/01/2016,SI,4682363,591.74,HC111380,Welsh Water,201610,Commissioning,Premises-Related Expenditure,
,22/01/2016,SI,4682364,"1,110.73",HC111380,Welsh Water,201610,Commissioning,Premises-Related Expenditure,
,20/01/2016,SI,4682371,"7,000.00",HC103959,Herefordshire Housing Ltd,201610,Housing & Independent Living Capital,Capital Expenditure,
,20/01/2016,SI,4682391,976.8,HC109826,Shropshire Council,201610,Schools,Supplies & Services,
,20/01/2016,SI,4682392,"1,067.00",HC109826,Shropshire Council,201610,Schools,Supplies & Services,
,20/01/2016,SI,4682393,"2,624.60",HC109826,Shropshire Council,201610,Schools,Supplies & Services,
,22/01/2016,SI,4682395,470,HC105714,QEHC Academy Trust T/A Queen Elizabeth Humanities College,201610,Schools,Supplies & Services,
,20/01/2016,SI,4682406,"1,172.08",HC111380,Welsh Water,201610,Schools,Premises-Related Expenditure,
,20/01/2016,SI,4682422,600,HC120485,REDACTED,201610,Schools,Supplies & Services,
,20/01/2016,SI,4682424,"2,090.00",HC114748,PJB Merchants Ltd,201610,Schools,Premises-Related Expenditure,
